{"text_format":"1","workbook":"xlsx","n_sheets":8,"sheets":["Prompt","C100","C200","C300","C331","C400","C500","Enviar"],"not_rendered":{"charts":0,"images":7,"macros":1,"external_links":0,"defined_names":0,"comments":0,"pivot_tables":0},"unopened":[],"bounds":{"document_bytes":16777216,"sheet_cells":100000,"rows_first":2000,"rows_last":500,"rows_between":2000,"halvings":0,"cell_chars":16384,"cell_head_chars":4096},"cells_cut":0,"cells_raw":0,"read":"whole","date_system":"1900"}

{"sheet":"Prompt","index":0,"n_rows":79,"n_cols":4,"rows_kept":79,"cut":false,"hidden":false,"merged":[[1,3,2,6],[4,1,6,8],[43,1,44,8],[78,1,79,8],[9,1,10,8]]}
[]
[null,null,null,"¡ATENCIÓN!"]
[]
[]
[null,"Para hacer uso de las funcionalidades de esta Cédula Electrónica debe habilitar macros"]
[]
[]
[]
[]
[null,"Si utiliza Excel 2013 siga el siguiente procedimiento:"]
[]
[]
[]
[]
[]
[]
[]
[]
[]
[]
[]
[]
[]
[]
[]
[]
[]
[]
[]
[]
[]
[]
[]
[]
[]
[]
[]
[]
[]
[]
[]
[]
[]
[null,"Si utiliza Excel 2007 siga el siguiente procedimiento:"]
[]
[]
[]
[]
[]
[]
[]
[]
[]
[]
[]
[]
[]
[]
[]
[]
[]
[]
[]
[]
[]
[]
[]
[]
[]
[]
[]
[]
[]
[]
[]
[]
[]
[]
[null,"Si utiliza Excel 2000, 2002, 2003 siga el siguiente procedimiento:"]

{"sheet":"C100","index":1,"n_rows":194,"n_cols":15,"rows_kept":194,"cut":false,"hidden":true,"merged":[[1,4,1,11],[2,4,2,11],[3,4,3,11],[2,13,4,13],[67,11,68,11],[83,8,83,13],[81,8,81,13],[9,1,9,14],[14,5,14,13],[51,9,51,13],[52,9,52,13],[53,9,53,13],[54,9,54,13],[55,9,55,13],[12,12,12,13],[16,11,16,13],[16,5,16,8]]}
[]
[null,null,null,null,"CENSO EDUCATIVO 2024",null,null,null,null,null,null,null,null,"CÉDULA"]
[null,null,null,null,"EDUCACIÓN SUPERIOR",null,null,null,null,null,null,null,null,"5A"]
[null,null,null,null,"PEDAGÓGICA"]
[null,"Version :","GA - 1"]
[null,"INSTRUCCIONES DEL FORMATO ELECTRÓNICO "]
[]
[]
[]
[null,"IDENTIFICACIÓN DEL SERVICIO EDUCATIVO"]
[]
[]
[null,"1. CÓDIGO MODULAR :",null,null,null,null,null,null,null,null,"2. CÓDIGO DE LOCAL EDUCATIVO :"]
[]
[null,"3. NOMBRE DEL SERVICIO/NIVEL :",null,null,null,""]
[]
[null,"4. DISTRITO :",null,null,null,"",null,null,null,null,"LOCALIDAD :  "]
[]
[null,"5. TIPO DE SERVICIO/NIVEL  :",null,null,null,null,null,"Escuela de Educación Superior Pedagógica - EESP"]
[]
[null,null,null,null,null,null,null,"Instituto de Educación Superior Pedagógica - IESP"]
[]
[]
[null,"Esta Institución Educativa es de Gestión : ",null,null,null,null,null," 1 - Pública de gestión directa",null,null," 2 - Pública de gestión privada",null,null," 3 - Privada",{"$f":"CONCATENATE(G24,J24,M24)","v":""}]
[]
[]
[null,"100. CARACTERÍSTICAS DEL SERVICIO EDUCATIVO (Para II.EE. Públicas y Privadas)"]
[]
[null,"101. ¿EL INSTITUTO O ESCUELA CUENTA CON UN CENTRO DE APLICACIÓN?",null,null,null,null,null,"Marque con un “X” una o más opciones según corresponda"]
[]
[null,null,"Sí",null,"Indique qué nivel:",null,null,"Inicial",null,null,"Primaria",null,null,"Secundaria"]
[]
[null,null,"No",null,"Pase a la pregunta 103, si es una IE privada"]
[]
[]
[null,"102. ¿EL CENTRO DE APLICACIÓN FUNCIONA EN EL MISMO LOCAL EDUCATIVO?"]
[]
[null,null,"Sí",null,null,null,null,null,null,null,null,"Inicial : ",null,null,{"$f":"IF(G31<>\"\",\"X\",\"\")","v":""}]
[null,null,null,null,null,"Indique los codigos de local donde funcionan los Centros de Aplicación",null,null,null,null,null,"Primaria : ",null,null,{"$f":"IF(J31<>\"\",\"X\",\"\")","v":""}]
[null,null,"No",null,null,null,null,null,null,null,null,"Secundaria :  ",null,null,{"$f":"IF(M31<>\"\",\"X\",\"\")","v":""}]
[]
[]
[null,"103. EN EL PRESENTE AÑO, ¿BAJO QUÉ MODALIDAD SE REALIZAN LAS CLASES EN ESTE INSTITUTO O ESCUELA?"]
[null,null,"Marque con una “X”, solo una opción"]
[]
[null,null,null,null,"Presencial",null,null,"Semi presencial",null,null,"Virtual/A distancia"]
[]
[null,"104. ¿EL INSTITUTO O ESCUELA COMPARTE LOCAL EDUCATIVO CON ALGUNA UNIVERSIDAD?"]
[]
[null,null,"Sí  ",null,null,null,null,null,"¿Qué universidades?"]
[null,null,null,null,null,null,null,{"$f":"SUM(H52:H56)","v":0},"Seleccione una o más universidades según corresponda"]
[null,null,null,null,null,null,null,{"$f":"IF(J52<>\"\",1,0)","v":0},"Universidad 1"]
[null,null,"No  ",null,null,null,null,{"$f":"IF(J53<>\"\",1,0)","v":0},"Universidad 2"]
[null,null,null,null,null,null,null,{"$f":"IF(J54<>\"\",1,0)","v":0},"Universidad 3"]
[null,null,null,null,null,null,null,{"$f":"IF(J55<>\"\",1,0)","v":0},"Universidad 4"]
[null,null,null,null,null,null,null,{"$f":"IF(J56<>\"\",1,0)","v":0},"Universidad 5"]
[]
[null,"105. DURANTE EL ÚLTIMO MES, EN PROMEDIO, ¿CUÁNTAS HORAS SEMANALES,",null,null,null,null,null,null,"107. ¿CUENTA CON ESTUDIANTES BENEFICIADOS CON BECAS DE ESTUDIOS, AL AMPARO"]
[null,"ADICIONALES A SU JORNADA LABORAL, USTED CONSIDERA QUE HA DESTINADO",null,null,null,null,null,null,"DE LA LEY Nº 23585, “ESTUDIANTES DE PLANTELES Y UNIVERSIDADES"]
[null,"PARA REALIZAR ACTIVIDADES RELACIONADAS A SU TRABAJO COMO DIRECTOR?",null,null,null,null,null,null,"PARTICULARES QUE PIERDAN A SUS PADRES O TUTORES TIENEN"]
[]
[null,null,"Horas Semanales adicionales"]
[null,null,null,null,null,null,null,null,"Sí  ",null,null,"No  "]
[]
[null,"106. ¿QUÉ FACTORES LE AYUDARÍAN A MEJORAR SU INNOVACIÓN O PRÁCTICA"]
[null,null,"PEDAGÓGICA?"]
[null,null,"Marque con una “X”, una o más opciones",null,null,null,null,null,null,null,null,"Cantidad de beneficiarios por año"]
[null,null,null,null,null,null,null,null,null,null,null,"Año",null,"Cantidad de"]
[null,null,null,null,"Acceso a tecnología/internet",null,null,null,null,null,null,null,null,"beneficiarios"]
[null,null,null,null,"Acceso a material pedagógico",null,null,null,null,null,null,2020]
[null,null,null,null,"Tiempo para reflexionar y sistematizar la práctica",null,null,null,null,null,null,2021]
[null,null,null,null,"Asistencia técnica o asesoría personalizada",null,null,null,null,null,null,2022]
[null,null,null,null,"Talleres de intercambio de experiencia",null,null,null,null,null,null,2023]
[null,null,null,null,"Becas de estudio",null,null,null,null,null,null,null,null,{"$f":"SUM(N70:N73)","v":0}]
[null,null,null,null,"Pasantias"]
[]
[]
[null,null,"108. DATOS SOBRE PROMOTORÍA (Sólo para ISP Privados)"]
[null,null,"108.1 TIPO DE PERSONA :"]
[null,null,"Marque con un aspa “X” y registre la información solicitada según corresponda"]
[]
[null,null,"Natural",null,"DNI","",null,"Nombre",""]
[]
[null,null,"Jurídica",null,"RUC","",null,"Razon social  ",""]
[]
[]
[null,null,"108.2 FORMA DE CONSTITUCIÓN (SOLO PARA PERSONA JURÍDICA):"]
[null,null,"Marque con un aspa “X” y registre la información solicitada según corresponda"]
[]
[null,null,"Sociedad"]
[null,null,null,{"$f":"CONCATENATE(D92,D90)","v":""},null,null,null,"Nº de Partida registral :  ",null,null,null,null,"Nº de Asiento registral :  "]
[null,null,"Asociación"]
[]
[]
[]
[]
[]
[]
[]
["01: UNIVERSIDAD MAYOR DE SAN MARCOS"]
["02: UNIVERSIDAD SAN CRISTÓBAL DE HUAMANGA"]
["03: UNIVERSIDAD SAN ANTONIO ABAD DEL CUSCO"]
["04: UNIVERSIDAD DE TRUJILLO"]
["05: UNIVERSIDAD SAN AGUSTÍN"]
["06: UNIVERSIDAD CIRO ALEGRÍA"]
["07: UNIVERSIDAD DE INGENIERÍA"]
["08: UNIVERSIDAD AGRARIA LA MOLINA"]
["09: UNIVERSIDAD SAN LUIS GONZAGA DE ICA"]
["10: UNIVERSIDAD DEL CENTRO DEL PERÚ"]
["11: UNIVERSIDAD DE LA AMAZONÍA PERUANA"]
["12: UNIVERSIDAD DEL ALTIPLANO"]
["13: UNIVERSIDAD DE PIURA"]
["14: UNIVERSIDAD DE CAJAMARCA"]
["15: UNIVERSIDAD FEDERICO VILLARREAL"]
["16: UNIVERSIDAD AGRARIA DE LA SELVA"]
["17: UNIVERSIDAD HERMILIO VALDIZAN"]
["18: UNIVERSIDAD DE EDUCACIÓN ENRIQUE GUZMÁN Y VALLE"]
["19: UNIVERSIDAD DANIEL ALCIDES CARRIÓN"]
["20: UNIVERSIDAD DEL CALLAO"]
["21: UNIVERSIDAD JOSÉ FAUSTINO SÁNCHEZ CARRIÓN"]
["22: UNIVERSIDAD PEDRO RUÍZ GALLO"]
["23: UNIVERSIDAD JORGE BASADRE GROHMANN"]
["24: UNIVERSIDAD SANTIAGO ANTÚNEZ DE MAYOLO"]
["25: UNIVERSIDAD DE SAN MARTÍN"]
["26: UNIVERSIDAD DE UCAYALI"]
["27: UNIVERSIDAD DE TUMBES"]
["28: UNIVERSIDAD DEL SANTA"]
["29: UNIVERSIDAD DE HUANCAVELICA"]
["30: UNIVERSIDAD AMAZÓNICA DE MADRE DE DIOS"]
["31: UNIVERSIDAD TORIBIO RODRÍGUEZ DE MENDOZA DE AMAZONAS"]
["32: UNIVERSIDAD MICAELA BASTIDAS DE APURIMAC"]
["33: UNIVERSIDAD INTERCULTURAL DE LA AMAZONIA"]
["34: UNIVERSIDAD TECNOLÓGICA DE LIMA SUR"]
["35: UNIVERSIDAD JOSE MARIA ARGUEDAS"]
["36: UNIVERSIDAD DE MOQUEGUA"]
["37: UNIVERSIDAD DE JULIACA"]
["38: UNIVERSIDAD DE JAÉN"]
["39: UNIVERSIDAD DE CAÑETE"]
["40: UNIVERSIDAD AUTÓNOMA DE CHOTA"]
["41: UNIVERSIDAD DE BARRANCA"]
["42: UNIVERSIDAD DE FRONTERA"]
["43: UNIVERSIDAD INTERCULTURAL FABIOLA SALAZAR LEGUÍA DE BAGUA"]
["44: UNIVERSIDAD INTERCULTURAL DE LA SELVA CENTRAL JUAN SANTOS ATAHUALPA"]
["45: UNIVERSIDAD INTERCULTURAL DE QUILLABAMBA"]
["46: UNIVERSIDAD AUTÓNOMA DE ALTO AMAZONAS"]
["47: UNIVERSIDAD AUTÓNOMA ALTOANDINA DE TARMA"]
["48: UNIVERSIDAD AUTÓNOMA DE HUANTA"]
["49: UNIVERSIDAD AUTÓNOMA DE TAYACAJA DANIEL HERNÁNDEZ MORILLO"]
["50: PONTIFICIA UNIVERSIDAD CATÓLICA DEL PERÚ"]
["51: UNIVERSIDAD PERUANA CAYETANO HEREDIA"]
["52: UNIVERSIDAD CATÓLICA DE SANTA MARÍA"]
["53: UNIVERSIDAD DEL PACÍFICO"]
["54: UNIVERSIDAD DE LIMA"]
["55: UNIVERSIDAD DE SAN MARTÍN DE PORRES"]
["56: UNIVERSIDAD FEMENINA DEL SAGRADO CORAZÓN"]
["57: UNIVERSIDAD DE PIURA"]
["58: UNIVERSIDAD RICARDO PALMA"]
["59: UNIVERSIDAD PERUANA LOS ANDES"]
["60: UNIVERSIDAD PERUANA UNIÓN"]
["61: UNIVERSIDAD ANDINA DEL CUSCO"]
["62: UNIVERSIDAD TECNOLOGICA DE LOS ANDES"]
["63: UNIVERSIDAD PRIVADA DE TACNA"]
["64: UNIVERSIDAD PRIVADA ANTENOR ORREGO"]
["65: UNIVERSIDAD DE HUANUCO"]
["66: UNIVERSIDAD MARCELINO CHAMPAGNAT"]
["67: UNIVERSIDAD CÉSAR VALLEJO"]
["68: UNIVERSIDAD PERUANA DE CIENCIAS APLICADAS"]
["69: UNIVERSIDAD PRIVADA DEL NORTE"]
["70: UNIVERSIDAD SAN IGNACIO DE LOYOLA"]
["71: UNIVERSIDAD NORBERT WIENER"]
["72: UNIVERSIDAD CATÓLICA SAN PABLO"]
["73: UNIVERSIDAD PRIVADA SAN JUAN BAUTISTA"]
["74: UNIVERSIDAD TECNOLÓGICA DEL PERÚ"]
["75: UNIVERSIDAD CONTINENTAL"]
["76: UNIVERSIDAD CIENTÍFICA DEL SUR"]
["77: UNIVERSIDAD CATÓLICA SANTO TORIBIO DE MOGROVEJO"]
["78: UNIVERSIDAD CATÓLICA SEDES SAPIENTIAE"]
["79: UNIVERSIDAD SEÑOR DE SIPÁN"]
["80: UNIVERSIDAD CATÓLICA DE TRUJILLO BENEDICTO XVI"]
["81: UNIVERSIDAD ESAN"]
["82: UNIVERSIDAD ANTONIO RUIZ DE MONTOYA"]
["83: UNIVERSIDAD PARA EL DESARROLLO ANDINO"]
["84: UNIVERSIDAD AUTÓNOMA DE ICA"]
["85: UNIVERSIDAD AUTÓNOMA DEL PERU"]
["86: UNIVERSIDAD DE CIENCIAS Y HUMANIDADES"]
["87: UNIVERSIDAD JAIME BAUSATE Y MEZA"]
["88: UNIVERSIDAD LE CORDON BLEU"]
["89: UNIVERSIDAD PRIVADA DE HUANCAYO FRANKLIN ROOSEVELT"]
["90: UNIVERSIDAD DE CIENCIAS Y ARTES DE AMÉRICA LATINA"]
["91: UNIVERSIDAD DE INGENIERÍA Y TECNOLOGÍA"]
["92: UNIVERSIDAD LA SALLE"]
["93: UNIVERSIDAD MARÍA AUXILIADORA"]
["94: UNIVERSIDAD PRIVADA PERUANO ALEMANA"]
["95: FACULTAD DE TEOLOGÍA PONTIFICIA Y CIVIL DE LIMA"]

{"sheet":"C200","index":2,"n_rows":290,"n_cols":52,"rows_kept":290,"cut":false,"hidden":true,"merged":[[8,3,8,25],[33,3,33,25],[82,3,82,15],[207,3,207,18],[91,8,91,9],[91,10,91,11],[91,12,91,13],[91,14,91,15],[89,8,89,9],[89,10,89,11],[89,12,89,13],[89,14,89,15],[88,8,88,9],[88,10,88,11],[88,12,88,13],[90,8,90,9],[90,10,90,11],[90,12,90,13],[90,14,90,15],[37,3,37,7],[35,2,36,7],[36,10,36,11],[87,12,87,13],[84,2,85,7],[36,26,36,27],[36,16,36,17],[36,18,36,19],[36,20,36,21],[88,14,88,15],[11,10,11,11],[11,24,11,25],[24,2,24,3],[35,10,35,29],[36,28,36,29],[30,2,30,3],[36,12,36,13],[36,14,36,15],[31,2,31,3],[11,22,11,23],[11,12,11,13],[21,2,21,3],[29,2,29,3],[11,16,11,17],[11,20,11,21],[80,4,80,7],[86,3,86,7],[14,2,14,3],[11,14,11,15],[1,2,1,25],[2,2,2,25],[6,2,6,25],[23,2,23,3],[36,22,36,23],[13,2,13,3],[20,2,20,3],[10,4,11,5],[11,8,11,9],[19,2,19,3],[10,2,12,3],[10,6,10,25],[11,6,11,7],[27,2,27,3],[28,2,28,3],[36,24,36,25],[15,2,15,3],[18,2,18,3],[17,2,17,3],[16,2,16,3],[26,2,26,3],[25,2,25,3],[11,18,11,19],[22,2,22,3],[84,8,84,15],[85,8,85,11],[85,12,85,15],[87,14,87,15],[87,8,87,9],[35,8,36,9],[86,8,86,9],[86,10,86,11],[86,12,86,13],[87,10,87,11],[86,14,86,15],[92,8,92,9],[92,10,92,11],[92,12,92,13],[92,14,92,15],[93,8,93,9],[93,10,93,11],[93,12,93,13],[93,14,93,15],[94,8,94,9],[94,10,94,11],[94,12,94,13],[94,14,94,15],[95,8,95,9],[95,10,95,11],[95,12,95,13],[95,14,95,15],[96,8,96,9],[96,10,96,11],[96,12,96,13],[96,14,96,15],[97,8,97,9],[97,10,97,11],[97,12,97,13],[97,14,97,15],[98,8,98,9],[98,10,98,11],[98,12,98,13],[98,14,98,15],[99,8,99,9],[99,10,99,11],[99,12,99,13],[99,14,99,15],[100,8,100,9],[100,10,100,11],[100,12,100,13],[100,14,100,15],[101,8,101,9],[101,10,101,11],[101,12,101,13],[101,14,101,15],[102,8,102,9],[102,10,102,11],[102,12,102,13],[102,14,102,15],[103,8,103,9],[103,10,103,11],[103,12,103,13],[103,14,103,15],[104,8,104,9],[104,10,104,11],[104,12,104,13],[104,14,104,15],[105,8,105,9],[105,10,105,11],[105,12,105,13],[105,14,105,15],[106,8,106,9],[106,10,106,11],[106,12,106,13],[106,14,106,15],[107,8,107,9],[107,10,107,11],[107,12,107,13],[107,14,107,15],[108,8,108,9],[108,10,108,11],[108,12,108,13],[108,14,108,15],[109,8,109,9],[109,10,109,11],[109,12,109,13],[109,14,109,15],[110,8,110,9],[110,10,110,11],[110,12,110,13],[110,14,110,15],[111,8,111,9],[111,10,111,11],[111,12,111,13],[111,14,111,15],[112,8,112,9],[112,10,112,11],[112,12,112,13],[112,14,112,15],[113,8,113,9],[113,10,113,11],[113,12,113,13],[113,14,113,15],[114,8,114,9],[114,10,114,11],[114,12,114,13],[114,14,114,15],[115,8,115,9],[115,10,115,11],[115,12,115,13],[115,14,115,15],[116,8,116,9],[116,10,116,11],[116,12,116,13],[116,14,116,15],[117,8,117,9],[117,10,117,11],[117,12,117,13],[117,14,117,15],[118,8,118,9],[118,10,118,11],[118,12,118,13],[118,14,118,15],[119,8,119,9],[119,10,119,11],[119,12,119,13],[119,14,119,15],[124,10,124,11],[124,12,124,13],[120,14,120,15],[121,8,121,9],[121,10,121,11],[121,12,121,13],[121,14,121,15],[120,8,120,9],[120,10,120,11],[120,12,120,13],[123,8,123,9],[123,10,123,11],[123,12,123,13],[124,14,124,15],[125,8,125,9],[125,10,125,11],[125,12,125,13],[125,14,125,15],[123,14,123,15],[122,8,122,9],[122,10,122,11],[122,12,122,13],[122,14,122,15],[124,8,124,9],[126,8,126,9],[126,10,126,11],[198,5,198,24],[190,21,190,22],[127,8,127,9],[127,10,127,11],[128,12,128,13],[127,12,127,13],[128,14,128,15],[127,14,127,15],[126,12,126,13],[126,14,126,15],[133,6,133,19],[129,8,129,9],[140,2,141,7],[141,18,141,19],[141,20,141,21],[141,22,141,23],[129,4,129,7],[128,8,128,9],[128,10,128,11],[133,2,134,3],[133,4,134,5],[129,12,129,13],[129,10,129,11],[141,12,141,13],[129,14,129,15],[288,4,288,5],[285,4,285,5],[286,4,286,5],[287,4,287,5],[135,4,135,5],[190,13,190,14],[210,11,210,12],[210,13,210,14],[283,6,283,15],[189,2,191,4],[189,7,189,22],[198,2,200,4],[190,19,190,20],[190,15,190,16],[210,9,210,10],[199,21,199,22],[283,2,284,3],[283,4,284,5],[136,4,136,5],[185,4,185,7],[142,3,142,7],[199,5,199,6],[190,9,190,10],[190,11,190,12],[190,7,190,8],[199,9,199,10],[140,10,140,15],[209,5,210,6],[209,7,209,26],[190,17,190,18],[199,15,199,16],[199,17,199,18],[199,7,199,8],[210,21,210,22],[209,3,211,4],[189,5,190,6],[210,23,210,24],[210,15,210,16],[210,7,210,8],[140,30,141,31],[140,32,141,33],[140,34,141,35],[141,10,141,11],[141,16,141,17],[140,8,141,9],[210,25,210,26],[199,19,199,20],[199,13,199,14],[199,11,199,12],[199,23,199,24],[140,16,140,19],[140,20,140,23],[140,24,141,25],[140,26,141,27],[140,28,141,29],[210,17,210,18],[210,19,210,20],[141,14,141,15]]}
[]
[null,null,"CENSO EDUCATIVO 2024"]
[null,null,"MATRÍCULA, DOCENTES Y RECURSOS"]
[]
[]
[null,null,null,null,null,null,0,0,0,0,0,0,0,0,0,0]
[null,null,"200. MATRICULA Y SECCIONES"]
[]
[null,null,201,"MATRÍCULA TOTAL, POR CICLO Y SEXO, SEGÚN EDAD (Cumplida al 31 de marzo de 2024)\nRegistrar la información correspondiente al semestre académico 2024-I"]
[]
[null,null,"EDAD EN AÑOS CUMPLIDOS\nAL 31-03-2024",null,"TOTAL",null,"CICLO"]
[null,null,null,null,null,null,"I",null,"II",null,"III",null,"IV",null,"V",null,"VI",null,"VII",null,"VIII",null,"IX",null,"X"]
[null,null,null,null,"H","M","H","M","H","M","H","M","H","M","H","M","H","M","H","M","H","M","H","M","H","M"]
["00",null,"TOTAL",null,{"$f":"G14+I14+K14+M14+O14+Q14+S14+U14+W14+Y14","v":0},{"$f":"H14+J14+L14+N14+P14+R14+T14+V14+X14+Z14","v":0},{"$f":"SUM(G15:G32)","v":0},{"$f":"SUM(H15:H32)","v":0},{"$f":"SUM(I15:I32)","v":0},0,0,0,0,0,0,0,0,0,0,0,0,0,0,0,0,{"$f":"SUM(Z15:Z32)","v":0}]
["15",null,15,null,{"$f":"G15+I15+K15+M15+O15+Q15+S15+U15+W15+Y15","v":0},{"$f":"H15+J15+L15+N15+P15+R15+T15+V15+X15+Z15","v":0}]
["16",null,16,null,{"$f":"G16+I16+K16+M16+O16+Q16+S16+U16+W16+Y16","v":0},{"$f":"H16+J16+L16+N16+P16+R16+T16+V16+X16+Z16","v":0}]
["17",null,17,null,0,0]
["18",null,18,null,0,0]
["19",null,19,null,0,0]
["20",null,20,null,0,0]
["21",null,21,null,0,0]
["22",null,22,null,0,0]
["23",null,23,null,0,0]
["24",null,24,null,0,0]
["25",null,"25-29",null,0,0]
["30",null,"30-34",null,0,0]
["35",null,"35-39",null,0,0]
["40",null,"40-44",null,0,0]
["45",null,"45-49",null,0,0]
["50",null,"50-54",null,0,0]
["55",null,"55-59",null,0,0]
["60",null,"60 y más",null,0,0]
[null,null,"NOTA:  Incluya a los estudiantes con algún tipo de discapacidad u otra condición"]
[null,null,202,"MATRÍCULA TOTAL, POR CICLO Y SEXO, SEGÚN CARRERAS Y ESPECIALIDAD CON CARRERA DOCENTES\n(Sumar todos los turnos). Semestre académico 2024-I)"]
[]
[null,null,"CARRERAS Y ESPECIALIDADES",null,null,null,null,null,"TOTAL",null,"CICLO"]
[null,null,null,null,null,null,null,null,null,null,"I",null,"II",null,"III",null,"IV",null,"V",null,"VI",null,"VII",null,"VIII",null,"IX",null,"X"]
[null,null,"CÓDIGO","DENOMINACIÓN",null,null,null,null,"H","M","H","M","H","M","H","M","H","M","H","M","H","M","H","M","H","M","H","M","H","M"]
["00",null,"00","TOTAL",null,null,null,null,{"$f":"K39+M39+O39+Q39+S39+U39+W39+Y39+AA39+AC39","v":0},{"$f":"L39+N39+P39+R39+T39+V39+X39+Z39+AB39+AD39","v":0},{"$f":"SUM(K40:K81)","v":0},{"$f":"SUM(L40:L81)","v":0},0,0,0,0,0,0,0,0,0,0,0,0,0,0,0,{"$f":"SUM(AB40:AB81)","v":0},0,0]
["01",null,"01","Educación Inicial",null,null,null,null,{"$f":"K40+M40+O40+Q40+S40+U40+W40+Y40+AA40+AC40","v":0},{"$f":"L40+N40+P40+R40+T40+V40+X40+Z40+AB40+AD40","v":0}]
["02",null,"02","Educación Primaria",null,null,null,null,0,0]
["03",null,"03","Educación Inicial Intercultural Bilingüe",null,null,null,null,0,0]
["04",null,"04","Educación Primaria Intercultural Bilingüe",null,null,null,null,0,0]
["05",null,"05","Educación Básica Alternativa",null,null,null,null,0,0]
["06",null,"06","Educación Especial",null,null,null,null,0,0]
["07",null,"07","Educación Física",null,null,null,null,0,0]
["08",null,"08","Educación Artística",null,null,null,null,0,0]
["09",null,"09","E.S. Lengua y Literatura",null,null,null,null,0,0]
["10",null,"10","E.S. Especialidad Comunicación",null,null,null,null,0,0]
["11",null,"11","E.S. Matemática y Física",null,null,null,null,0,0]
["12",null,"12","E.S. Especialidad Matemática",null,null,null,null,0,0]
["13",null,"13","E.S. CCSS y Filosofía",null,null,null,null,0,0]
["14",null,"14","E.S. Especialidad Ciudadanía y Ciencias Sociales",null,null,null,null,0,0]
["15",null,"15","E.S. Ciencias Naturales",null,null,null,null,0,0]
["16",null,"16","E.S. Especialidad Ciencia y Tecnología",null,null,null,null,0,0]
["17",null,"17","E.S. Alimentación y Nutrición",null,null,null,null,0,0]
["18",null,"18","E.S. Biología y Química",null,null,null,null,0,0]
["19",null,"19","E.S. Historia y Geografía",null,null,null,null,0,0]
["20",null,"20","E.S. CC.HH. Sociales",null,null,null,null,0,0]
["21",null,"21","Idiomas Especialidad Inglés",null,null,null,null,0,0]
["22",null,"22","Educación Religiosa",null,null,null,null,0,0]
["23",null,"23","E.S. Educación Familiar",null,null,null,null,0,0]
["24",null,"24","E.T. Artes Industriales",null,null,null,null,0,0]
["25",null,"25","E.T. Artesanía",null,null,null,null,0,0]
["26",null,"26","E.T. Agropecuaria",null,null,null,null,0,0]
["27",null,"27","E.T. Construcción en madera",null,null,null,null,0,0]
["28",null,"28","Computación e Informática",null,null,null,null,0,0]
["29",null,"29","E.T. Carpintería / Ebanistería",null,null,null,null,0,0]
["30",null,"30","E.T. Electricidad",null,null,null,null,0,0]
["31",null,"31","E.T. Electrónica",null,null,null,null,0,0]
["32",null,"32","E.T. Ebanistería",null,null,null,null,0,0]
["33",null,"33","E.T. Industria del Vestido",null,null,null,null,0,0]
["34",null,"34","E.T. Industria del Vestido Alimentación y Alta Costura",null,null,null,null,0,0]
["35",null,"35","E.T. en Industria del Vestido y Alta Costura",null,null,null,null,0,0]
["36",null,"36","E.S.Técnica especialidad Ind. del Vestido Ind.Alimentaria y Artesanía",null,null,null,null,0,0]
["37",null,"37","E.T. Industria Alimentaria",null,null,null,null,0,0]
["38",null,"38","E.T. Mecánica Automotriz",null,null,null,null,0,0]
["39",null,"39","E.T. Mecánica de Producción",null,null,null,null,0,0]
["40",null,"40","E.T. Mecánica de Producción y Soldadura",null,null,null,null,0,0]
["41",null,"41","Educación para el trabajo: Textil y Confección",null,null,null,null,0,0]
["42",null,"42","Otro",null,null,null,null,{"$f":"K81+M81+O81+Q81+S81+U81+W81+Y81+AA81+AC81","v":0},{"$f":"L81+N81+P81+R81+T81+V81+X81+Z81+AB81+AD81","v":0}]
[null,null,"NOTA: Los totales de esta tabla deben ser iguales a los de la tabla 201"]
[null,null,203,"POSTULANTES E INGRESANTES, POR SEXO, SEGÚN CARRERAS Y ESPECIALIDADES\nSumar todos los turnos). Semestre académico 2024-I"]
[]
[null,null,"CARRERAS Y ESPECIALIDADES",null,null,null,null,null,"SEMESTRE 2024-I"]
[null,null,null,null,null,null,null,null,"POSTULANTES",null,null,null,"INGRESANTES"]
[null,null,"CÓDIGO","DENOMINACIÓN",null,null,null,null,"H",null,"M",null,"H",null,"M"]
["00",null,"00","TOTAL",null,null,null,null,{"$f":"SUM(I89:J130)","v":0},null,{"$f":"SUM(K89:L130)","v":0},null,{"$f":"SUM(M89:N130)","v":0},null,{"$f":"SUM(O89:P130)","v":0}]
["01",null,"01","Educación Inicial"]
["02",null,"02","Educación Primaria"]
["03",null,"03","Educación Inicial Intercultural Bilingüe"]
["04",null,"04","Educación Primaria Intercultural Bilingüe"]
["05",null,"05","Educación Básica Alternativa"]
["06",null,"06","Educación Especial"]
["07",null,"07","Educación Física"]
["08",null,"08","Educación Artística"]
["09",null,"09","E.S. Lengua y Literatura"]
["10",null,"10","E.S. especialidad Comunicación"]
["11",null,"11","E.S. Matemática y Física"]
["12",null,"12","E.S. especialidad Matemática"]
["13",null,"13","E.S. CCSS y Filosofía"]
["14",null,"14","E.S. especialidad Ciudadanía y Ciencias Sociales"]
["15",null,"15","E.S. Ciencias Naturales"]
["16",null,"16","E.S. especialidad Ciencia y Tecnología"]
["17",null,"17","E.S. Alimentación y Nutrición"]
["18",null,"18","E.S. Biología y Química"]
["19",null,"19","E.S. Historia y Geografía"]
["20",null,"20","E.S. CC.HH. Sociales"]
["21",null,"21","Idiomas especialidad Inglés"]
["22",null,"22","Educación Religiosa"]
["23",null,"23","E.S. Educación Familiar"]
["24",null,"24","E.T. Artes Industriales"]
["25",null,"25","E.T. Artesanía"]
["26",null,"26","E.T. Agropecuaria"]
["27",null,"27","E.T. Construcción en madera"]
["28",null,"28","Computación e Informática"]
["29",null,"29","E.T. Carpintería / Ebanistería"]
["30",null,"30","E.T. Electricidad"]
["31",null,"31","E.T. Electrónica"]
["32",null,"32","E.T. Ebanistería"]
["33",null,"33","E.T. Industria del Vestido"]
["34",null,"34","E.T. Industria del Vestido Alimentación y Alta Costura"]
["35",null,"35","E.T. en Industria del Vestido y Alta Costura"]
["36",null,"36","E.S.Técnica especialidad Ind. del Vestido Ind.Alimentaria y Artesanía"]
["37",null,"37","E.T. Industria Alimentaria"]
["38",null,"38","E.T. Mecánica Automotriz"]
["39",null,"39","E.T. Mecánica de Producción"]
["40",null,"40","E.T. Mecánica de Producción y Soldadura"]
["41",null,"41","Educación para el trabajo: Textil y Confección"]
["42",null,"42","Otro"]
[]
[null,null,204,"INGRESANTES, POR EDAD, SEGÚN SEXO"]
[]
[null,null,"SEXO",null,"TOTAL",null,"EDAD EN AÑOS CUMPLIDOS AL 31 DE MARZO DE 2023 / SEMESTRE 2023-I"]
[null,null,null,null,null,null,15,16,17,18,19,20,21,22,23,24,"25-29","30-34","35-39","40 y más"]
["01",null,"Hombre",null,{"$f":"SUM(G136:T136)","v":0}]
["02",null,"Mujer",null,{"$f":"SUM(G137:T137)","v":0}]
[null,null,"NOTA: Los totales de esta tabla deben ser iguales a los reportados en la columna “Ingresantes” de la tabla 203."]
[null,null,205,"MATRÍCULA POR TIPO DE DISCAPACIDAD U OTRA CONDICIÓN Y SEXO, SEGÚN CARRERAS Y ESPECIALIDADES"]
[]
[null,null,"CARRERAS Y/O PROGRAMAS DE ESTUDIOS",null,null,null,null,null,"TOTAL",null,"Discapacidad Intelectual",null,null,null,null,null,"Discapacidad Auditiva",null,null,null,"Discapacidad Visual",null,null,null,"Discapacidad Física o Motora",null,"Trastorno del Espectro Autista",null,"Sordoceguera",null,"Multidis-capacidad",null,"Otra discapacidad u otra condición",null," Ninguna  discapacidad"]
[null,null,null,null,null,null,null,null,null,null,"Retardo mental leve",null,"Retardo mental moderado",null,"Retardo mental severo",null,"Hipoacusia",null,"Sordera total",null,"Baja visión",null,"Ceguera"]
[null,null,"CÓDIGO","DENOMINACIÓN",null,null,null,null,"H","M","H","M","H","M","H","M","H","M","H","M","H","M","H","M","H","M","H","M","H","M","H","M","H","M","H","M"]
[null,null,"00","TOTAL",null,null,null,null,{"$f":"K144+M144+O144+Q144+S144+U144+W144+Y144+AA144+AC144+AE144+AG144+AI144","v":0},0,{"$f":"SUM(K145:K186)","v":0},{"$f":"SUM(L145:L186)","v":0},0,0,0,0,0,0,0,0,0,0,0,0,0,0,0,{"$f":"SUM(AB145:AB186)","v":0},{"$f":"SUM(AC145:AC186)","v":0},0,0,0,0,{"$f":"SUM(AH145:AH186)","v":0},{"$f":"SUM(AI145:AI186)","v":0},{"$f":"SUM(AJ145:AJ186)","v":0}]
[null,null,"01","Educación Inicial",null,null,null,null,0,0]
[null,null,"02","Educación Primaria",null,null,null,null,0,0]
[null,null,"03","Educación Inicial Intercultural Bilingüe",null,null,null,null,{"$f":"K147+M147+O147+Q147+S147+U147+W147+Y147+AA147+AC147+AE147+AG147+AI147","v":0},{"$f":"L147+N147+P147+R147+T147+V147+X147+Z147+AB147+AD147+AF147+AH147+AJ147","v":0}]
[null,null,"04","Educación Primaria Intercultural Bilingüe",null,null,null,null,0,0]
[null,null,"05","Educación Básica Alternativa",null,null,null,null,0,0]
[null,null,"06","Educación Especial",null,null,null,null,0,0]
[null,null,"07","Educación Física",null,null,null,null,0,0]
[null,null,"08","Educación Artística",null,null,null,null,0,0]
[null,null,"09","E.S. Lengua y Literatura",null,null,null,null,0,0]
[null,null,"10","E.S. especialidad Comunicación",null,null,null,null,0,0]
[null,null,"11","E.S. Matemática y Física",null,null,null,null,0,0]
[null,null,"12","E.S. especialidad Matemática",null,null,null,null,0,0]
[null,null,"13","E.S. CCSS y Filosofía",null,null,null,null,0,0]
[null,null,"14","E.S. especialidad Ciudadanía y Ciencias Sociales",null,null,null,null,0,0]
[null,null,"15","E.S. Ciencias Naturales",null,null,null,null,0,0]
[null,null,"16","E.S. especialidad Ciencia y Tecnología",null,null,null,null,0,0]
[null,null,"17","E.S. Alimentación y Nutrición",null,null,null,null,0,0]
[null,null,"18","E.S. Biología y Química",null,null,null,null,0,0]
[null,null,"19","E.S. Historia y Geografía",null,null,null,null,0,0]
[null,null,"20","E.S. CC.HH. Sociales",null,null,null,null,0,0]
[null,null,"21","Idiomas especialidad Inglés",null,null,null,null,0,0]
[null,null,"22","Educación Religiosa",null,null,null,null,0,0]
[null,null,"23","E.S. Educación Familiar",null,null,null,null,0,0]
[null,null,"24","E.T. Artes Industriales",null,null,null,null,0,0]
[null,null,"25","E.T. Artesanía",null,null,null,null,0,0]
[null,null,"26","E.T. Agropecuaria",null,null,null,null,0,0]
[null,null,"27","E.T. Construcción en madera",null,null,null,null,0,0]
[null,null,"28","Computación e Informática",null,null,null,null,0,0]
[null,null,"29","E.T. Carpintería / Ebanistería",null,null,null,null,0,0]
[null,null,"30","E.T. Electricidad",null,null,null,null,0,0]
[null,null,"31","E.T. Electrónica",null,null,null,null,0,0]
[null,null,"32","E.T. Ebanistería",null,null,null,null,0,0]
[null,null,"33","E.T. Industria del Vestido",null,null,null,null,0,0]
[null,null,"34","E.T. Industria del Vestido Alimentación y Alta Costura",null,null,null,null,0,0]
[null,null,"35","E.T. en Industria del Vestido y Alta Costura",null,null,null,null,0,0]
[null,null,"36","E.S.Técnica especialidad Ind. del Vestido Ind.Alimentaria y Artesanía",null,null,null,null,0,0]
[null,null,"37","E.T. Industria Alimentaria",null,null,null,null,0,0]
[null,null,"38","E.T. Mecánica Automotriz",null,null,null,null,0,0]
[null,null,"39","E.T. Mecánica de Producción",null,null,null,null,0,0]
[null,null,"40","E.T. Mecánica de Producción y Soldadura",null,null,null,null,0,0]
[null,null,"41","Educación para el trabajo: Textil y Confección",null,null,null,null,0,0]
[null,null,"42","Otro",null,null,null,null,{"$f":"K186+M186+O186+Q186+S186+U186+W186+Y186+AA186+AC186+AE186+AG186+AI186","v":0},{"$f":"L186+N186+P186+R186+T186+V186+X186+Z186+AB186+AD186+AF186+AH186+AJ186","v":0}]
[null,null,"NOTA: Los totales de esta tabla deben ser iguales a la suma de las tabla 201 y 202."]
[null,null,206," MATRÍCULA POR EDAD Y SEXO SEGÚN TIPO DE PROGRAMA DE REPARACIONES EN EDUCACIÓN (Ley N° 28592)"]
[]
[null,null,"TIPO DE PROGRAMA DE\nREPARACIÓN EN EDUCACIÓN",null,null,"TOTAL",null,"EDAD"]
[null,null,null,null,null,null,null,15,null,16,null,17,null,18,null,19,null,20,null,21,null,22]
[null,null,null,null,null,"H","M","H","M","H","M","H","M","H","M","H","M","H","M","H","M","H","M"]
["00",null,"TOTAL",null,null,{"$f":"H193+J193+L193+N193+P193+R193+T193+V193+X193","v":0},{"$f":"I193+K193+M193+O193+Q193+S193+U193+W193+Y193","v":0},{"$f":"SUM(H194:H197)","v":0},{"$f":"SUM(I194:I197)","v":0},{"$f":"SUM(J194:J197)","v":0},0,0,0,0,0,0,0,0,0,0,0,0,0,{"$f":"F202+H202+J202+L202+N202+P202+R202+T202+V202+X202","v":0},{"$f":"G202+I202+K202+M202+O202+Q202+S202+U202+W202+Y202","v":0},{"$f":"H193+J193+L193+N193+P193+R193+T193+V193","v":0},{"$f":"I193+K193+M193+O193+Q193+S193+U193+W193","v":0}]
["01",null,"RUV",null,null,0,{"$f":"I194+K194+M194+O194+Q194+S194+U194+W194+Y194","v":0},null,null,null,null,null,null,null,null,null,null,null,null,null,null,null,null,{"$f":"F203+H203+J203+L203+N203+P203+R203+T203+V203+X203","v":0},0,{"$f":"H194+J194+L194+N194+P194+R194+T194+V194","v":0},{"$f":"I194+K194+M194+O194+Q194+S194+U194+W194","v":0}]
["02",null,"REBRED",null,null,0,{"$f":"I195+K195+M195+O195+Q195+S195+U195+W195+Y195","v":0},null,null,null,null,null,null,null,null,null,null,null,null,null,null,null,null,0,0,0,0]
["03",null,"Otros Programas del Estado",null,null,0,{"$f":"I196+K196+M196+O196+Q196+S196+U196+W196+Y196","v":0},null,null,null,null,null,null,null,null,null,null,null,null,null,null,null,null,0,0,0,0]
["04",null,"Estudiante no beneficiado",null,null,0,0,null,null,null,null,null,null,null,null,null,null,null,null,null,null,null,null,0,0,0,0]
[null,null,"CONTINUACIÓN TABLA 206 …."]
[null,null,"TIPO DE PROGRAMA DE\nREPARACIÓN EN EDUCACIÓN",null,null,"EDAD"]
[null,null,null,null,null,23,null,24,null,"25-29",null,"30-34",null,"35-39",null,"40-44",null,"45-49",null,"50-54",null,"55-59",null,"60 y más"]
[null,null,null,null,null,"H","M","H","M","H","M","H","M","H","M","H","M","H","M","H","M","H","M","H","M"]
["00",null,"TOTAL",null,null,{"$f":"SUM(F203:F206)","v":0},0,0,0,0,0,0,0,0,0,0,0,0,0,0,0,0,0,0,0]
["01",null,"RUV"]
["02",null,"REBRED"]
["03",null,"Otros Programas del Estado"]
["04",null,"Estudiante no beneficiado"]
[]
[null,null,207,"MATRÍCULA POR CICLOS Y SEXO, SEGÚN LENGUA QUE DOMINA (Cumplida al 31 de marzo de 2024)\nSumar todos los turnos). Registrar la información del semestre académico 2024-I"]
[]
[null,null,null,"DENOMINACIÓN DE LA LENGUA",null,"TOTAL",null,"CICLO"]
[null,null,"CÓDIGO",null,null,null,null,"I",null,"II",null,"III",null,"IV",null,"V",null,"VI",null,"VII",null,"VIII",null,"IX",null,"X"]
[null,null,null,null,null,"H","M","H","M","H","M","H","M","H","M","H","M","H","M","H","M","H","M","H","M","H","M"]
[null,null,"0000","TOTAL",null,{"$f":"SUM(F214:F280)","v":0},{"$f":"SUM(G214:G280)","v":0},{"$f":"SUM(H214:H279)","v":0},{"$f":"SUM(I214:I279)","v":0},{"$f":"SUM(J214:J279)","v":0},0,0,0,0,0,0,0,0,0,0,0,0,0,0,0,0,{"$f":"SUM(AA214:AA279)","v":0},null,null,null,null,null,null,null,null,null,null,null,null,null,null,null,null,null,null,null,null,null,null,null,null,{"$f":"SUM(#REF!)","v":{"$error":"#REF!"}}]
[null,null,"0100","Castellano",null,{"$f":"H214+J214+L214+N214+P214+R214+T214+V214+X214+Z214","v":0},{"$f":"I214+K214+M214+O214+Q214+S214+U214+W214+Y214+AA214","v":0}]
[null,null,"0200","Achuar",null,0,0]
[null,null,"0300","Aimara",null,0,0]
[null,null,"0400","Amahuaca",null,0,0]
[null,null,"0500","Arabela",null,0,0]
[null,null,"0600","Asháninka",null,0,0]
[null,null,"0610","Asheninka",null,0,0]
[null,null,"0700","Awajún",null,0,0]
[null,null,"0800","Bora",null,0,0]
[null,null,"0900","Kapanawa",null,0,0]
[null,null,"1000","Cashinahua",null,0,0]
[null,null,"1100","Kawki",null,0,0]
[null,null,"1200","Chamikuro",null,0,0]
[null,null,"1300","Ese eja",null,0,0]
[null,null,"1400","Harakbut",null,0,0]
[null,null,"1500","Iñapari",null,0,0]
[null,null,"1600","Ikuitu",null,0,0]
[null,null,"1700","Iskonawa",null,0,0]
[null,null,"1800","Jaqaru",null,0,0]
[null,null,"1900","Kakataibo",null,0,0]
[null,null,"2000","Kakinte",null,0,0]
[null,null,"2110","Kandozi-chapra (chapra)",null,0,0]
[null,null,"2120","Kandozi-chapra (kandozi)",null,0,0]
[null,null,"2200","Kukama-kukamiria",null,0,0]
[null,null,"2300","Madija",null,0,0]
[null,null,"2400","Maijiki",null,0,0]
[null,null,"2500","Matsés",null,0,0]
[null,null,"2600","Matsigenka",null,0,0]
[null,null,"2700","Munichi",null,0,0]
[null,null,"2800","Murui-muinani",null,0,0]
[null,null,"2900","Matsigenka-montetokunirira",null,0,0]
[null,null,"3000","Nomatsigenga",null,0,0]
[null,null,"3100","Ocaina",null,{"$f":"H246+J246+L246+N246+P246+R246+T246+V246+X246+Z246","v":0},{"$f":"I246+K246+M246+O246+Q246+S246+U246+W246+Y246+AA246","v":0}]
[null,null,"3200","Omagua",null,0,0]
[null,null,"3310","Quechua amazónico (Kichwa)",null,0,0]
[null,null,"3321","Quechua central (Ancash)",null,0,0]
[null,null,"3322","Quechua central (Huánuco)",null,0,0]
[null,null,"3323","Quechua central (Wanka)",null,0,0]
[null,null,"3324","Quechua central (Pasco)",null,0,0]
[null,null,"3331","Quechua norteño (Cajamarca)",null,0,0]
[null,null,"3332","Quechua norteño (Inkawasi Kañaris)",null,0,0]
[null,null,"3341","Quechua sureño (Chanka)",null,0,0]
[null,null,"3342","Quechua sureño (Collao)",null,0,0]
[null,null,"3400","Resígaro",null,0,0]
[null,null,"3500","Secoya",null,0,0]
[null,null,"3600","Sharanahua",null,0,0]
[null,null,"3700","Shawi",null,0,0]
[null,null,"3800","Shipibo-Konibo",null,0,0]
[null,null,"3900","Shiwilu",null,0,0]
[null,null,"4000","Taushiro",null,0,0]
[null,null,"4100","Ticuna",null,0,0]
[null,null,"4200","Urarina",null,0,0]
[null,null,"4300","Wampis",null,0,0]
[null,null,"4400","Yagua",null,0,0]
[null,null,"4500","Yaminahua",null,0,0]
[null,null,"4600","Yanesha",null,0,0]
[null,null,"4700","Yine",null,0,0]
[null,null,"4800","Nahua",null,0,0]
[null,null,"5100","Alemán",null,0,0]
[null,null,"5200","Inglés",null,0,0]
[null,null,"5300","Italiano",null,0,0]
[null,null,"5400","Japonés",null,0,0]
[null,null,"5500","Portugués",null,0,0]
[null,null,"5600","Ruso",null,0,0]
[null,null,"5700","Francés",null,0,0]
[null,null,"5800","Otra lengua extranjera",null,0,0]
[null,null,{"$f":"LEFT(AC280,4)","v":""}]
[]
[null,null,208,"NÚMERO TOTAL DE SECCIONES POR CICLO, SEGÚN TURNO"]
[]
[null,null,"TURNO",null,"TOTAL",null,"CICLO"]
[null,null,null,null,null,null,"I","II","III","IV","V","VI","VII","VIII","IX","X"]
["00",null,"TOTAL",null,{"$f":"SUM(G286:P286)","v":0},null,{"$f":"SUM(G287:G289)","v":0},{"$f":"SUM(H287:H289)","v":0},{"$f":"SUM(I287:I289)","v":0},0,0,0,0,0,0,{"$f":"SUM(P287:P289)","v":0}]
["01",null,"Mañana",null,{"$f":"SUM(G287:P287)","v":0}]
["02",null,"Tarde",null,{"$f":"SUM(G288:P288)","v":0}]
["03",null,"Noche",null,{"$f":"SUM(G289:P289)","v":0}]
[null,null,"Solo registre el número de secciones que tiene, por ciclo de estudio según turno"]

{"sheet":"C300","index":3,"n_rows":520,"n_cols":78,"rows_kept":520,"cut":false,"hidden":true,"merged":[[15,60,17,60],[15,50,15,53],[15,29,17,29],[7,10,7,21],[16,53,17,53],[14,50,14,53],[14,14,14,15],[15,39,17,39],[15,40,16,49],[15,31,17,31],[15,22,17,22],[15,25,17,25],[15,10,17,10],[15,19,17,19],[15,18,17,18],[15,16,17,16],[6,10,6,21],[14,40,14,49],[16,54,17,54],[16,50,17,50],[16,51,17,51],[16,52,17,52],[14,54,14,56],[15,34,17,34],[15,35,17,35],[15,32,17,32],[15,33,17,33],[15,54,15,56],[16,55,16,56],[15,36,17,36],[15,37,17,37],[15,38,17,38],[15,17,17,17],[15,14,15,15],[15,11,17,11],[15,12,17,12],[15,13,17,13],[15,57,17,57],[15,58,17,58],[15,59,17,59],[15,20,16,21],[15,24,17,24],[15,23,17,23],[15,26,17,26],[15,30,17,30],[16,28,17,28],[16,27,17,27],[15,27,15,28]]}
[]
[null,null,null,null,null,null,null,null,null,null,"CENSO EDUCATIVO 2024"]
[null,null,null,null,null,null,null,null,null,null,"MATRÍCULA, DOCENTES Y RECURSOS"]
[]
["PERSONAL",{"$f":"N10+U10","v":0}]
[]
["DOCENTES",{"$f":"COUNTIF(Q19:Q518,\"01: Docente\")","v":0},null,null,null,null,null,null,null,null,"300. PERSONAL DOCENTE Y ADMINISTRATIVO"]
["ADMINISTRATIVOS",{"$f":"COUNTIF(Q19:Q518,\"02: Administrativo\")","v":0},null,null,null,null,null,null,null,null,"En esta tabla, REGISTRE a todo el personal docente, auxiliares de educación y personal administrativo que se encuentre laborando en el servicio/nivel educativo durante el periodo\nde reporte del censo educativo. (EXCLUYA al personal que se encuentre haciendo uso de licencia y a los que han sido destacados a otra IE/DRE/UGEL)"]
[]
["DOCENTES DE AULA",{"$f":"COUNTIF(AJ19:AJ518,\"15: (111)-Docente por horas\")","v":0},null,null,null,null,null,null,null,null,null,null,"TOTAL DOCENTES : ",null,null,null,null,null,null,"ADMINISTRATIVOS : "]
["DOCENTES CON SECCIÓN",{"$f":"COUNTIF(AN19:AN518,\"SI\")","v":0}]
[null,{"$f":"B7+B8","v":0},null,null,null,null,null,null,null,null,"A continuación registre a todo el personal que desempeñe funciones docentes en el Servicio/Nivel educativo: Directivos con o sin aula a cargo, docentes de aula, jefes o jerárquicos"]
["DOCENTES LENGUA ORIGINARIA",{"$f":"SUM(H19:H518)","v":0},null,null,null,null,null,null,null,null,"Documentos fuente: Legajo de personal y CAP de la institución educativa."]
[null,null,3,4,5,6,7,8,9]
[null,null,null,null,null,null,null,null,null,null,null,301.10000000000002,301.2,301.3,302,null,303,304,305,306,null,307,308,309,310,311,312,313,314,315,316,317,318,319,320,321,322,323,324,325,326,null,null,null,null,null,null,null,null,null,327,null,null,null,328,null,null,329,330.1,330.2,330.3]
["GESTIÓN",{"$f":"IF(OR('C100'!G24=\"X\",'C100'!J24=\"X\"),1,IF('C100'!M24=\"X\",3,\"\"))","v":""},null,null,null,null,null,null,null,null,"Nº","Apellido Paterno","Apellido Materno","Nombres","Documento de Identidad",null,"Tipo de Personal","Edad","Sexo","¿Cuál es la lengua materna con la  que aprendió a hablar en su niñez?","Además de la lengua materna con la cual aprendió a hablar en su niñez\n¿Habla alguna otra lengua?",null,"Ud. vive en el mismo distrito donde labora\n\nSI - NO","Fuente de\nfinanciamiento","Condición laboral","Modalidad de contrato","Máximo nivel educativo\nalcanzado","Solo si marcó el COD. 01, 02 o 03 en la pregunta 312",null,"Segunda Especialidad","Estudios de Postgrado\nen Pedagogía","Tiempo de servicio\n(en años)","Años de experiencia laboral","Años de experiencia laboral en este servicio/nivel educativo","Escala Magisterial","Función o cargo","Situación en el cargo directivo"," Licencia o Destaque","Jornada laboral según Nombramiento o Contrato","¿ Tiene secciones a cargo ?","Ciclos atendidos\nmarque con una \"X\" según corresponda",null,null,null,null,null,null,null,null,null,"Conocimientos de Inglés",null,null,null,"Certificación de Inglés",null,null,"¿Atiende a estudiantes con NEE asociadas a discapacidad?","\n¿Presenta alguna discapa cidad?","Solo si respondió SI en la pregunta 330.1 ¿Cúal es el tipo de discapacidad?","¿Ha recibido asistencia y orientación para la atención educativa de estudiantes con discapacidad de parte del equipo de (SAEV)?"]
[null,null,"Exp1","Exp2","Exp3","Exp4","Exp5","Exp6","Exp7",null,null,null,null,null,302.10000000000002,302.2,null,null,null,null,null,null,null,null,null,null,null,"Especialidad Pedagógica\nque ha estudiado","¿En qué tipo de institución obtuvo su formación pedagógica?",null,null,null,null,null,null,null,null,null,null,null,null,null,null,null,null,null,null,null,null,null,"No Sabe","Habla","Lee","Escribe","No Tiene","Si Tiene"]
["302.1 Tipo de documento de Identidad","313. Tipo de inst. donde estudio","Corr","Escala","Gest","Secc","Tipo Pers","Leng","Fmt",null,null,null,null,null,"Tipo","Número",null,null,null,null,"SI - NO","Solo si repondio “SI”",null,null,null,null,null,null,null,null,null,null,null,null,null,null,null,null,null,null,"I","II","III","IV","V","VI","VII","VIII","IX","X",null,null,null,null,null,"Nacional","Interna- cional"]
["01: DNI.","01: IESP (Público)",1,{"$f":"IF(AND(LEFT(Q19,2)=\"01\",LEFT(X19,2)=\"01\",LEFT(Y19,2)=\"01\",E19=1),1,0)","v":0},{"$f":"$B$16","v":""},{"$f":"COUNTIF(AO19:AX19,\"X\")","v":0},{"$f":"IF(Q19<>\"\",VALUE(LEFT(Q19,2)),0)","v":0},{"$f":"IF(AND($G19=1,UPPER($U19)=\"SI\"),IF($V19<>\"\",IF(AND(VALUE(LEFT($V19,4))>100,VALUE(LEFT($V19,4))<5000),1,0),0),0)","v":0},{"$f":"IF(K19<>\"\",1,0)","v":0},null,{"$f":"IF(C19<=$B$5,C19,\"\")","v":""},null,null,null,null,null,null,null,null,null,null,null,null,null,null,null,null,null,null,null,null,null,null,null,null,null,null,null,null,null,null,null,null,null,null,null,null,null,null,null,null,null,null,null,null,null,null,null,null,null,null,null,"","","","","","","","","","","","","","","",""]
["02: Carnet Ext.","02: IESP (Privado)",2,0,{"$f":"$B$16","v":""},{"$f":"COUNTIF(AO20:AX20,\"X\")","v":0},{"$f":"IF(Q20<>\"\",VALUE(LEFT(Q20,2)),0)","v":0},{"$f":"IF(AND($G20=1,UPPER($U20)=\"SI\"),IF($V20<>\"\",IF(AND(VALUE(LEFT($V20,4))>100,VALUE(LEFT($V20,4))<5000),1,0),0),0)","v":0},0,null,{"$f":"IF(C20<=$B$5,C20,\"\")","v":""},null,null,null,null,null,null,null,null,null,null,null,null,null,null,null,null,null,null,null,null,null,null,null,null,null,null,null,null,null,null,null,null,null,null,null,null,null,null,null,null,null,null,null,null,null,null,null,null,null,null,null,"","","","","","","","","","","","","","","",""]
["03: Pasaporte","03: Universidad Privada",3,0,"",0,0,0,0,null,{"$f":"IF(C21<=$B$5,C21,\"\")","v":""},null,null,null,null,null,null,null,null,null,null,null,null,null,null,null,null,null,null,null,null,null,null,null,null,null,null,null,null,null,null,null,null,null,null,null,null,null,null,null,null,null,null,null,null,null,null,null,null,null,null,null,"","","","","","","","","","","","","","","",""]
[null,"04: Universidad Pública",4,0,"",0,0,0,0,null,"",null,null,null,null,null,null,null,null,null,null,null,null,null,null,null,null,null,null,null,null,null,null,null,null,null,null,null,null,null,null,null,null,null,null,null,null,null,null,null,null,null,null,null,null,null,null,null,null,null,null,null,"","","","","","","","","","","","","","","",""]
["303. Tipo de Personal","05: Sin Formación Pedagógica",5,0,"",0,0,0,0,null,"",null,null,null,null,null,null,null,null,null,null,null,null,null,null,null,null,null,null,null,null,null,null,null,null,null,null,null,null,null,null,null,null,null,null,null,null,null,null,null,null,null,null,null,null,null,null,null,null,null,null,null,{"$f":"IF($AA23<>\"\",IF(OR(LEFT($AA23,2)=\"01\",LEFT($AA23,2)=\"02\",LEFT($AA23,2)=\"04\",LEFT($AA23,2)=\"05\"),1,0),\"\")","v":""}]
["01: Docente",null,6,0,"",0,0,0,0,null,"",null,null,null,null,null,null,null,null,null,null,null,null,null,null,null,null,null,null,null,null,null,null,null,null,null,null,null,null,null,null,null,null,null,null,null,null,null,null,null,null,null,null,null,null,null,null,null,null,null,null,null,""]
["02: Administrativo","314. Segunda Especialidad",7,0,"",0,0,0,0,null,"",null,null,null,null,null,null,null,null,null,null,null,null,null,null,null,null,null,null,null,null,null,null,null,null,null,null,null,null,null,null,null,null,null,null,null,null,null,null,null,null,null,null,null,null,null,null,null,null,null,null,null,""]
["03: Aux. de Educación","Utilice las especialidades de la tabla de códigos 313.",8,0,"",0,0,0,0,null,"",null,null,null,null,null,null,null,null,null,null,null,null,null,null,null,null,null,null,null,null,null,null,null,null,null,null,null,null,null,null,null,null,null,null,null,null,null,null,null,null,null,null,null,null,null,null,null,null,null,null,null,""]
[null,null,9,0,"",0,0,0,0,null,"",null,null,null,null,null,null,null,null,null,null,null,null,null,null,null,null,null,null,null,null,null,null,null,null,null,null,null,null,null,null,null,null,null,null,null,null,null,null,null,null,null,null,null,null,null,null,null,null,null,null,null,""]
["305. Sexo","315. Estudios de Postgrado en Pedagogía",10,0,"",0,0,0,0,null,"",null,null,null,null,null,null,null,null,null,null,null,null,null,null,null,null,null,null,null,null,null,null,null,null,null,null,null,null,null,null,null,null,null,null,null,null,null,null,null,null,null,null,null,null,null,null,null,null,null,null,null,""]
["Hombre","Estudios de Maestría y doctorado",11,0,"",0,0,0,0,null,"",null,null,null,null,null,null,null,null,null,null,null,null,null,null,null,null,null,null,null,null,null,null,null,null,null,null,null,null,null,null,null,null,null,null,null,null,null,null,null,null,null,null,null,null,null,null,null,null,null,null,null,""]
["Mujer","01: Maestria concluida con grado",12,0,"",0,0,0,0,null,"",null,null,null,null,null,null,null,null,null,null,null,null,null,null,null,null,null,null,null,null,null,null,null,null,null,null,null,null,null,null,null,null,null,null,null,null,null,null,null,null,null,null,null,null,null,null,null,null,null,null,null,""]
[null,"02: Maestria concluida sin grado",13,0,"",0,0,0,0,null,"",null,null,null,null,null,null,null,null,null,null,null,null,null,null,null,null,null,null,null,null,null,null,null,null,null,null,null,null,null,null,null,null,null,null,null,null,null,null,null,null,null,null,null,null,null,null,null,null,null,null,null,""]
["306. Lengua Materna","03: Maestria en proceso",14,0,"",0,0,0,0,null,"",null,null,null,null,null,null,null,null,null,null,null,null,null,null,null,null,null,null,null,null,null,null,null,null,null,null,null,null,null,null,null,null,null,null,null,null,null,null,null,null,null,null,null,null,null,null,null,null,null,null,null,""]
["0100: Castellano","04: Doctorado concluido con grado",15,0,"",0,0,0,0,null,"",null,null,null,null,null,null,null,null,null,null,null,null,null,null,null,null,null,null,null,null,null,null,null,null,null,null,null,null,null,null,null,null,null,null,null,null,null,null,null,null,null,null,null,null,null,null,null,null,null,null,null,""]
["0200: Achuar","05: Doctorado concluido sin grado",16,0,"",0,0,0,0,null,"",null,null,null,null,null,null,null,null,null,null,null,null,null,null,null,null,null,null,null,null,null,null,null,null,null,null,null,null,null,null,null,null,null,null,null,null,null,null,null,null,null,null,null,null,null,null,null,null,null,null,null,""]
["0300: Aimara","06: Doctorado en proceso",17,0,"",0,0,0,0,null,"",null,null,null,null,null,null,null,null,null,null,null,null,null,null,null,null,null,null,null,null,null,null,null,null,null,null,null,null,null,null,null,null,null,null,null,null,null,null,null,null,null,null,null,null,null,null,null,null,null,null,null,""]
["0400: Amahuaca","07: Sin Postgrado",18,0,"",0,0,0,0,null,"",null,null,null,null,null,null,null,null,null,null,null,null,null,null,null,null,null,null,null,null,null,null,null,null,null,null,null,null,null,null,null,null,null,null,null,null,null,null,null,null,null,null,null,null,null,null,null,null,null,null,null,""]
["0500: Arabela",null,19,0,"",0,0,0,0,null,"",null,null,null,null,null,null,null,null,null,null,null,null,null,null,null,null,null,null,null,null,null,null,null,null,null,null,null,null,null,null,null,null,null,null,null,null,null,null,null,null,null,null,null,null,null,null,null,null,null,null,null,""]
["0600: Asháninka","317. Tiempo de Servicio",20,0,"",0,0,0,0,null,"",null,null,null,null,null,null,null,null,null,null,null,null,null,null,null,null,null,null,null,null,null,null,null,null,null,null,null,null,null,null,null,null,null,null,null,null,null,null,null,null,null,null,null,null,null,null,null,null,null,null,null,""]
["0610: Asheninka","Solo personal Nombrado.",21,0,"",0,0,0,0,null,"",null,null,null,null,null,null,null,null,null,null,null,null,null,null,null,null,null,null,null,null,null,null,null,null,null,null,null,null,null,null,null,null,null,null,null,null,null,null,null,null,null,null,null,null,null,null,null,null,null,null,null,""]
["0700: Awajún","Tiempo contado expresado en años desde su fecha de Nombramiento",22,0,"",0,0,0,0,null,"",null,null,null,null,null,null,null,null,null,null,null,null,null,null,null,null,null,null,null,null,null,null,null,null,null,null,null,null,null,null,null,null,null,null,null,null,null,null,null,null,null,null,null,null,null,null,null,null,null,null,null,""]
["0800: Bora",null,23,0,"",0,0,0,0,null,"",null,null,null,null,null,null,null,null,null,null,null,null,null,null,null,null,null,null,null,null,null,null,null,null,null,null,null,null,null,null,null,null,null,null,null,null,null,null,null,null,null,null,null,null,null,null,null,null,null,null,null,""]
["0900: Kapanawa","318. Años de Experiencia Laboral",24,0,"",0,0,0,0,null,"",null,null,null,null,null,null,null,null,null,null,null,null,null,null,null,null,null,null,null,null,null,null,null,null,null,null,null,null,null,null,null,null,null,null,null,null,null,null,null,null,null,null,null,null,null,null,null,null,null,null,null,""]
["1000: Cashinahua","Registre el total de años que tiene como experiencia",25,0,"",0,0,0,0,null,"",null,null,null,null,null,null,null,null,null,null,null,null,null,null,null,null,null,null,null,null,null,null,null,null,null,null,null,null,null,null,null,null,null,null,null,null,null,null,null,null,null,null,null,null,null,null,null,null,null,null,null,""]
["1100: Kawki","en el Tipo de Personal que se está registrando (Tabla 301.)",26,0,"",0,0,0,0,null,"",null,null,null,null,null,null,null,null,null,null,null,null,null,null,null,null,null,null,null,null,null,null,null,null,null,null,null,null,null,null,null,null,null,null,null,null,null,null,null,null,null,null,null,null,null,null,null,null,null,null,null,""]
["1200: Chamikuro",null,27,0,"",0,0,0,0,null,"",null,null,null,null,null,null,null,null,null,null,null,null,null,null,null,null,null,null,null,null,null,null,null,null,null,null,null,null,null,null,null,null,null,null,null,null,null,null,null,null,null,null,null,null,null,null,null,null,null,null,null,""]
["1300: Ese eja","319. Años de experiencia laboral en este servicio/ nivel educativo",28,0,"",0,0,0,0,null,"",null,null,null,null,null,null,null,null,null,null,null,null,null,null,null,null,null,null,null,null,null,null,null,null,null,null,null,null,null,null,null,null,null,null,null,null,null,null,null,null,null,null,null,null,null,null,null,null,null,null,null,""]
["1400: Harakbut","Anote el N° de años de experiencia prestando servicios",29,0,"",0,0,0,0,null,"",null,null,null,null,null,null,null,null,null,null,null,null,null,null,null,null,null,null,null,null,null,null,null,null,null,null,null,null,null,null,null,null,null,null,null,null,null,null,null,null,null,null,null,null,null,null,null,null,null,null,null,""]
["1500: Iñapari","en este servicio/nivel educativo por el tipo de personal",30,0,"",0,0,0,0,null,"",null,null,null,null,null,null,null,null,null,null,null,null,null,null,null,null,null,null,null,null,null,null,null,null,null,null,null,null,null,null,null,null,null,null,null,null,null,null,null,null,null,null,null,null,null,null,null,null,null,null,null,""]
["1600: Ikuitu","que se está registrando (Tabla 301.)",31,0,"",0,0,0,0,null,"",null,null,null,null,null,null,null,null,null,null,null,null,null,null,null,null,null,null,null,null,null,null,null,null,null,null,null,null,null,null,null,null,null,null,null,null,null,null,null,null,null,null,null,null,null,null,null,null,null,null,null,""]
["1700: Iskonawa",null,32,0,"",0,0,0,0,null,"",null,null,null,null,null,null,null,null,null,null,null,null,null,null,null,null,null,null,null,null,null,null,null,null,null,null,null,null,null,null,null,null,null,null,null,null,null,null,null,null,null,null,null,null,null,null,null,null,null,null,null,""]
["1800: Jaqaru","319. Escala Magisterial",33,0,"",0,0,0,0,null,"",null,null,null,null,null,null,null,null,null,null,null,null,null,null,null,null,null,null,null,null,null,null,null,null,null,null,null,null,null,null,null,null,null,null,null,null,null,null,null,null,null,null,null,null,null,null,null,null,null,null,null,""]
["1900: Kakataibo","Complete los datos de Escala Magisterial, según corresponda",34,0,"",0,0,0,0,null,"",null,null,null,null,null,null,null,null,null,null,null,null,null,null,null,null,null,null,null,null,null,null,null,null,null,null,null,null,null,null,null,null,null,null,null,null,null,null,null,null,null,null,null,null,null,null,null,null,null,null,null,""]
["2000: Kakinte","01: Primera",35,0,"",0,0,0,0,null,"",null,null,null,null,null,null,null,null,null,null,null,null,null,null,null,null,null,null,null,null,null,null,null,null,null,null,null,null,null,null,null,null,null,null,null,null,null,null,null,null,null,null,null,null,null,null,null,null,null,null,null,""]
["2110: Kandozi-chapra (chapra)","02: Segunda",36,0,"",0,0,0,0,null,"",null,null,null,null,null,null,null,null,null,null,null,null,null,null,null,null,null,null,null,null,null,null,null,null,null,null,null,null,null,null,null,null,null,null,null,null,null,null,null,null,null,null,null,null,null,null,null,null,null,null,null,""]
["2120: Kandozi-chapra (kandozi)","03: Tercera",37,0,"",0,0,0,0,null,"",null,null,null,null,null,null,null,null,null,null,null,null,null,null,null,null,null,null,null,null,null,null,null,null,null,null,null,null,null,null,null,null,null,null,null,null,null,null,null,null,null,null,null,null,null,null,null,null,null,null,null,""]
["2200: Kukama-kukamiria","04: Cuarta",38,0,"",0,0,0,0,null,"",null,null,null,null,null,null,null,null,null,null,null,null,null,null,null,null,null,null,null,null,null,null,null,null,null,null,null,null,null,null,null,null,null,null,null,null,null,null,null,null,null,null,null,null,null,null,null,null,null,null,null,""]
["2300: Madija","05: Quinta",39,0,"",0,0,0,0,null,"",null,null,null,null,null,null,null,null,null,null,null,null,null,null,null,null,null,null,null,null,null,null,null,null,null,null,null,null,null,null,null,null,null,null,null,null,null,null,null,null,null,null,null,null,null,null,null,null,null,null,null,""]
["2400: Maijiki","06: Sexta",40,0,"",0,0,0,0,null,"",null,null,null,null,null,null,null,null,null,null,null,null,null,null,null,null,null,null,null,null,null,null,null,null,null,null,null,null,null,null,null,null,null,null,null,null,null,null,null,null,null,null,null,null,null,null,null,null,null,null,null,""]
["2500: Matsés","07: Séptima",41,0,"",0,0,0,0,null,"",null,null,null,null,null,null,null,null,null,null,null,null,null,null,null,null,null,null,null,null,null,null,null,null,null,null,null,null,null,null,null,null,null,null,null,null,null,null,null,null,null,null,null,null,null,null,null,null,null,null,null,""]
["2600: Matsigenka","08: Octava",42,0,"",0,0,0,0,null,"",null,null,null,null,null,null,null,null,null,null,null,null,null,null,null,null,null,null,null,null,null,null,null,null,null,null,null,null,null,null,null,null,null,null,null,null,null,null,null,null,null,null,null,null,null,null,null,null,null,null,null,""]
["2700: Munichi","09: Sin Escala",43,0,"",0,0,0,0,null,"",null,null,null,null,null,null,null,null,null,null,null,null,null,null,null,null,null,null,null,null,null,null,null,null,null,null,null,null,null,null,null,null,null,null,null,null,null,null,null,null,null,null,null,null,null,null,null,null,null,null,null,""]
["2800: Murui-muinani",null,44,0,"",0,0,0,0,null,"",null,null,null,null,null,null,null,null,null,null,null,null,null,null,null,null,null,null,null,null,null,null,null,null,null,null,null,null,null,null,null,null,null,null,null,null,null,null,null,null,null,null,null,null,null,null,null,null,null,null,null,""]
["2900: Matsigenka-montetokunirira","320. Función o Cargo",45,0,"",0,0,0,0,null,"",null,null,null,null,null,null,null,null,null,null,null,null,null,null,null,null,null,null,null,null,null,null,null,null,null,null,null,null,null,null,null,null,null,null,null,null,null,null,null,null,null,null,null,null,null,null,null,null,null,null,null,""]
["3000: Nomatsigenga","(Desempeñado a la fecha de reporte)",46,0,"",0,0,0,0,null,"",null,null,null,null,null,null,null,null,null,null,null,null,null,null,null,null,null,null,null,null,null,null,null,null,null,null,null,null,null,null,null,null,null,null,null,null,null,null,null,null,null,null,null,null,null,null,null,null,null,null,null,""]
["3100: Ocaina","Docentes",47,0,"",0,0,0,0,null,"",null,null,null,null,null,null,null,null,null,null,null,null,null,null,null,null,null,null,null,null,null,null,null,null,null,null,null,null,null,null,null,null,null,null,null,null,null,null,null,null,null,null,null,null,null,null,null,null,null,null,null,""]
["3200: Omagua","01: (101)-Director General",48,0,"",0,0,0,0,null,"",null,null,null,null,null,null,null,null,null,null,null,null,null,null,null,null,null,null,null,null,null,null,null,null,null,null,null,null,null,null,null,null,null,null,null,null,null,null,null,null,null,null,null,null,null,null,null,null,null,null,null,""]
["3310: Quechua amazónico (Kichwa)","02: (103)-Sub Director",49,0,"",0,0,0,0,null,"",null,null,null,null,null,null,null,null,null,null,null,null,null,null,null,null,null,null,null,null,null,null,null,null,null,null,null,null,null,null,null,null,null,null,null,null,null,null,null,null,null,null,null,null,null,null,null,null,null,null,null,""]
["3321: Quechua central (Ancash)","03: (129)-Jefe de departamento",50,0,"",0,0,0,0,null,"",null,null,null,null,null,null,null,null,null,null,null,null,null,null,null,null,null,null,null,null,null,null,null,null,null,null,null,null,null,null,null,null,null,null,null,null,null,null,null,null,null,null,null,null,null,null,null,null,null,null,null,""]
["3322: Quechua central (Huánuco)","04: (130)-Jefe de área / coordinador",51,0,"",0,0,0,0,null,"",null,null,null,null,null,null,null,null,null,null,null,null,null,null,null,null,null,null,null,null,null,null,null,null,null,null,null,null,null,null,null,null,null,null,null,null,null,null,null,null,null,null,null,null,null,null,null,null,null,null,null,""]
["3323: Quechua central (Wanka)","05: (124)-Jefe de unidad administrativa",52,0,"",0,0,0,0,null,"",null,null,null,null,null,null,null,null,null,null,null,null,null,null,null,null,null,null,null,null,null,null,null,null,null,null,null,null,null,null,null,null,null,null,null,null,null,null,null,null,null,null,null,null,null,null,null,null,null,null,null,""]
["3324: Quechua central (Pasco)","06: (123)-Jefe de unidad académica",53,0,"",0,0,0,0,null,"",null,null,null,null,null,null,null,null,null,null,null,null,null,null,null,null,null,null,null,null,null,null,null,null,null,null,null,null,null,null,null,null,null,null,null,null,null,null,null,null,null,null,null,null,null,null,null,null,null,null,null,""]
["3331: Quechua norteño (Cajamarca)","07: (125)-Jefe de unidad académica inicial",54,0,"",0,0,0,0,null,"",null,null,null,null,null,null,null,null,null,null,null,null,null,null,null,null,null,null,null,null,null,null,null,null,null,null,null,null,null,null,null,null,null,null,null,null,null,null,null,null,null,null,null,null,null,null,null,null,null,null,null,""]
["3332: Quechua norteño (Inkawasi Kañaris)","08: (126)-Jefe de unidad académica Primaria",55,0,"",0,0,0,0,null,"",null,null,null,null,null,null,null,null,null,null,null,null,null,null,null,null,null,null,null,null,null,null,null,null,null,null,null,null,null,null,null,null,null,null,null,null,null,null,null,null,null,null,null,null,null,null,null,null,null,null,null,""]
["3341: Quechua sureño (Chanka)","09: (127)-Jefe de unidad académica Secundaria",56,0,"",0,0,0,0,null,"",null,null,null,null,null,null,null,null,null,null,null,null,null,null,null,null,null,null,null,null,null,null,null,null,null,null,null,null,null,null,null,null,null,null,null,null,null,null,null,null,null,null,null,null,null,null,null,null,null,null,null,""]
["3342: Quechua sureño (Collao)","10: (128)-Jefe de área de formación artística",57,0,"",0,0,0,0,null,"",null,null,null,null,null,null,null,null,null,null,null,null,null,null,null,null,null,null,null,null,null,null,null,null,null,null,null,null,null,null,null,null,null,null,null,null,null,null,null,null,null,null,null,null,null,null,null,null,null,null,null,""]
["3400: Resígaro","11: (131)-Jefe de taller",58,0,"",0,0,0,0,null,"",null,null,null,null,null,null,null,null,null,null,null,null,null,null,null,null,null,null,null,null,null,null,null,null,null,null,null,null,null,null,null,null,null,null,null,null,null,null,null,null,null,null,null,null,null,null,null,null,null,null,null,""]
["3500: Secoya","12: (108)-Coordinador de Taller",59,0,"",0,0,0,0,null,"",null,null,null,null,null,null,null,null,null,null,null,null,null,null,null,null,null,null,null,null,null,null,null,null,null,null,null,null,null,null,null,null,null,null,null,null,null,null,null,null,null,null,null,null,null,null,null,null,null,null,null,""]
["3600: Sharanahua","13: (132)-Secretario General",60,0,"",0,0,0,0,null,"",null,null,null,null,null,null,null,null,null,null,null,null,null,null,null,null,null,null,null,null,null,null,null,null,null,null,null,null,null,null,null,null,null,null,null,null,null,null,null,null,null,null,null,null,null,null,null,null,null,null,null,""]
["3700: Shawi","14: (137)-Secretario Académico",61,0,"",0,0,0,0,null,"",null,null,null,null,null,null,null,null,null,null,null,null,null,null,null,null,null,null,null,null,null,null,null,null,null,null,null,null,null,null,null,null,null,null,null,null,null,null,null,null,null,null,null,null,null,null,null,null,null,null,null,""]
["3800: Shipibo-Konibo","15: (111)-Docente por horas",62,0,"",0,0,0,0,null,"",null,null,null,null,null,null,null,null,null,null,null,null,null,null,null,null,null,null,null,null,null,null,null,null,null,null,null,null,null,null,null,null,null,null,null,null,null,null,null,null,null,null,null,null,null,null,null,null,null,null,null,""]
["3900: Shiwilu","16: (136)-Asistente",63,0,"",0,0,0,0,null,"",null,null,null,null,null,null,null,null,null,null,null,null,null,null,null,null,null,null,null,null,null,null,null,null,null,null,null,null,null,null,null,null,null,null,null,null,null,null,null,null,null,null,null,null,null,null,null,null,null,null,null,""]
["4000: Taushiro","17: (110)-Coordinador",64,0,"",0,0,0,0,null,"",null,null,null,null,null,null,null,null,null,null,null,null,null,null,null,null,null,null,null,null,null,null,null,null,null,null,null,null,null,null,null,null,null,null,null,null,null,null,null,null,null,null,null,null,null,null,null,null,null,null,null,""]
["4100: Ticuna","18: (139)-Otro docente o jerarquico",65,{"$f":"IF(AND(LEFT(Q83,2)=\"01\",LEFT(X83,2)=\"01\",LEFT(Y83,2)=\"01\",E83=1),1,0)","v":0},"",0,0,0,{"$f":"IF(K83<>\"\",1,0)","v":0},null,"",null,null,null,null,null,null,null,null,null,null,null,null,null,null,null,null,null,null,null,null,null,null,null,null,null,null,null,null,null,null,null,null,null,null,null,null,null,null,null,null,null,null,null,null,null,null,null,null,null,null,null,""]
["4200: Urarina",null,66,0,{"$f":"$B$16","v":""},{"$f":"COUNTIF(AO84:AX84,\"X\")","v":0},{"$f":"IF(Q84<>\"\",VALUE(LEFT(Q84,2)),0)","v":0},{"$f":"IF(AND($G84=1,UPPER($U84)=\"SI\"),IF($V84<>\"\",IF(AND(VALUE(LEFT($V84,4))>100,VALUE(LEFT($V84,4))<5000),1,0),0),0)","v":0},0,null,"",null,null,null,null,null,null,null,null,null,null,null,null,null,null,null,null,null,null,null,null,null,null,null,null,null,null,null,null,null,null,null,null,null,null,null,null,null,null,null,null,null,null,null,null,null,null,null,null,null,null,null,{"$f":"IF($AA84<>\"\",IF(OR(LEFT($AA84,2)=\"01\",LEFT($AA84,2)=\"02\",LEFT($AA84,2)=\"04\",LEFT($AA84,2)=\"05\"),1,0),\"\")","v":""}]
["4300: Wampis",null,67,0,"",0,0,0,0,null,{"$f":"IF(C85<=$B$5,C85,\"\")","v":""},null,null,null,null,null,null,null,null,null,null,null,null,null,null,null,null,null,null,null,null,null,null,null,null,null,null,null,null,null,null,null,null,null,null,null,null,null,null,null,null,null,null,null,null,null,null,null,null,null,null,null,""]
["4400: Yagua","Administrativos",68,0,"",0,0,0,0,null,"",null,null,null,null,null,null,null,null,null,null,null,null,null,null,null,null,null,null,null,null,null,null,null,null,null,null,null,null,null,null,null,null,null,null,null,null,null,null,null,null,null,null,null,null,null,null,null,null,null,null,null,""]
["4500: Yaminahua","19: (534)-Administrador",69,0,"",0,0,0,0,null,"",null,null,null,null,null,null,null,null,null,null,null,null,null,null,null,null,null,null,null,null,null,null,null,null,null,null,null,null,null,null,null,null,null,null,null,null,null,null,null,null,null,null,null,null,null,null,null,null,null,null,null,""]
["4600: Yanesha","20: (535)-Contador",70,0,"",0,0,0,0,null,"",null,null,null,null,null,null,null,null,null,null,null,null,null,null,null,null,null,null,null,null,null,null,null,null,null,null,null,null,null,null,null,null,null,null,null,null,null,null,null,null,null,null,null,null,null,null,null,null,null,null,null,""]
["4700: Yine","21: (501)-Psicólogo",71,0,"",0,0,0,0,null,"",null,null,null,null,null,null,null,null,null,null,null,null,null,null,null,null,null,null,null,null,null,null,null,null,null,null,null,null,null,null,null,null,null,null,null,null,null,null,null,null,null,null,null,null,null,null,null,null,null,null,null,""]
["4800: Nahua","22: (502)-Trabajo social / Servicio social",72,0,"",0,0,0,0,null,"",null,null,null,null,null,null,null,null,null,null,null,null,null,null,null,null,null,null,null,null,null,null,null,null,null,null,null,null,null,null,null,null,null,null,null,null,null,null,null,null,null,null,null,null,null,null,null,null,null,null,null,""]
["5100: Alemán","23: (503)-Personal de Salud",73,0,"",0,0,0,0,null,"",null,null,null,null,null,null,null,null,null,null,null,null,null,null,null,null,null,null,null,null,null,null,null,null,null,null,null,null,null,null,null,null,null,null,null,null,null,null,null,null,null,null,null,null,null,null,null,null,null,null,null,""]
["5200: Inglés","24: (537)-Guía intérprete de sordoceguera",74,0,"",0,0,0,0,null,"",null,null,null,null,null,null,null,null,null,null,null,null,null,null,null,null,null,null,null,null,null,null,null,null,null,null,null,null,null,null,null,null,null,null,null,null,null,null,null,null,null,null,null,null,null,null,null,null,null,null,null,""]
["5300: Italiano","25: (538)-Intérprete de Lengua de Señas Peruana",75,0,"",0,0,0,0,null,"",null,null,null,null,null,null,null,null,null,null,null,null,null,null,null,null,null,null,null,null,null,null,null,null,null,null,null,null,null,null,null,null,null,null,null,null,null,null,null,null,null,null,null,null,null,null,null,null,null,null,null,""]
["5400: Japonés","26: (539)-Modelo Lingüístio",76,0,"",0,0,0,0,null,"",null,null,null,null,null,null,null,null,null,null,null,null,null,null,null,null,null,null,null,null,null,null,null,null,null,null,null,null,null,null,null,null,null,null,null,null,null,null,null,null,null,null,null,null,null,null,null,null,null,null,null,""]
["5500: Portugués","27: (505)-Otro personal profesional",77,0,"",0,0,0,0,null,"",null,null,null,null,null,null,null,null,null,null,null,null,null,null,null,null,null,null,null,null,null,null,null,null,null,null,null,null,null,null,null,null,null,null,null,null,null,null,null,null,null,null,null,null,null,null,null,null,null,null,null,""]
["5600: Ruso","28: (506)-Auxiliar de Biblioteca",78,0,"",0,0,0,0,null,"",null,null,null,null,null,null,null,null,null,null,null,null,null,null,null,null,null,null,null,null,null,null,null,null,null,null,null,null,null,null,null,null,null,null,null,null,null,null,null,null,null,null,null,null,null,null,null,null,null,null,null,""]
["5700: Francés","29: (507)-Auxiliar de Laboratorio",79,0,"",0,0,0,0,null,"",null,null,null,null,null,null,null,null,null,null,null,null,null,null,null,null,null,null,null,null,null,null,null,null,null,null,null,null,null,null,null,null,null,null,null,null,null,null,null,null,null,null,null,null,null,null,null,null,null,null,null,""]
["5800: Otra lengua extranjera","30: (508)-Secretaria u Oficinista",80,0,"",0,0,0,0,null,"",null,null,null,null,null,null,null,null,null,null,null,null,null,null,null,null,null,null,null,null,null,null,null,null,null,null,null,null,null,null,null,null,null,null,null,null,null,null,null,null,null,null,null,null,null,null,null,null,null,null,null,""]
[null,"31: (536)-Bibliotecario",81,0,"",0,0,0,0,null,"",null,null,null,null,null,null,null,null,null,null,null,null,null,null,null,null,null,null,null,null,null,null,null,null,null,null,null,null,null,null,null,null,null,null,null,null,null,null,null,null,null,null,null,null,null,null,null,null,null,null,null,""]
["307. Otra Lengua","32: (512)-Personal de Servicio - Mantenimiento",82,0,"",0,0,0,0,null,"",null,null,null,null,null,null,null,null,null,null,null,null,null,null,null,null,null,null,null,null,null,null,null,null,null,null,null,null,null,null,null,null,null,null,null,null,null,null,null,null,null,null,null,null,null,null,null,null,null,null,null,""]
["De: todos","33: (513)-Personal de Servicio - Cocina",83,0,"",0,0,0,0,null,"",null,null,null,null,null,null,null,null,null,null,null,null,null,null,null,null,null,null,null,null,null,null,null,null,null,null,null,null,null,null,null,null,null,null,null,null,null,null,null,null,null,null,null,null,null,null,null,null,null,null,null,""]
[null,"34: (514)-Personal de Servicio - Limpieza",84,0,"",0,0,0,0,null,"",null,null,null,null,null,null,null,null,null,null,null,null,null,null,null,null,null,null,null,null,null,null,null,null,null,null,null,null,null,null,null,null,null,null,null,null,null,null,null,null,null,null,null,null,null,null,null,null,null,null,null,""]
["308. Fuente de Financiamiento","35: (516)-Personal de Servicio - Vigilante",85,0,"",0,0,0,0,null,"",null,null,null,null,null,null,null,null,null,null,null,null,null,null,null,null,null,null,null,null,null,null,null,null,null,null,null,null,null,null,null,null,null,null,null,null,null,null,null,null,null,null,null,null,null,null,null,null,null,null,null,""]
["01: Sector Educación","36: (517)-Personal de servicio - Otro",86,0,"",0,0,0,0,null,"",null,null,null,null,null,null,null,null,null,null,null,null,null,null,null,null,null,null,null,null,null,null,null,null,null,null,null,null,null,null,null,null,null,null,null,null,null,null,null,null,null,null,null,null,null,null,null,null,null,null,null,""]
["02: Otro sector público","37: (518)-Otro personal No profesional",87,0,"",0,0,0,0,null,"",null,null,null,null,null,null,null,null,null,null,null,null,null,null,null,null,null,null,null,null,null,null,null,null,null,null,null,null,null,null,null,null,null,null,null,null,null,null,null,null,null,null,null,null,null,null,null,null,null,null,null,""]
["03: Municipalidad",null,88,0,"",0,0,0,0,null,"",null,null,null,null,null,null,null,null,null,null,null,null,null,null,null,null,null,null,null,null,null,null,null,null,null,null,null,null,null,null,null,null,null,null,null,null,null,null,null,null,null,null,null,null,null,null,null,null,null,null,null,""]
["04: Gobierno Regional",null,89,0,"",0,0,0,0,null,"",null,null,null,null,null,null,null,null,null,null,null,null,null,null,null,null,null,null,null,null,null,null,null,null,null,null,null,null,null,null,null,null,null,null,null,null,null,null,null,null,null,null,null,null,null,null,null,null,null,null,null,""]
["05: APAFA","99: (999)-Auxiliar de Educación",90,0,"",0,0,0,0,null,"",null,null,null,null,null,null,null,null,null,null,null,null,null,null,null,null,null,null,null,null,null,null,null,null,null,null,null,null,null,null,null,null,null,null,null,null,null,null,null,null,null,null,null,null,null,null,null,null,null,null,null,""]
["06: Otra fuente Privada",null,91,0,"",0,0,0,0,null,"",null,null,null,null,null,null,null,null,null,null,null,null,null,null,null,null,null,null,null,null,null,null,null,null,null,null,null,null,null,null,null,null,null,null,null,null,null,null,null,null,null,null,null,null,null,null,null,null,null,null,null,""]
[null,null,92,0,"",0,0,0,0,null,"",null,null,null,null,null,null,null,null,null,null,null,null,null,null,null,null,null,null,null,null,null,null,null,null,null,null,null,null,null,null,null,null,null,null,null,null,null,null,null,null,null,null,null,null,null,null,null,null,null,null,null,""]
["309. Condición Laboral","SI / NO",93,0,"",0,0,0,0,null,"",null,null,null,null,null,null,null,null,null,null,null,null,null,null,null,null,null,null,null,null,null,null,null,null,null,null,null,null,null,null,null,null,null,null,null,null,null,null,null,null,null,null,null,null,null,null,null,null,null,null,null,""]
["01: Nombrado","SI",94,0,"",0,0,0,0,null,"",null,null,null,null,null,null,null,null,null,null,null,null,null,null,null,null,null,null,null,null,null,null,null,null,null,null,null,null,null,null,null,null,null,null,null,null,null,null,null,null,null,null,null,null,null,null,null,null,null,null,null,""]
["02: Contratado","NO",95,0,"",0,0,0,0,null,"",null,null,null,null,null,null,null,null,null,null,null,null,null,null,null,null,null,null,null,null,null,null,null,null,null,null,null,null,null,null,null,null,null,null,null,null,null,null,null,null,null,null,null,null,null,null,null,null,null,null,null,""]
["03: No aplica",null,96,0,"",0,0,0,0,null,"",null,null,null,null,null,null,null,null,null,null,null,null,null,null,null,null,null,null,null,null,null,null,null,null,null,null,null,null,null,null,null,null,null,null,null,null,null,null,null,null,null,null,null,null,null,null,null,null,null,null,null,""]
[null,null,97,0,"",0,0,0,0,null,"",null,null,null,null,null,null,null,null,null,null,null,null,null,null,null,null,null,null,null,null,null,null,null,null,null,null,null,null,null,null,null,null,null,null,null,null,null,null,null,null,null,null,null,null,null,null,null,null,null,null,null,""]
["310. Modalidad de Contrato",null,98,0,"",0,0,0,0,null,"",null,null,null,null,null,null,null,null,null,null,null,null,null,null,null,null,null,null,null,null,null,null,null,null,null,null,null,null,null,null,null,null,null,null,null,null,null,null,null,null,null,null,null,null,null,null,null,null,null,null,null,""]
["Contrato Público",null,99,0,"",0,0,0,0,null,"",null,null,null,null,null,null,null,null,null,null,null,null,null,null,null,null,null,null,null,null,null,null,null,null,null,null,null,null,null,null,null,null,null,null,null,null,null,null,null,null,null,null,null,null,null,null,null,null,null,null,null,""]
["01: A plazo fijo D. Leg. 728",null,100,0,"",0,0,0,0,null,"",null,null,null,null,null,null,null,null,null,null,null,null,null,null,null,null,null,null,null,null,null,null,null,null,null,null,null,null,null,null,null,null,null,null,null,null,null,null,null,null,null,null,null,null,null,null,null,null,null,null,null,""]
["02: Locación de Serv. / Honorarios",null,101,0,"",0,0,0,0,null,"",null,null,null,null,null,null,null,null,null,null,null,null,null,null,null,null,null,null,null,null,null,null,null,null,null,null,null,null,null,null,null,null,null,null,null,null,null,null,null,null,null,null,null,null,null,null,null,null,null,null,null,""]
["03: CAS - D. Leg. 1057",null,102,0,"",0,0,0,0,null,"",null,null,null,null,null,null,null,null,null,null,null,null,null,null,null,null,null,null,null,null,null,null,null,null,null,null,null,null,null,null,null,null,null,null,null,null,null,null,null,null,null,null,null,null,null,null,null,null,null,null,null,""]
["04: Contrato D. Leg. 276",null,103,0,"",0,0,0,0,null,"",null,null,null,null,null,null,null,null,null,null,null,null,null,null,null,null,null,null,null,null,null,null,null,null,null,null,null,null,null,null,null,null,null,null,null,null,null,null,null,null,null,null,null,null,null,null,null,null,null,null,null,""]
["05: Contrato Ley 30328","321. Situación en el Cargo Directivo",104,0,"",0,0,0,0,null,"",null,null,null,null,null,null,null,null,null,null,null,null,null,null,null,null,null,null,null,null,null,null,null,null,null,null,null,null,null,null,null,null,null,null,null,null,null,null,null,null,null,null,null,null,null,null,null,null,null,null,null,""]
["06: Contrato Ley 30512","01: Titular ratificado eval.2014",105,0,"",0,0,0,0,null,"",null,null,null,null,null,null,null,null,null,null,null,null,null,null,null,null,null,null,null,null,null,null,null,null,null,null,null,null,null,null,null,null,null,null,null,null,null,null,null,null,null,null,null,null,null,null,null,null,null,null,null,""]
["07: Otra modalidad","02: Titular designado eval. 2015, 2016 y 2018",106,0,"",0,0,0,0,null,"",null,null,null,null,null,null,null,null,null,null,null,null,null,null,null,null,null,null,null,null,null,null,null,null,null,null,null,null,null,null,null,null,null,null,null,null,null,null,null,null,null,null,null,null,null,null,null,null,null,null,null,""]
["Contrato Privado","03: Titular otro",107,0,"",0,0,0,0,null,"",null,null,null,null,null,null,null,null,null,null,null,null,null,null,null,null,null,null,null,null,null,null,null,null,null,null,null,null,null,null,null,null,null,null,null,null,null,null,null,null,null,null,null,null,null,null,null,null,null,null,null,""]
["08: A plazo indefinido (Permanente)","04: Encargado por función, sin doc. formal",108,0,"",0,0,0,0,null,"",null,null,null,null,null,null,null,null,null,null,null,null,null,null,null,null,null,null,null,null,null,null,null,null,null,null,null,null,null,null,null,null,null,null,null,null,null,null,null,null,null,null,null,null,null,null,null,null,null,null,null,""]
["09: Plazo fijo (Tiempo determinado)","05: Encargado",109,0,"",0,0,0,0,null,"",null,null,null,null,null,null,null,null,null,null,null,null,null,null,null,null,null,null,null,null,null,null,null,null,null,null,null,null,null,null,null,null,null,null,null,null,null,null,null,null,null,null,null,null,null,null,null,null,null,null,null,""]
["10: A tiempo parcial (por horas)",null,110,0,"",0,0,0,0,null,"",null,null,null,null,null,null,null,null,null,null,null,null,null,null,null,null,null,null,null,null,null,null,null,null,null,null,null,null,null,null,null,null,null,null,null,null,null,null,null,null,null,null,null,null,null,null,null,null,null,null,null,""]
["11: Locación de Serv. / Honorarios","322. Destaque o Licencia",111,0,"",0,0,0,0,null,"",null,null,null,null,null,null,null,null,null,null,null,null,null,null,null,null,null,null,null,null,null,null,null,null,null,null,null,null,null,null,null,null,null,null,null,null,null,null,null,null,null,null,null,null,null,null,null,null,null,null,null,""]
["07: Otra modalidad","01: Cubriendo una licencia",112,0,"",0,0,0,0,null,"",null,null,null,null,null,null,null,null,null,null,null,null,null,null,null,null,null,null,null,null,null,null,null,null,null,null,null,null,null,null,null,null,null,null,null,null,null,null,null,null,null,null,null,null,null,null,null,null,null,null,null,""]
[null,"02: De otra I.E./DRE/UGEL",113,0,"",0,0,0,0,null,"",null,null,null,null,null,null,null,null,null,null,null,null,null,null,null,null,null,null,null,null,null,null,null,null,null,null,null,null,null,null,null,null,null,null,null,null,null,null,null,null,null,null,null,null,null,null,null,null,null,null,null,""]
["311. Máximo Nivel Educativo Alcanzado","03: No Aplica",114,0,"",0,0,0,0,null,"",null,null,null,null,null,null,null,null,null,null,null,null,null,null,null,null,null,null,null,null,null,null,null,null,null,null,null,null,null,null,null,null,null,null,null,null,null,null,null,null,null,null,null,null,null,null,null,null,null,null,null,""]
["01: EP.Concluidos con título",null,115,0,"",0,0,0,0,null,"",null,null,null,null,null,null,null,null,null,null,null,null,null,null,null,null,null,null,null,null,null,null,null,null,null,null,null,null,null,null,null,null,null,null,null,null,null,null,null,null,null,null,null,null,null,null,null,null,null,null,null,""]
["02: EP.Concluidos sin título",null,116,0,"",0,0,0,0,null,"",null,null,null,null,null,null,null,null,null,null,null,null,null,null,null,null,null,null,null,null,null,null,null,null,null,null,null,null,null,null,null,null,null,null,null,null,null,null,null,null,null,null,null,null,null,null,null,null,null,null,null,""]
["03: EP.No concluidos","323. Jornada Laboral (Nombramiento / Contrato)",117,0,"",0,0,0,0,null,"",null,null,null,null,null,null,null,null,null,null,null,null,null,null,null,null,null,null,null,null,null,null,null,null,null,null,null,null,null,null,null,null,null,null,null,null,null,null,null,null,null,null,null,null,null,null,null,null,null,null,null,""]
["04: NP.Concluidos con título","40: 40 horas",118,0,"",0,0,0,0,null,"",null,null,null,null,null,null,null,null,null,null,null,null,null,null,null,null,null,null,null,null,null,null,null,null,null,null,null,null,null,null,null,null,null,null,null,null,null,null,null,null,null,null,null,null,null,null,null,null,null,null,null,""]
["05: NP.Concluidos sin título","30: 30 horas",119,0,"",0,0,0,0,null,"",null,null,null,null,null,null,null,null,null,null,null,null,null,null,null,null,null,null,null,null,null,null,null,null,null,null,null,null,null,null,null,null,null,null,null,null,null,null,null,null,null,null,null,null,null,null,null,null,null,null,null,""]
["06: NP.No concluidos","25: 25 horas",120,0,"",0,0,0,0,null,"",null,null,null,null,null,null,null,null,null,null,null,null,null,null,null,null,null,null,null,null,null,null,null,null,null,null,null,null,null,null,null,null,null,null,null,null,null,null,null,null,null,null,null,null,null,null,null,null,null,null,null,""]
["07: Secundaria","24: 24 horas",121,0,"",0,0,0,0,null,"",null,null,null,null,null,null,null,null,null,null,null,null,null,null,null,null,null,null,null,null,null,null,null,null,null,null,null,null,null,null,null,null,null,null,null,null,null,null,null,null,null,null,null,null,null,null,null,null,null,null,null,""]
["08: Primaria","23: Menos 24 horas",122,0,"",0,0,0,0,null,"",null,null,null,null,null,null,null,null,null,null,null,null,null,null,null,null,null,null,null,null,null,null,null,null,null,null,null,null,null,null,null,null,null,null,null,null,null,null,null,null,null,null,null,null,null,null,null,null,null,null,null,""]
[null,null,123,0,"",0,0,0,0,null,"",null,null,null,null,null,null,null,null,null,null,null,null,null,null,null,null,null,null,null,null,null,null,null,null,null,null,null,null,null,null,null,null,null,null,null,null,null,null,null,null,null,null,null,null,null,null,null,null,null,null,null,""]
["311.1 Nivel Educativo",null,124,0,"",0,0,0,0,null,"",null,null,null,null,null,null,null,null,null,null,null,null,null,null,null,null,null,null,null,null,null,null,null,null,null,null,null,null,null,null,null,null,null,null,null,null,null,null,null,null,null,null,null,null,null,null,null,null,null,null,null,""]
["01: Técnico","332. Frecuencia",125,0,"",0,0,0,0,null,"",null,null,null,null,null,null,null,null,null,null,null,null,null,null,null,null,null,null,null,null,null,null,null,null,null,null,null,null,null,null,null,null,null,null,null,null,null,null,null,null,null,null,null,null,null,null,null,null,null,null,null,""]
["02: Profesional Técnico","01: Diario",126,0,"",0,0,0,0,null,"",null,null,null,null,null,null,null,null,null,null,null,null,null,null,null,null,null,null,null,null,null,null,null,null,null,null,null,null,null,null,null,null,null,null,null,null,null,null,null,null,null,null,null,null,null,null,null,null,null,null,null,""]
["03: Universitario","02: Interdiario",127,0,"",0,0,0,0,null,"",null,null,null,null,null,null,null,null,null,null,null,null,null,null,null,null,null,null,null,null,null,null,null,null,null,null,null,null,null,null,null,null,null,null,null,null,null,null,null,null,null,null,null,null,null,null,null,null,null,null,null,""]
[null,"03: Semanal",128,0,"",0,0,0,0,null,"",null,null,null,null,null,null,null,null,null,null,null,null,null,null,null,null,null,null,null,null,null,null,null,null,null,null,null,null,null,null,null,null,null,null,null,null,null,null,null,null,null,null,null,null,null,null,null,null,null,null,null,""]
[null,"04: Quincenal",129,{"$f":"IF(AND(LEFT(Q147,2)=\"01\",LEFT(X147,2)=\"01\",LEFT(Y147,2)=\"01\",E147=1),1,0)","v":0},"",0,0,0,{"$f":"IF(K147<>\"\",1,0)","v":0},null,"",null,null,null,null,null,null,null,null,null,null,null,null,null,null,null,null,null,null,null,null,null,null,null,null,null,null,null,null,null,null,null,null,null,null,null,null,null,null,null,null,null,null,null,null,null,null,null,null,null,null,null,""]
["312. Especialidad del Título","05: Mensual",130,0,{"$f":"$B$16","v":""},{"$f":"COUNTIF(AO148:AX148,\"X\")","v":0},{"$f":"IF(Q148<>\"\",VALUE(LEFT(Q148,2)),0)","v":0},{"$f":"IF(AND($G148=1,UPPER($U148)=\"SI\"),IF($V148<>\"\",IF(AND(VALUE(LEFT($V148,4))>100,VALUE(LEFT($V148,4))<5000),1,0),0),0)","v":0},0,null,"",null,null,null,null,null,null,null,null,null,null,null,null,null,null,null,null,null,null,null,null,null,null,null,null,null,null,null,null,null,null,null,null,null,null,null,null,null,null,null,null,null,null,null,null,null,null,null,null,null,null,null,{"$f":"IF($AA148<>\"\",IF(OR(LEFT($AA148,2)=\"01\",LEFT($AA148,2)=\"02\",LEFT($AA148,2)=\"04\",LEFT($AA148,2)=\"05\"),1,0),\"\")","v":""}]
["01: Educación Inicial",null,131,0,"",0,0,0,0,null,{"$f":"IF(C149<=$B$5,C149,\"\")","v":""},null,null,null,null,null,null,null,null,null,null,null,null,null,null,null,null,null,null,null,null,null,null,null,null,null,null,null,null,null,null,null,null,null,null,null,null,null,null,null,null,null,null,null,null,null,null,null,null,null,null,null,""]
["02: Educación Primaria",null,132,0,"",0,0,0,0,null,"",null,null,null,null,null,null,null,null,null,null,null,null,null,null,null,null,null,null,null,null,null,null,null,null,null,null,null,null,null,null,null,null,null,null,null,null,null,null,null,null,null,null,null,null,null,null,null,null,null,null,null,""]
["03: E.I. Intercultural Bilingüe",null,133,0,"",0,0,0,0,null,"",null,null,null,null,null,null,null,null,null,null,null,null,null,null,null,null,null,null,null,null,null,null,null,null,null,null,null,null,null,null,null,null,null,null,null,null,null,null,null,null,null,null,null,null,null,null,null,null,null,null,null,""]
["04: E.P. Intercultural Bilingüe","340 ¿Cuál es el tipo de discapacidad?",134,0,"",0,0,0,0,null,"",null,null,null,null,null,null,null,null,null,null,null,null,null,null,null,null,null,null,null,null,null,null,null,null,null,null,null,null,null,null,null,null,null,null,null,null,null,null,null,null,null,null,null,null,null,null,null,null,null,null,null,""]
["05: Educación Básica Alternativa","01: Auditiva",135,0,"",0,0,0,0,null,"",null,null,null,null,null,null,null,null,null,null,null,null,null,null,null,null,null,null,null,null,null,null,null,null,null,null,null,null,null,null,null,null,null,null,null,null,null,null,null,null,null,null,null,null,null,null,null,null,null,null,null,""]
["06: Educación Especial","02: Visual",136,0,"",0,0,0,0,null,"",null,null,null,null,null,null,null,null,null,null,null,null,null,null,null,null,null,null,null,null,null,null,null,null,null,null,null,null,null,null,null,null,null,null,null,null,null,null,null,null,null,null,null,null,null,null,null,null,null,null,null,""]
["07: Educación Física","03: Física o Motora",137,0,"",0,0,0,0,null,"",null,null,null,null,null,null,null,null,null,null,null,null,null,null,null,null,null,null,null,null,null,null,null,null,null,null,null,null,null,null,null,null,null,null,null,null,null,null,null,null,null,null,null,null,null,null,null,null,null,null,null,""]
["08: Educación Artística","04: Otras",138,0,"",0,0,0,0,null,"",null,null,null,null,null,null,null,null,null,null,null,null,null,null,null,null,null,null,null,null,null,null,null,null,null,null,null,null,null,null,null,null,null,null,null,null,null,null,null,null,null,null,null,null,null,null,null,null,null,null,null,""]
["09: E.S. Lengua y Literatura",null,139,0,"",0,0,0,0,null,"",null,null,null,null,null,null,null,null,null,null,null,null,null,null,null,null,null,null,null,null,null,null,null,null,null,null,null,null,null,null,null,null,null,null,null,null,null,null,null,null,null,null,null,null,null,null,null,null,null,null,null,""]
["10: E.S. Comunicación",null,140,0,"",0,0,0,0,null,"",null,null,null,null,null,null,null,null,null,null,null,null,null,null,null,null,null,null,null,null,null,null,null,null,null,null,null,null,null,null,null,null,null,null,null,null,null,null,null,null,null,null,null,null,null,null,null,null,null,null,null,""]
["11: E.S. Matemática y Física","337.3 Asistencia Técnica",141,0,"",0,0,0,0,null,"",null,null,null,null,null,null,null,null,null,null,null,null,null,null,null,null,null,null,null,null,null,null,null,null,null,null,null,null,null,null,null,null,null,null,null,null,null,null,null,null,null,null,null,null,null,null,null,null,null,null,null,""]
["12: E.S. Matemática","01: Uso pedagógico de los cuadernos",142,0,"",0,0,0,0,null,"",null,null,null,null,null,null,null,null,null,null,null,null,null,null,null,null,null,null,null,null,null,null,null,null,null,null,null,null,null,null,null,null,null,null,null,null,null,null,null,null,null,null,null,null,null,null,null,null,null,null,null,""]
["13: E.S. CCSS y Filosofía","02: TICs",143,0,"",0,0,0,0,null,"",null,null,null,null,null,null,null,null,null,null,null,null,null,null,null,null,null,null,null,null,null,null,null,null,null,null,null,null,null,null,null,null,null,null,null,null,null,null,null,null,null,null,null,null,null,null,null,null,null,null,null,""]
["14: E.S. Ciencias Sociales","03: Inclusión Financiera",144,0,"",0,0,0,0,null,"",null,null,null,null,null,null,null,null,null,null,null,null,null,null,null,null,null,null,null,null,null,null,null,null,null,null,null,null,null,null,null,null,null,null,null,null,null,null,null,null,null,null,null,null,null,null,null,null,null,null,null,""]
["15: E.S. Ciencias Naturales","04: Prevención de la violencia",145,0,"",0,0,0,0,null,"",null,null,null,null,null,null,null,null,null,null,null,null,null,null,null,null,null,null,null,null,null,null,null,null,null,null,null,null,null,null,null,null,null,null,null,null,null,null,null,null,null,null,null,null,null,null,null,null,null,null,null,""]
["16: E.S. Ciencia Tecnología y Ambiente","05: Otro",146,0,"",0,0,0,0,null,"",null,null,null,null,null,null,null,null,null,null,null,null,null,null,null,null,null,null,null,null,null,null,null,null,null,null,null,null,null,null,null,null,null,null,null,null,null,null,null,null,null,null,null,null,null,null,null,null,null,null,null,""]
["17: E.S. Alimentación y Nutrición","06: No recibió asistencia técnica",147,0,"",0,0,0,0,null,"",null,null,null,null,null,null,null,null,null,null,null,null,null,null,null,null,null,null,null,null,null,null,null,null,null,null,null,null,null,null,null,null,null,null,null,null,null,null,null,null,null,null,null,null,null,null,null,null,null,null,null,""]
["18: E.S. Biología y Química",null,148,0,"",0,0,0,0,null,"",null,null,null,null,null,null,null,null,null,null,null,null,null,null,null,null,null,null,null,null,null,null,null,null,null,null,null,null,null,null,null,null,null,null,null,null,null,null,null,null,null,null,null,null,null,null,null,null,null,null,null,""]
["19: E.S. Historia y Geografía","339.3 ¿Cuál fue el tipo de estudios en EIB?",149,0,"",0,0,0,0,null,"",null,null,null,null,null,null,null,null,null,null,null,null,null,null,null,null,null,null,null,null,null,null,null,null,null,null,null,null,null,null,null,null,null,null,null,null,null,null,null,null,null,null,null,null,null,null,null,null,null,null,null,""]
["20: E.S. CC.HH. Sociales","01: Doctorado",150,0,"",0,0,0,0,null,"",null,null,null,null,null,null,null,null,null,null,null,null,null,null,null,null,null,null,null,null,null,null,null,null,null,null,null,null,null,null,null,null,null,null,null,null,null,null,null,null,null,null,null,null,null,null,null,null,null,null,null,""]
["21: E.S. Idioma Inglés","02: Maestría",151,0,"",0,0,0,0,null,"",null,null,null,null,null,null,null,null,null,null,null,null,null,null,null,null,null,null,null,null,null,null,null,null,null,null,null,null,null,null,null,null,null,null,null,null,null,null,null,null,null,null,null,null,null,null,null,null,null,null,null,""]
["22: Educación Religiosa","03: Segunda especialidad",152,0,"",0,0,0,0,null,"",null,null,null,null,null,null,null,null,null,null,null,null,null,null,null,null,null,null,null,null,null,null,null,null,null,null,null,null,null,null,null,null,null,null,null,null,null,null,null,null,null,null,null,null,null,null,null,null,null,null,null,""]
["23: E.S. Educación Familiar","04: Especialización",153,0,"",0,0,0,0,null,"",null,null,null,null,null,null,null,null,null,null,null,null,null,null,null,null,null,null,null,null,null,null,null,null,null,null,null,null,null,null,null,null,null,null,null,null,null,null,null,null,null,null,null,null,null,null,null,null,null,null,null,""]
["24: E.T. Artes Industriales","05: Actualización",154,0,"",0,0,0,0,null,"",null,null,null,null,null,null,null,null,null,null,null,null,null,null,null,null,null,null,null,null,null,null,null,null,null,null,null,null,null,null,null,null,null,null,null,null,null,null,null,null,null,null,null,null,null,null,null,null,null,null,null,""]
["25: E.T. Artesanía","06: Otro",155,0,"",0,0,0,0,null,"",null,null,null,null,null,null,null,null,null,null,null,null,null,null,null,null,null,null,null,null,null,null,null,null,null,null,null,null,null,null,null,null,null,null,null,null,null,null,null,null,null,null,null,null,null,null,null,null,null,null,null,""]
["26: E.T. Agropecuaria",null,156,0,"",0,0,0,0,null,"",null,null,null,null,null,null,null,null,null,null,null,null,null,null,null,null,null,null,null,null,null,null,null,null,null,null,null,null,null,null,null,null,null,null,null,null,null,null,null,null,null,null,null,null,null,null,null,null,null,null,null,""]
["27: E.T. Construcción en madera","Parroquiales",157,0,"",0,0,0,0,null,"",null,null,null,null,null,null,null,null,null,null,null,null,null,null,null,null,null,null,null,null,null,null,null,null,null,null,null,null,null,null,null,null,null,null,null,null,null,null,null,null,null,null,null,null,null,null,null,null,null,null,null,""]
["28: E.T. Computación e Informática","05: APAFA",158,0,"",0,0,0,0,null,"",null,null,null,null,null,null,null,null,null,null,null,null,null,null,null,null,null,null,null,null,null,null,null,null,null,null,null,null,null,null,null,null,null,null,null,null,null,null,null,null,null,null,null,null,null,null,null,null,null,null,null,""]
["29: E.T. Carpintería/Ebanistería","06: Otra fuente Privada",159,0,"",0,0,0,0,null,"",null,null,null,null,null,null,null,null,null,null,null,null,null,null,null,null,null,null,null,null,null,null,null,null,null,null,null,null,null,null,null,null,null,null,null,null,null,null,null,null,null,null,null,null,null,null,null,null,null,null,null,""]
["30: E.T. Electricidad","01: Sector Educación",160,0,"",0,0,0,0,null,"",null,null,null,null,null,null,null,null,null,null,null,null,null,null,null,null,null,null,null,null,null,null,null,null,null,null,null,null,null,null,null,null,null,null,null,null,null,null,null,null,null,null,null,null,null,null,null,null,null,null,null,""]
["31: E.T. Electrónica",null,161,0,"",0,0,0,0,null,"",null,null,null,null,null,null,null,null,null,null,null,null,null,null,null,null,null,null,null,null,null,null,null,null,null,null,null,null,null,null,null,null,null,null,null,null,null,null,null,null,null,null,null,null,null,null,null,null,null,null,null,""]
["32: E.T. Ebanistería","337. Reconocimiento",162,0,"",0,0,0,0,null,"",null,null,null,null,null,null,null,null,null,null,null,null,null,null,null,null,null,null,null,null,null,null,null,null,null,null,null,null,null,null,null,null,null,null,null,null,null,null,null,null,null,null,null,null,null,null,null,null,null,null,null,""]
["33: E.T. Industria del Vestido","01: Innovación",163,0,"",0,0,0,0,null,"",null,null,null,null,null,null,null,null,null,null,null,null,null,null,null,null,null,null,null,null,null,null,null,null,null,null,null,null,null,null,null,null,null,null,null,null,null,null,null,null,null,null,null,null,null,null,null,null,null,null,null,""]
["34: E.T. Industria del Vestido Alimentación y Alta Costura","02: Buenas prácticas ",164,0,"",0,0,0,0,null,"",null,null,null,null,null,null,null,null,null,null,null,null,null,null,null,null,null,null,null,null,null,null,null,null,null,null,null,null,null,null,null,null,null,null,null,null,null,null,null,null,null,null,null,null,null,null,null,null,null,null,null,""]
["35: E.T. en Industria del Vestido y Alta Costura","03: No ha participado",165,0,"",0,0,0,0,null,"",null,null,null,null,null,null,null,null,null,null,null,null,null,null,null,null,null,null,null,null,null,null,null,null,null,null,null,null,null,null,null,null,null,null,null,null,null,null,null,null,null,null,null,null,null,null,null,null,null,null,null,""]
["36: E.T.Técnica Esp. Ind. del Vestido Ind.Alimentaria y Artes",null,166,0,"",0,0,0,0,null,"",null,null,null,null,null,null,null,null,null,null,null,null,null,null,null,null,null,null,null,null,null,null,null,null,null,null,null,null,null,null,null,null,null,null,null,null,null,null,null,null,null,null,null,null,null,null,null,null,null,null,null,""]
["37: E.T. Industria Alimentaria",null,167,0,"",0,0,0,0,null,"",null,null,null,null,null,null,null,null,null,null,null,null,null,null,null,null,null,null,null,null,null,null,null,null,null,null,null,null,null,null,null,null,null,null,null,null,null,null,null,null,null,null,null,null,null,null,null,null,null,null,null,""]
["38: E.T. Mecánica Automotriz",null,168,0,"",0,0,0,0,null,"",null,null,null,null,null,null,null,null,null,null,null,null,null,null,null,null,null,null,null,null,null,null,null,null,null,null,null,null,null,null,null,null,null,null,null,null,null,null,null,null,null,null,null,null,null,null,null,null,null,null,null,""]
["39: E.T. Mecánica de Producción",null,169,0,"",0,0,0,0,null,"",null,null,null,null,null,null,null,null,null,null,null,null,null,null,null,null,null,null,null,null,null,null,null,null,null,null,null,null,null,null,null,null,null,null,null,null,null,null,null,null,null,null,null,null,null,null,null,null,null,null,null,""]
["40: E.T. Mecánica de Producción y Soldadura",null,170,0,"",0,0,0,0,null,"",null,null,null,null,null,null,null,null,null,null,null,null,null,null,null,null,null,null,null,null,null,null,null,null,null,null,null,null,null,null,null,null,null,null,null,null,null,null,null,null,null,null,null,null,null,null,null,null,null,null,null,""]
["41: E.T. Textilería",null,171,0,"",0,0,0,0,null,"",null,null,null,null,null,null,null,null,null,null,null,null,null,null,null,null,null,null,null,null,null,null,null,null,null,null,null,null,null,null,null,null,null,null,null,null,null,null,null,null,null,null,null,null,null,null,null,null,null,null,null,""]
["42: Otra pedagógica",null,172,0,"",0,0,0,0,null,"",null,null,null,null,null,null,null,null,null,null,null,null,null,null,null,null,null,null,null,null,null,null,null,null,null,null,null,null,null,null,null,null,null,null,null,null,null,null,null,null,null,null,null,null,null,null,null,null,null,null,null,""]
[null,null,173,0,"",0,0,0,0,null,"",null,null,null,null,null,null,null,null,null,null,null,null,null,null,null,null,null,null,null,null,null,null,null,null,null,null,null,null,null,null,null,null,null,null,null,null,null,null,null,null,null,null,null,null,null,null,null,null,null,null,null,""]
[null,null,174,0,"",0,0,0,0,null,"",null,null,null,null,null,null,null,null,null,null,null,null,null,null,null,null,null,null,null,null,null,null,null,null,null,null,null,null,null,null,null,null,null,null,null,null,null,null,null,null,null,null,null,null,null,null,null,null,null,null,null,""]
[null,null,175,0,"",0,0,0,0,null,"",null,null,null,null,null,null,null,null,null,null,null,null,null,null,null,null,null,null,null,null,null,null,null,null,null,null,null,null,null,null,null,null,null,null,null,null,null,null,null,null,null,null,null,null,null,null,null,null,null,null,null,""]
[null,null,176,0,"",0,0,0,0,null,"",null,null,null,null,null,null,null,null,null,null,null,null,null,null,null,null,null,null,null,null,null,null,null,null,null,null,null,null,null,null,null,null,null,null,null,null,null,null,null,null,null,null,null,null,null,null,null,null,null,null,null,""]
[null,null,177,0,"",0,0,0,0,null,"",null,null,null,null,null,null,null,null,null,null,null,null,null,null,null,null,null,null,null,null,null,null,null,null,null,null,null,null,null,null,null,null,null,null,null,null,null,null,null,null,null,null,null,null,null,null,null,null,null,null,null,""]
[null,null,178,0,"",0,0,0,0,null,"",null,null,null,null,null,null,null,null,null,null,null,null,null,null,null,null,null,null,null,null,null,null,null,null,null,null,null,null,null,null,null,null,null,null,null,null,null,null,null,null,null,null,null,null,null,null,null,null,null,null,null,""]
[null,null,179,0,"",0,0,0,0,null,"",null,null,null,null,null,null,null,null,null,null,null,null,null,null,null,null,null,null,null,null,null,null,null,null,null,null,null,null,null,null,null,null,null,null,null,null,null,null,null,null,null,null,null,null,null,null,null,null,null,null,null,""]
[null,null,180,0,"",0,0,0,0,null,"",null,null,null,null,null,null,null,null,null,null,null,null,null,null,null,null,null,null,null,null,null,null,null,null,null,null,null,null,null,null,null,null,null,null,null,null,null,null,null,null,null,null,null,null,null,null,null,null,null,null,null,""]
[null,null,181,0,"",0,0,0,0,null,"",null,null,null,null,null,null,null,null,null,null,null,null,null,null,null,null,null,null,null,null,null,null,null,null,null,null,null,null,null,null,null,null,null,null,null,null,null,null,null,null,null,null,null,null,null,null,null,null,null,null,null,""]
[null,null,182,0,"",0,0,0,0,null,"",null,null,null,null,null,null,null,null,null,null,null,null,null,null,null,null,null,null,null,null,null,null,null,null,null,null,null,null,null,null,null,null,null,null,null,null,null,null,null,null,null,null,null,null,null,null,null,null,null,null,null,""]
[null,null,183,0,"",0,0,0,0,null,"",null,null,null,null,null,null,null,null,null,null,null,null,null,null,null,null,null,null,null,null,null,null,null,null,null,null,null,null,null,null,null,null,null,null,null,null,null,null,null,null,null,null,null,null,null,null,null,null,null,null,null,""]
[null,null,184,0,"",0,0,0,0,null,"",null,null,null,null,null,null,null,null,null,null,null,null,null,null,null,null,null,null,null,null,null,null,null,null,null,null,null,null,null,null,null,null,null,null,null,null,null,null,null,null,null,null,null,null,null,null,null,null,null,null,null,""]
[null,null,185,0,"",0,0,0,0,null,"",null,null,null,null,null,null,null,null,null,null,null,null,null,null,null,null,null,null,null,null,null,null,null,null,null,null,null,null,null,null,null,null,null,null,null,null,null,null,null,null,null,null,null,null,null,null,null,null,null,null,null,""]
[null,null,186,0,"",0,0,0,0,null,"",null,null,null,null,null,null,null,null,null,null,null,null,null,null,null,null,null,null,null,null,null,null,null,null,null,null,null,null,null,null,null,null,null,null,null,null,null,null,null,null,null,null,null,null,null,null,null,null,null,null,null,""]
[null,null,187,0,"",0,0,0,0,null,"",null,null,null,null,null,null,null,null,null,null,null,null,null,null,null,null,null,null,null,null,null,null,null,null,null,null,null,null,null,null,null,null,null,null,null,null,null,null,null,null,null,null,null,null,null,null,null,null,null,null,null,""]
[null,null,188,0,"",0,0,0,0,null,"",null,null,null,null,null,null,null,null,null,null,null,null,null,null,null,null,null,null,null,null,null,null,null,null,null,null,null,null,null,null,null,null,null,null,null,null,null,null,null,null,null,null,null,null,null,null,null,null,null,null,null,""]
[null,null,189,0,"",0,0,0,0,null,"",null,null,null,null,null,null,null,null,null,null,null,null,null,null,null,null,null,null,null,null,null,null,null,null,null,null,null,null,null,null,null,null,null,null,null,null,null,null,null,null,null,null,null,null,null,null,null,null,null,null,null,""]
[null,null,190,0,"",0,0,0,0,null,"",null,null,null,null,null,null,null,null,null,null,null,null,null,null,null,null,null,null,null,null,null,null,null,null,null,null,null,null,null,null,null,null,null,null,null,null,null,null,null,null,null,null,null,null,null,null,null,null,null,null,null,""]
[null,null,191,0,"",0,0,0,0,null,"",null,null,null,null,null,null,null,null,null,null,null,null,null,null,null,null,null,null,null,null,null,null,null,null,null,null,null,null,null,null,null,null,null,null,null,null,null,null,null,null,null,null,null,null,null,null,null,null,null,null,null,""]
[null,null,192,0,"",0,0,0,0,null,"",null,null,null,null,null,null,null,null,null,null,null,null,null,null,null,null,null,null,null,null,null,null,null,null,null,null,null,null,null,null,null,null,null,null,null,null,null,null,null,null,null,null,null,null,null,null,null,null,null,null,null,""]
[null,null,193,{"$f":"IF(AND(LEFT(Q211,2)=\"01\",LEFT(X211,2)=\"01\",LEFT(Y211,2)=\"01\",E211=1),1,0)","v":0},"",0,0,0,{"$f":"IF(K211<>\"\",1,0)","v":0},null,"",null,null,null,null,null,null,null,null,null,null,null,null,null,null,null,null,null,null,null,null,null,null,null,null,null,null,null,null,null,null,null,null,null,null,null,null,null,null,null,null,null,null,null,null,null,null,null,null,null,null,null,""]
[null,null,194,0,{"$f":"$B$16","v":""},{"$f":"COUNTIF(AO212:AX212,\"X\")","v":0},{"$f":"IF(Q212<>\"\",VALUE(LEFT(Q212,2)),0)","v":0},{"$f":"IF(AND($G212=1,UPPER($U212)=\"SI\"),IF($V212<>\"\",IF(AND(VALUE(LEFT($V212,4))>100,VALUE(LEFT($V212,4))<5000),1,0),0),0)","v":0},0,null,"",null,null,null,null,null,null,null,null,null,null,null,null,null,null,null,null,null,null,null,null,null,null,null,null,null,null,null,null,null,null,null,null,null,null,null,null,null,null,null,null,null,null,null,null,null,null,null,null,null,null,null,{"$f":"IF($AA212<>\"\",IF(OR(LEFT($AA212,2)=\"01\",LEFT($AA212,2)=\"02\",LEFT($AA212,2)=\"04\",LEFT($AA212,2)=\"05\"),1,0),\"\")","v":""}]
[null,null,195,0,"",0,0,0,0,null,{"$f":"IF(C213<=$B$5,C213,\"\")","v":""},null,null,null,null,null,null,null,null,null,null,null,null,null,null,null,null,null,null,null,null,null,null,null,null,null,null,null,null,null,null,null,null,null,null,null,null,null,null,null,null,null,null,null,null,null,null,null,null,null,null,null,""]
[null,null,196,0,"",0,0,0,0,null,"",null,null,null,null,null,null,null,null,null,null,null,null,null,null,null,null,null,null,null,null,null,null,null,null,null,null,null,null,null,null,null,null,null,null,null,null,null,null,null,null,null,null,null,null,null,null,null,null,null,null,null,""]
[null,null,197,0,"",0,0,0,0,null,"",null,null,null,null,null,null,null,null,null,null,null,null,null,null,null,null,null,null,null,null,null,null,null,null,null,null,null,null,null,null,null,null,null,null,null,null,null,null,null,null,null,null,null,null,null,null,null,null,null,null,null,""]
[null,null,198,0,"",0,0,0,0,null,"",null,null,null,null,null,null,null,null,null,null,null,null,null,null,null,null,null,null,null,null,null,null,null,null,null,null,null,null,null,null,null,null,null,null,null,null,null,null,null,null,null,null,null,null,null,null,null,null,null,null,null,""]
[null,null,199,0,"",0,0,0,0,null,"",null,null,null,null,null,null,null,null,null,null,null,null,null,null,null,null,null,null,null,null,null,null,null,null,null,null,null,null,null,null,null,null,null,null,null,null,null,null,null,null,null,null,null,null,null,null,null,null,null,null,null,""]
[null,null,200,0,"",0,0,0,0,null,"",null,null,null,null,null,null,null,null,null,null,null,null,null,null,null,null,null,null,null,null,null,null,null,null,null,null,null,null,null,null,null,null,null,null,null,null,null,null,null,null,null,null,null,null,null,null,null,null,null,null,null,""]
[null,null,201,0,"",0,0,0,0,null,"",null,null,null,null,null,null,null,null,null,null,null,null,null,null,null,null,null,null,null,null,null,null,null,null,null,null,null,null,null,null,null,null,null,null,null,null,null,null,null,null,null,null,null,null,null,null,null,null,null,null,null,""]
[null,null,202,0,"",0,0,0,0,null,"",null,null,null,null,null,null,null,null,null,null,null,null,null,null,null,null,null,null,null,null,null,null,null,null,null,null,null,null,null,null,null,null,null,null,null,null,null,null,null,null,null,null,null,null,null,null,null,null,null,null,null,""]
[null,null,203,0,"",0,0,0,0,null,"",null,null,null,null,null,null,null,null,null,null,null,null,null,null,null,null,null,null,null,null,null,null,null,null,null,null,null,null,null,null,null,null,null,null,null,null,null,null,null,null,null,null,null,null,null,null,null,null,null,null,null,""]
[null,null,204,0,"",0,0,0,0,null,"",null,null,null,null,null,null,null,null,null,null,null,null,null,null,null,null,null,null,null,null,null,null,null,null,null,null,null,null,null,null,null,null,null,null,null,null,null,null,null,null,null,null,null,null,null,null,null,null,null,null,null,""]
[null,null,205,0,"",0,0,0,0,null,"",null,null,null,null,null,null,null,null,null,null,null,null,null,null,null,null,null,null,null,null,null,null,null,null,null,null,null,null,null,null,null,null,null,null,null,null,null,null,null,null,null,null,null,null,null,null,null,null,null,null,null,""]
[null,null,206,0,"",0,0,0,0,null,"",null,null,null,null,null,null,null,null,null,null,null,null,null,null,null,null,null,null,null,null,null,null,null,null,null,null,null,null,null,null,null,null,null,null,null,null,null,null,null,null,null,null,null,null,null,null,null,null,null,null,null,""]
[null,null,207,0,"",0,0,0,0,null,"",null,null,null,null,null,null,null,null,null,null,null,null,null,null,null,null,null,null,null,null,null,null,null,null,null,null,null,null,null,null,null,null,null,null,null,null,null,null,null,null,null,null,null,null,null,null,null,null,null,null,null,""]
[null,null,208,0,"",0,0,0,0,null,"",null,null,null,null,null,null,null,null,null,null,null,null,null,null,null,null,null,null,null,null,null,null,null,null,null,null,null,null,null,null,null,null,null,null,null,null,null,null,null,null,null,null,null,null,null,null,null,null,null,null,null,""]
[null,null,209,0,"",0,0,0,0,null,"",null,null,null,null,null,null,null,null,null,null,null,null,null,null,null,null,null,null,null,null,null,null,null,null,null,null,null,null,null,null,null,null,null,null,null,null,null,null,null,null,null,null,null,null,null,null,null,null,null,null,null,""]
[null,null,210,0,"",0,0,0,0,null,"",null,null,null,null,null,null,null,null,null,null,null,null,null,null,null,null,null,null,null,null,null,null,null,null,null,null,null,null,null,null,null,null,null,null,null,null,null,null,null,null,null,null,null,null,null,null,null,null,null,null,null,""]
[null,null,211,0,"",0,0,0,0,null,"",null,null,null,null,null,null,null,null,null,null,null,null,null,null,null,null,null,null,null,null,null,null,null,null,null,null,null,null,null,null,null,null,null,null,null,null,null,null,null,null,null,null,null,null,null,null,null,null,null,null,null,""]
[null,null,212,0,"",0,0,0,0,null,"",null,null,null,null,null,null,null,null,null,null,null,null,null,null,null,null,null,null,null,null,null,null,null,null,null,null,null,null,null,null,null,null,null,null,null,null,null,null,null,null,null,null,null,null,null,null,null,null,null,null,null,""]
[null,null,213,0,"",0,0,0,0,null,"",null,null,null,null,null,null,null,null,null,null,null,null,null,null,null,null,null,null,null,null,null,null,null,null,null,null,null,null,null,null,null,null,null,null,null,null,null,null,null,null,null,null,null,null,null,null,null,null,null,null,null,""]
[null,null,214,0,"",0,0,0,0,null,"",null,null,null,null,null,null,null,null,null,null,null,null,null,null,null,null,null,null,null,null,null,null,null,null,null,null,null,null,null,null,null,null,null,null,null,null,null,null,null,null,null,null,null,null,null,null,null,null,null,null,null,""]
[null,null,215,0,"",0,0,0,0,null,"",null,null,null,null,null,null,null,null,null,null,null,null,null,null,null,null,null,null,null,null,null,null,null,null,null,null,null,null,null,null,null,null,null,null,null,null,null,null,null,null,null,null,null,null,null,null,null,null,null,null,null,""]
[null,null,216,0,"",0,0,0,0,null,"",null,null,null,null,null,null,null,null,null,null,null,null,null,null,null,null,null,null,null,null,null,null,null,null,null,null,null,null,null,null,null,null,null,null,null,null,null,null,null,null,null,null,null,null,null,null,null,null,null,null,null,""]
[null,null,217,0,"",0,0,0,0,null,"",null,null,null,null,null,null,null,null,null,null,null,null,null,null,null,null,null,null,null,null,null,null,null,null,null,null,null,null,null,null,null,null,null,null,null,null,null,null,null,null,null,null,null,null,null,null,null,null,null,null,null,""]
[null,null,218,0,"",0,0,0,0,null,"",null,null,null,null,null,null,null,null,null,null,null,null,null,null,null,null,null,null,null,null,null,null,null,null,null,null,null,null,null,null,null,null,null,null,null,null,null,null,null,null,null,null,null,null,null,null,null,null,null,null,null,""]
[null,null,219,0,"",0,0,0,0,null,"",null,null,null,null,null,null,null,null,null,null,null,null,null,null,null,null,null,null,null,null,null,null,null,null,null,null,null,null,null,null,null,null,null,null,null,null,null,null,null,null,null,null,null,null,null,null,null,null,null,null,null,""]
[null,null,220,0,"",0,0,0,0,null,"",null,null,null,null,null,null,null,null,null,null,null,null,null,null,null,null,null,null,null,null,null,null,null,null,null,null,null,null,null,null,null,null,null,null,null,null,null,null,null,null,null,null,null,null,null,null,null,null,null,null,null,""]
[null,null,221,0,"",0,0,0,0,null,"",null,null,null,null,null,null,null,null,null,null,null,null,null,null,null,null,null,null,null,null,null,null,null,null,null,null,null,null,null,null,null,null,null,null,null,null,null,null,null,null,null,null,null,null,null,null,null,null,null,null,null,""]
[null,null,222,0,"",0,0,0,0,null,"",null,null,null,null,null,null,null,null,null,null,null,null,null,null,null,null,null,null,null,null,null,null,null,null,null,null,null,null,null,null,null,null,null,null,null,null,null,null,null,null,null,null,null,null,null,null,null,null,null,null,null,""]
[null,null,223,0,"",0,0,0,0,null,"",null,null,null,null,null,null,null,null,null,null,null,null,null,null,null,null,null,null,null,null,null,null,null,null,null,null,null,null,null,null,null,null,null,null,null,null,null,null,null,null,null,null,null,null,null,null,null,null,null,null,null,""]
[null,null,224,0,"",0,0,0,0,null,"",null,null,null,null,null,null,null,null,null,null,null,null,null,null,null,null,null,null,null,null,null,null,null,null,null,null,null,null,null,null,null,null,null,null,null,null,null,null,null,null,null,null,null,null,null,null,null,null,null,null,null,""]
[null,null,225,0,"",0,0,0,0,null,"",null,null,null,null,null,null,null,null,null,null,null,null,null,null,null,null,null,null,null,null,null,null,null,null,null,null,null,null,null,null,null,null,null,null,null,null,null,null,null,null,null,null,null,null,null,null,null,null,null,null,null,""]
[null,null,226,0,"",0,0,0,0,null,"",null,null,null,null,null,null,null,null,null,null,null,null,null,null,null,null,null,null,null,null,null,null,null,null,null,null,null,null,null,null,null,null,null,null,null,null,null,null,null,null,null,null,null,null,null,null,null,null,null,null,null,""]
[null,null,227,0,"",0,0,0,0,null,"",null,null,null,null,null,null,null,null,null,null,null,null,null,null,null,null,null,null,null,null,null,null,null,null,null,null,null,null,null,null,null,null,null,null,null,null,null,null,null,null,null,null,null,null,null,null,null,null,null,null,null,""]
[null,null,228,0,"",0,0,0,0,null,"",null,null,null,null,null,null,null,null,null,null,null,null,null,null,null,null,null,null,null,null,null,null,null,null,null,null,null,null,null,null,null,null,null,null,null,null,null,null,null,null,null,null,null,null,null,null,null,null,null,null,null,""]
[null,null,229,0,"",0,0,0,0,null,"",null,null,null,null,null,null,null,null,null,null,null,null,null,null,null,null,null,null,null,null,null,null,null,null,null,null,null,null,null,null,null,null,null,null,null,null,null,null,null,null,null,null,null,null,null,null,null,null,null,null,null,""]
[null,null,230,0,"",0,0,0,0,null,"",null,null,null,null,null,null,null,null,null,null,null,null,null,null,null,null,null,null,null,null,null,null,null,null,null,null,null,null,null,null,null,null,null,null,null,null,null,null,null,null,null,null,null,null,null,null,null,null,null,null,null,""]
[null,null,231,0,"",0,0,0,0,null,"",null,null,null,null,null,null,null,null,null,null,null,null,null,null,null,null,null,null,null,null,null,null,null,null,null,null,null,null,null,null,null,null,null,null,null,null,null,null,null,null,null,null,null,null,null,null,null,null,null,null,null,""]
[null,null,232,0,"",0,0,0,0,null,"",null,null,null,null,null,null,null,null,null,null,null,null,null,null,null,null,null,null,null,null,null,null,null,null,null,null,null,null,null,null,null,null,null,null,null,null,null,null,null,null,null,null,null,null,null,null,null,null,null,null,null,""]
[null,null,233,0,"",0,0,0,0,null,"",null,null,null,null,null,null,null,null,null,null,null,null,null,null,null,null,null,null,null,null,null,null,null,null,null,null,null,null,null,null,null,null,null,null,null,null,null,null,null,null,null,null,null,null,null,null,null,null,null,null,null,""]
[null,null,234,0,"",0,0,0,0,null,"",null,null,null,null,null,null,null,null,null,null,null,null,null,null,null,null,null,null,null,null,null,null,null,null,null,null,null,null,null,null,null,null,null,null,null,null,null,null,null,null,null,null,null,null,null,null,null,null,null,null,null,""]
[null,null,235,0,"",0,0,0,0,null,"",null,null,null,null,null,null,null,null,null,null,null,null,null,null,null,null,null,null,null,null,null,null,null,null,null,null,null,null,null,null,null,null,null,null,null,null,null,null,null,null,null,null,null,null,null,null,null,null,null,null,null,""]
[null,null,236,0,"",0,0,0,0,null,"",null,null,null,null,null,null,null,null,null,null,null,null,null,null,null,null,null,null,null,null,null,null,null,null,null,null,null,null,null,null,null,null,null,null,null,null,null,null,null,null,null,null,null,null,null,null,null,null,null,null,null,""]
[null,null,237,0,"",0,0,0,0,null,"",null,null,null,null,null,null,null,null,null,null,null,null,null,null,null,null,null,null,null,null,null,null,null,null,null,null,null,null,null,null,null,null,null,null,null,null,null,null,null,null,null,null,null,null,null,null,null,null,null,null,null,""]
[null,null,238,0,"",0,0,0,0,null,"",null,null,null,null,null,null,null,null,null,null,null,null,null,null,null,null,null,null,null,null,null,null,null,null,null,null,null,null,null,null,null,null,null,null,null,null,null,null,null,null,null,null,null,null,null,null,null,null,null,null,null,""]
[null,null,239,0,"",0,0,0,0,null,"",null,null,null,null,null,null,null,null,null,null,null,null,null,null,null,null,null,null,null,null,null,null,null,null,null,null,null,null,null,null,null,null,null,null,null,null,null,null,null,null,null,null,null,null,null,null,null,null,null,null,null,""]
[null,null,240,0,"",0,0,0,0,null,"",null,null,null,null,null,null,null,null,null,null,null,null,null,null,null,null,null,null,null,null,null,null,null,null,null,null,null,null,null,null,null,null,null,null,null,null,null,null,null,null,null,null,null,null,null,null,null,null,null,null,null,""]
[null,null,241,0,"",0,0,0,0,null,"",null,null,null,null,null,null,null,null,null,null,null,null,null,null,null,null,null,null,null,null,null,null,null,null,null,null,null,null,null,null,null,null,null,null,null,null,null,null,null,null,null,null,null,null,null,null,null,null,null,null,null,""]
[null,null,242,0,"",0,0,0,0,null,"",null,null,null,null,null,null,null,null,null,null,null,null,null,null,null,null,null,null,null,null,null,null,null,null,null,null,null,null,null,null,null,null,null,null,null,null,null,null,null,null,null,null,null,null,null,null,null,null,null,null,null,""]
[null,null,243,0,"",0,0,0,0,null,"",null,null,null,null,null,null,null,null,null,null,null,null,null,null,null,null,null,null,null,null,null,null,null,null,null,null,null,null,null,null,null,null,null,null,null,null,null,null,null,null,null,null,null,null,null,null,null,null,null,null,null,""]
[null,null,244,0,"",0,0,0,0,null,"",null,null,null,null,null,null,null,null,null,null,null,null,null,null,null,null,null,null,null,null,null,null,null,null,null,null,null,null,null,null,null,null,null,null,null,null,null,null,null,null,null,null,null,null,null,null,null,null,null,null,null,""]
[null,null,245,0,"",0,0,0,0,null,"",null,null,null,null,null,null,null,null,null,null,null,null,null,null,null,null,null,null,null,null,null,null,null,null,null,null,null,null,null,null,null,null,null,null,null,null,null,null,null,null,null,null,null,null,null,null,null,null,null,null,null,""]
[null,null,246,0,"",0,0,0,0,null,"",null,null,null,null,null,null,null,null,null,null,null,null,null,null,null,null,null,null,null,null,null,null,null,null,null,null,null,null,null,null,null,null,null,null,null,null,null,null,null,null,null,null,null,null,null,null,null,null,null,null,null,""]
[null,null,247,0,"",0,0,0,0,null,"",null,null,null,null,null,null,null,null,null,null,null,null,null,null,null,null,null,null,null,null,null,null,null,null,null,null,null,null,null,null,null,null,null,null,null,null,null,null,null,null,null,null,null,null,null,null,null,null,null,null,null,""]
[null,null,248,0,"",0,0,0,0,null,"",null,null,null,null,null,null,null,null,null,null,null,null,null,null,null,null,null,null,null,null,null,null,null,null,null,null,null,null,null,null,null,null,null,null,null,null,null,null,null,null,null,null,null,null,null,null,null,null,null,null,null,""]
[null,null,249,0,"",0,0,0,0,null,"",null,null,null,null,null,null,null,null,null,null,null,null,null,null,null,null,null,null,null,null,null,null,null,null,null,null,null,null,null,null,null,null,null,null,null,null,null,null,null,null,null,null,null,null,null,null,null,null,null,null,null,""]
[null,null,250,0,"",0,0,0,0,null,"",null,null,null,null,null,null,null,null,null,null,null,null,null,null,null,null,null,null,null,null,null,null,null,null,null,null,null,null,null,null,null,null,null,null,null,null,null,null,null,null,null,null,null,null,null,null,null,null,null,null,null,""]
[null,null,251,0,"",0,0,0,0,null,"",null,null,null,null,null,null,null,null,null,null,null,null,null,null,null,null,null,null,null,null,null,null,null,null,null,null,null,null,null,null,null,null,null,null,null,null,null,null,null,null,null,null,null,null,null,null,null,null,null,null,null,""]
[null,null,252,0,"",0,0,0,0,null,"",null,null,null,null,null,null,null,null,null,null,null,null,null,null,null,null,null,null,null,null,null,null,null,null,null,null,null,null,null,null,null,null,null,null,null,null,null,null,null,null,null,null,null,null,null,null,null,null,null,null,null,""]
[null,null,253,0,"",0,0,0,0,null,"",null,null,null,null,null,null,null,null,null,null,null,null,null,null,null,null,null,null,null,null,null,null,null,null,null,null,null,null,null,null,null,null,null,null,null,null,null,null,null,null,null,null,null,null,null,null,null,null,null,null,null,""]
[null,null,254,0,"",0,0,0,0,null,"",null,null,null,null,null,null,null,null,null,null,null,null,null,null,null,null,null,null,null,null,null,null,null,null,null,null,null,null,null,null,null,null,null,null,null,null,null,null,null,null,null,null,null,null,null,null,null,null,null,null,null,""]
[null,null,255,0,"",0,0,0,0,null,"",null,null,null,null,null,null,null,null,null,null,null,null,null,null,null,null,null,null,null,null,null,null,null,null,null,null,null,null,null,null,null,null,null,null,null,null,null,null,null,null,null,null,null,null,null,null,null,null,null,null,null,""]
[null,null,256,0,"",0,0,0,0,null,"",null,null,null,null,null,null,null,null,null,null,null,null,null,null,null,null,null,null,null,null,null,null,null,null,null,null,null,null,null,null,null,null,null,null,null,null,null,null,null,null,null,null,null,null,null,null,null,null,null,null,null,""]
[null,null,257,{"$f":"IF(AND(LEFT(Q275,2)=\"01\",LEFT(X275,2)=\"01\",LEFT(Y275,2)=\"01\",E275=1),1,0)","v":0},"",0,0,0,{"$f":"IF(K275<>\"\",1,0)","v":0},null,"",null,null,null,null,null,null,null,null,null,null,null,null,null,null,null,null,null,null,null,null,null,null,null,null,null,null,null,null,null,null,null,null,null,null,null,null,null,null,null,null,null,null,null,null,null,null,null,null,null,null,null,""]
[null,null,258,0,{"$f":"$B$16","v":""},{"$f":"COUNTIF(AO276:AX276,\"X\")","v":0},{"$f":"IF(Q276<>\"\",VALUE(LEFT(Q276,2)),0)","v":0},{"$f":"IF(AND($G276=1,UPPER($U276)=\"SI\"),IF($V276<>\"\",IF(AND(VALUE(LEFT($V276,4))>100,VALUE(LEFT($V276,4))<5000),1,0),0),0)","v":0},0,null,"",null,null,null,null,null,null,null,null,null,null,null,null,null,null,null,null,null,null,null,null,null,null,null,null,null,null,null,null,null,null,null,null,null,null,null,null,null,null,null,null,null,null,null,null,null,null,null,null,null,null,null,{"$f":"IF($AA276<>\"\",IF(OR(LEFT($AA276,2)=\"01\",LEFT($AA276,2)=\"02\",LEFT($AA276,2)=\"04\",LEFT($AA276,2)=\"05\"),1,0),\"\")","v":""}]
[null,null,259,0,"",0,0,0,0,null,{"$f":"IF(C277<=$B$5,C277,\"\")","v":""},null,null,null,null,null,null,null,null,null,null,null,null,null,null,null,null,null,null,null,null,null,null,null,null,null,null,null,null,null,null,null,null,null,null,null,null,null,null,null,null,null,null,null,null,null,null,null,null,null,null,null,""]
[null,null,260,0,"",0,0,0,0,null,"",null,null,null,null,null,null,null,null,null,null,null,null,null,null,null,null,null,null,null,null,null,null,null,null,null,null,null,null,null,null,null,null,null,null,null,null,null,null,null,null,null,null,null,null,null,null,null,null,null,null,null,""]
[null,null,261,0,"",0,0,0,0,null,"",null,null,null,null,null,null,null,null,null,null,null,null,null,null,null,null,null,null,null,null,null,null,null,null,null,null,null,null,null,null,null,null,null,null,null,null,null,null,null,null,null,null,null,null,null,null,null,null,null,null,null,""]
[null,null,262,0,"",0,0,0,0,null,"",null,null,null,null,null,null,null,null,null,null,null,null,null,null,null,null,null,null,null,null,null,null,null,null,null,null,null,null,null,null,null,null,null,null,null,null,null,null,null,null,null,null,null,null,null,null,null,null,null,null,null,""]
[null,null,263,0,"",0,0,0,0,null,"",null,null,null,null,null,null,null,null,null,null,null,null,null,null,null,null,null,null,null,null,null,null,null,null,null,null,null,null,null,null,null,null,null,null,null,null,null,null,null,null,null,null,null,null,null,null,null,null,null,null,null,""]
[null,null,264,0,"",0,0,0,0,null,"",null,null,null,null,null,null,null,null,null,null,null,null,null,null,null,null,null,null,null,null,null,null,null,null,null,null,null,null,null,null,null,null,null,null,null,null,null,null,null,null,null,null,null,null,null,null,null,null,null,null,null,""]
[null,null,265,0,"",0,0,0,0,null,"",null,null,null,null,null,null,null,null,null,null,null,null,null,null,null,null,null,null,null,null,null,null,null,null,null,null,null,null,null,null,null,null,null,null,null,null,null,null,null,null,null,null,null,null,null,null,null,null,null,null,null,""]
[null,null,266,0,"",0,0,0,0,null,"",null,null,null,null,null,null,null,null,null,null,null,null,null,null,null,null,null,null,null,null,null,null,null,null,null,null,null,null,null,null,null,null,null,null,null,null,null,null,null,null,null,null,null,null,null,null,null,null,null,null,null,""]
[null,null,267,0,"",0,0,0,0,null,"",null,null,null,null,null,null,null,null,null,null,null,null,null,null,null,null,null,null,null,null,null,null,null,null,null,null,null,null,null,null,null,null,null,null,null,null,null,null,null,null,null,null,null,null,null,null,null,null,null,null,null,""]
[null,null,268,0,"",0,0,0,0,null,"",null,null,null,null,null,null,null,null,null,null,null,null,null,null,null,null,null,null,null,null,null,null,null,null,null,null,null,null,null,null,null,null,null,null,null,null,null,null,null,null,null,null,null,null,null,null,null,null,null,null,null,""]
[null,null,269,0,"",0,0,0,0,null,"",null,null,null,null,null,null,null,null,null,null,null,null,null,null,null,null,null,null,null,null,null,null,null,null,null,null,null,null,null,null,null,null,null,null,null,null,null,null,null,null,null,null,null,null,null,null,null,null,null,null,null,""]
[null,null,270,0,"",0,0,0,0,null,"",null,null,null,null,null,null,null,null,null,null,null,null,null,null,null,null,null,null,null,null,null,null,null,null,null,null,null,null,null,null,null,null,null,null,null,null,null,null,null,null,null,null,null,null,null,null,null,null,null,null,null,""]
[null,null,271,0,"",0,0,0,0,null,"",null,null,null,null,null,null,null,null,null,null,null,null,null,null,null,null,null,null,null,null,null,null,null,null,null,null,null,null,null,null,null,null,null,null,null,null,null,null,null,null,null,null,null,null,null,null,null,null,null,null,null,""]
[null,null,272,0,"",0,0,0,0,null,"",null,null,null,null,null,null,null,null,null,null,null,null,null,null,null,null,null,null,null,null,null,null,null,null,null,null,null,null,null,null,null,null,null,null,null,null,null,null,null,null,null,null,null,null,null,null,null,null,null,null,null,""]
[null,null,273,0,"",0,0,0,0,null,"",null,null,null,null,null,null,null,null,null,null,null,null,null,null,null,null,null,null,null,null,null,null,null,null,null,null,null,null,null,null,null,null,null,null,null,null,null,null,null,null,null,null,null,null,null,null,null,null,null,null,null,""]
[null,null,274,0,"",0,0,0,0,null,"",null,null,null,null,null,null,null,null,null,null,null,null,null,null,null,null,null,null,null,null,null,null,null,null,null,null,null,null,null,null,null,null,null,null,null,null,null,null,null,null,null,null,null,null,null,null,null,null,null,null,null,""]
[null,null,275,0,"",0,0,0,0,null,"",null,null,null,null,null,null,null,null,null,null,null,null,null,null,null,null,null,null,null,null,null,null,null,null,null,null,null,null,null,null,null,null,null,null,null,null,null,null,null,null,null,null,null,null,null,null,null,null,null,null,null,""]
[null,null,276,0,"",0,0,0,0,null,"",null,null,null,null,null,null,null,null,null,null,null,null,null,null,null,null,null,null,null,null,null,null,null,null,null,null,null,null,null,null,null,null,null,null,null,null,null,null,null,null,null,null,null,null,null,null,null,null,null,null,null,""]
[null,null,277,0,"",0,0,0,0,null,"",null,null,null,null,null,null,null,null,null,null,null,null,null,null,null,null,null,null,null,null,null,null,null,null,null,null,null,null,null,null,null,null,null,null,null,null,null,null,null,null,null,null,null,null,null,null,null,null,null,null,null,""]
[null,null,278,0,"",0,0,0,0,null,"",null,null,null,null,null,null,null,null,null,null,null,null,null,null,null,null,null,null,null,null,null,null,null,null,null,null,null,null,null,null,null,null,null,null,null,null,null,null,null,null,null,null,null,null,null,null,null,null,null,null,null,""]
[null,null,279,0,"",0,0,0,0,null,"",null,null,null,null,null,null,null,null,null,null,null,null,null,null,null,null,null,null,null,null,null,null,null,null,null,null,null,null,null,null,null,null,null,null,null,null,null,null,null,null,null,null,null,null,null,null,null,null,null,null,null,""]
[null,null,280,0,"",0,0,0,0,null,"",null,null,null,null,null,null,null,null,null,null,null,null,null,null,null,null,null,null,null,null,null,null,null,null,null,null,null,null,null,null,null,null,null,null,null,null,null,null,null,null,null,null,null,null,null,null,null,null,null,null,null,""]
[null,null,281,0,"",0,0,0,0,null,"",null,null,null,null,null,null,null,null,null,null,null,null,null,null,null,null,null,null,null,null,null,null,null,null,null,null,null,null,null,null,null,null,null,null,null,null,null,null,null,null,null,null,null,null,null,null,null,null,null,null,null,""]
[null,null,282,0,"",0,0,0,0,null,"",null,null,null,null,null,null,null,null,null,null,null,null,null,null,null,null,null,null,null,null,null,null,null,null,null,null,null,null,null,null,null,null,null,null,null,null,null,null,null,null,null,null,null,null,null,null,null,null,null,null,null,""]
[null,null,283,0,"",0,0,0,0,null,"",null,null,null,null,null,null,null,null,null,null,null,null,null,null,null,null,null,null,null,null,null,null,null,null,null,null,null,null,null,null,null,null,null,null,null,null,null,null,null,null,null,null,null,null,null,null,null,null,null,null,null,""]
[null,null,284,0,"",0,0,0,0,null,"",null,null,null,null,null,null,null,null,null,null,null,null,null,null,null,null,null,null,null,null,null,null,null,null,null,null,null,null,null,null,null,null,null,null,null,null,null,null,null,null,null,null,null,null,null,null,null,null,null,null,null,""]
[null,null,285,0,"",0,0,0,0,null,"",null,null,null,null,null,null,null,null,null,null,null,null,null,null,null,null,null,null,null,null,null,null,null,null,null,null,null,null,null,null,null,null,null,null,null,null,null,null,null,null,null,null,null,null,null,null,null,null,null,null,null,""]
[null,null,286,0,"",0,0,0,0,null,"",null,null,null,null,null,null,null,null,null,null,null,null,null,null,null,null,null,null,null,null,null,null,null,null,null,null,null,null,null,null,null,null,null,null,null,null,null,null,null,null,null,null,null,null,null,null,null,null,null,null,null,""]
[null,null,287,0,"",0,0,0,0,null,"",null,null,null,null,null,null,null,null,null,null,null,null,null,null,null,null,null,null,null,null,null,null,null,null,null,null,null,null,null,null,null,null,null,null,null,null,null,null,null,null,null,null,null,null,null,null,null,null,null,null,null,""]
[null,null,288,0,"",0,0,0,0,null,"",null,null,null,null,null,null,null,null,null,null,null,null,null,null,null,null,null,null,null,null,null,null,null,null,null,null,null,null,null,null,null,null,null,null,null,null,null,null,null,null,null,null,null,null,null,null,null,null,null,null,null,""]
[null,null,289,0,"",0,0,0,0,null,"",null,null,null,null,null,null,null,null,null,null,null,null,null,null,null,null,null,null,null,null,null,null,null,null,null,null,null,null,null,null,null,null,null,null,null,null,null,null,null,null,null,null,null,null,null,null,null,null,null,null,null,""]
[null,null,290,0,"",0,0,0,0,null,"",null,null,null,null,null,null,null,null,null,null,null,null,null,null,null,null,null,null,null,null,null,null,null,null,null,null,null,null,null,null,null,null,null,null,null,null,null,null,null,null,null,null,null,null,null,null,null,null,null,null,null,""]
[null,null,291,0,"",0,0,0,0,null,"",null,null,null,null,null,null,null,null,null,null,null,null,null,null,null,null,null,null,null,null,null,null,null,null,null,null,null,null,null,null,null,null,null,null,null,null,null,null,null,null,null,null,null,null,null,null,null,null,null,null,null,""]
[null,null,292,0,"",0,0,0,0,null,"",null,null,null,null,null,null,null,null,null,null,null,null,null,null,null,null,null,null,null,null,null,null,null,null,null,null,null,null,null,null,null,null,null,null,null,null,null,null,null,null,null,null,null,null,null,null,null,null,null,null,null,""]
[null,null,293,0,"",0,0,0,0,null,"",null,null,null,null,null,null,null,null,null,null,null,null,null,null,null,null,null,null,null,null,null,null,null,null,null,null,null,null,null,null,null,null,null,null,null,null,null,null,null,null,null,null,null,null,null,null,null,null,null,null,null,""]
[null,null,294,0,"",0,0,0,0,null,"",null,null,null,null,null,null,null,null,null,null,null,null,null,null,null,null,null,null,null,null,null,null,null,null,null,null,null,null,null,null,null,null,null,null,null,null,null,null,null,null,null,null,null,null,null,null,null,null,null,null,null,""]
[null,null,295,0,"",0,0,0,0,null,"",null,null,null,null,null,null,null,null,null,null,null,null,null,null,null,null,null,null,null,null,null,null,null,null,null,null,null,null,null,null,null,null,null,null,null,null,null,null,null,null,null,null,null,null,null,null,null,null,null,null,null,""]
[null,null,296,0,"",0,0,0,0,null,"",null,null,null,null,null,null,null,null,null,null,null,null,null,null,null,null,null,null,null,null,null,null,null,null,null,null,null,null,null,null,null,null,null,null,null,null,null,null,null,null,null,null,null,null,null,null,null,null,null,null,null,""]
[null,null,297,0,"",0,0,0,0,null,"",null,null,null,null,null,null,null,null,null,null,null,null,null,null,null,null,null,null,null,null,null,null,null,null,null,null,null,null,null,null,null,null,null,null,null,null,null,null,null,null,null,null,null,null,null,null,null,null,null,null,null,""]
[null,null,298,0,"",0,0,0,0,null,"",null,null,null,null,null,null,null,null,null,null,null,null,null,null,null,null,null,null,null,null,null,null,null,null,null,null,null,null,null,null,null,null,null,null,null,null,null,null,null,null,null,null,null,null,null,null,null,null,null,null,null,""]
[null,null,299,0,"",0,0,0,0,null,"",null,null,null,null,null,null,null,null,null,null,null,null,null,null,null,null,null,null,null,null,null,null,null,null,null,null,null,null,null,null,null,null,null,null,null,null,null,null,null,null,null,null,null,null,null,null,null,null,null,null,null,""]
[null,null,300,0,"",0,0,0,0,null,"",null,null,null,null,null,null,null,null,null,null,null,null,null,null,null,null,null,null,null,null,null,null,null,null,null,null,null,null,null,null,null,null,null,null,null,null,null,null,null,null,null,null,null,null,null,null,null,null,null,null,null,""]
[null,null,301,0,"",0,0,0,0,null,"",null,null,null,null,null,null,null,null,null,null,null,null,null,null,null,null,null,null,null,null,null,null,null,null,null,null,null,null,null,null,null,null,null,null,null,null,null,null,null,null,null,null,null,null,null,null,null,null,null,null,null,""]
[null,null,302,0,"",0,0,0,0,null,"",null,null,null,null,null,null,null,null,null,null,null,null,null,null,null,null,null,null,null,null,null,null,null,null,null,null,null,null,null,null,null,null,null,null,null,null,null,null,null,null,null,null,null,null,null,null,null,null,null,null,null,""]
[null,null,303,0,"",0,0,0,0,null,"",null,null,null,null,null,null,null,null,null,null,null,null,null,null,null,null,null,null,null,null,null,null,null,null,null,null,null,null,null,null,null,null,null,null,null,null,null,null,null,null,null,null,null,null,null,null,null,null,null,null,null,""]
[null,null,304,0,"",0,0,0,0,null,"",null,null,null,null,null,null,null,null,null,null,null,null,null,null,null,null,null,null,null,null,null,null,null,null,null,null,null,null,null,null,null,null,null,null,null,null,null,null,null,null,null,null,null,null,null,null,null,null,null,null,null,""]
[null,null,305,0,"",0,0,0,0,null,"",null,null,null,null,null,null,null,null,null,null,null,null,null,null,null,null,null,null,null,null,null,null,null,null,null,null,null,null,null,null,null,null,null,null,null,null,null,null,null,null,null,null,null,null,null,null,null,null,null,null,null,""]
[null,null,306,0,"",0,0,0,0,null,"",null,null,null,null,null,null,null,null,null,null,null,null,null,null,null,null,null,null,null,null,null,null,null,null,null,null,null,null,null,null,null,null,null,null,null,null,null,null,null,null,null,null,null,null,null,null,null,null,null,null,null,""]
[null,null,307,0,"",0,0,0,0,null,"",null,null,null,null,null,null,null,null,null,null,null,null,null,null,null,null,null,null,null,null,null,null,null,null,null,null,null,null,null,null,null,null,null,null,null,null,null,null,null,null,null,null,null,null,null,null,null,null,null,null,null,""]
[null,null,308,0,"",0,0,0,0,null,"",null,null,null,null,null,null,null,null,null,null,null,null,null,null,null,null,null,null,null,null,null,null,null,null,null,null,null,null,null,null,null,null,null,null,null,null,null,null,null,null,null,null,null,null,null,null,null,null,null,null,null,""]
[null,null,309,0,"",0,0,0,0,null,"",null,null,null,null,null,null,null,null,null,null,null,null,null,null,null,null,null,null,null,null,null,null,null,null,null,null,null,null,null,null,null,null,null,null,null,null,null,null,null,null,null,null,null,null,null,null,null,null,null,null,null,""]
[null,null,310,0,"",0,0,0,0,null,"",null,null,null,null,null,null,null,null,null,null,null,null,null,null,null,null,null,null,null,null,null,null,null,null,null,null,null,null,null,null,null,null,null,null,null,null,null,null,null,null,null,null,null,null,null,null,null,null,null,null,null,""]
[null,null,311,0,"",0,0,0,0,null,"",null,null,null,null,null,null,null,null,null,null,null,null,null,null,null,null,null,null,null,null,null,null,null,null,null,null,null,null,null,null,null,null,null,null,null,null,null,null,null,null,null,null,null,null,null,null,null,null,null,null,null,""]
[null,null,312,0,"",0,0,0,0,null,"",null,null,null,null,null,null,null,null,null,null,null,null,null,null,null,null,null,null,null,null,null,null,null,null,null,null,null,null,null,null,null,null,null,null,null,null,null,null,null,null,null,null,null,null,null,null,null,null,null,null,null,""]
[null,null,313,0,"",0,0,0,0,null,"",null,null,null,null,null,null,null,null,null,null,null,null,null,null,null,null,null,null,null,null,null,null,null,null,null,null,null,null,null,null,null,null,null,null,null,null,null,null,null,null,null,null,null,null,null,null,null,null,null,null,null,""]
[null,null,314,0,"",0,0,0,0,null,"",null,null,null,null,null,null,null,null,null,null,null,null,null,null,null,null,null,null,null,null,null,null,null,null,null,null,null,null,null,null,null,null,null,null,null,null,null,null,null,null,null,null,null,null,null,null,null,null,null,null,null,""]
[null,null,315,0,"",0,0,0,0,null,"",null,null,null,null,null,null,null,null,null,null,null,null,null,null,null,null,null,null,null,null,null,null,null,null,null,null,null,null,null,null,null,null,null,null,null,null,null,null,null,null,null,null,null,null,null,null,null,null,null,null,null,""]
[null,null,316,0,"",0,0,0,0,null,"",null,null,null,null,null,null,null,null,null,null,null,null,null,null,null,null,null,null,null,null,null,null,null,null,null,null,null,null,null,null,null,null,null,null,null,null,null,null,null,null,null,null,null,null,null,null,null,null,null,null,null,""]
[null,null,317,0,"",0,0,0,0,null,"",null,null,null,null,null,null,null,null,null,null,null,null,null,null,null,null,null,null,null,null,null,null,null,null,null,null,null,null,null,null,null,null,null,null,null,null,null,null,null,null,null,null,null,null,null,null,null,null,null,null,null,""]
[null,null,318,0,"",0,0,0,0,null,"",null,null,null,null,null,null,null,null,null,null,null,null,null,null,null,null,null,null,null,null,null,null,null,null,null,null,null,null,null,null,null,null,null,null,null,null,null,null,null,null,null,null,null,null,null,null,null,null,null,null,null,""]
[null,null,319,0,"",0,0,0,0,null,"",null,null,null,null,null,null,null,null,null,null,null,null,null,null,null,null,null,null,null,null,null,null,null,null,null,null,null,null,null,null,null,null,null,null,null,null,null,null,null,null,null,null,null,null,null,null,null,null,null,null,null,""]
[null,null,320,0,"",0,0,0,0,null,"",null,null,null,null,null,null,null,null,null,null,null,null,null,null,null,null,null,null,null,null,null,null,null,null,null,null,null,null,null,null,null,null,null,null,null,null,null,null,null,null,null,null,null,null,null,null,null,null,null,null,null,""]
[null,null,321,{"$f":"IF(AND(LEFT(Q339,2)=\"01\",LEFT(X339,2)=\"01\",LEFT(Y339,2)=\"01\",E339=1),1,0)","v":0},"",0,0,0,{"$f":"IF(K339<>\"\",1,0)","v":0},null,"",null,null,null,null,null,null,null,null,null,null,null,null,null,null,null,null,null,null,null,null,null,null,null,null,null,null,null,null,null,null,null,null,null,null,null,null,null,null,null,null,null,null,null,null,null,null,null,null,null,null,null,""]
[null,null,322,0,{"$f":"$B$16","v":""},{"$f":"COUNTIF(AO340:AX340,\"X\")","v":0},{"$f":"IF(Q340<>\"\",VALUE(LEFT(Q340,2)),0)","v":0},{"$f":"IF(AND($G340=1,UPPER($U340)=\"SI\"),IF($V340<>\"\",IF(AND(VALUE(LEFT($V340,4))>100,VALUE(LEFT($V340,4))<5000),1,0),0),0)","v":0},0,null,"",null,null,null,null,null,null,null,null,null,null,null,null,null,null,null,null,null,null,null,null,null,null,null,null,null,null,null,null,null,null,null,null,null,null,null,null,null,null,null,null,null,null,null,null,null,null,null,null,null,null,null,{"$f":"IF($AA340<>\"\",IF(OR(LEFT($AA340,2)=\"01\",LEFT($AA340,2)=\"02\",LEFT($AA340,2)=\"04\",LEFT($AA340,2)=\"05\"),1,0),\"\")","v":""}]
[null,null,323,0,"",0,0,0,0,null,{"$f":"IF(C341<=$B$5,C341,\"\")","v":""},null,null,null,null,null,null,null,null,null,null,null,null,null,null,null,null,null,null,null,null,null,null,null,null,null,null,null,null,null,null,null,null,null,null,null,null,null,null,null,null,null,null,null,null,null,null,null,null,null,null,null,""]
[null,null,324,0,"",0,0,0,0,null,"",null,null,null,null,null,null,null,null,null,null,null,null,null,null,null,null,null,null,null,null,null,null,null,null,null,null,null,null,null,null,null,null,null,null,null,null,null,null,null,null,null,null,null,null,null,null,null,null,null,null,null,""]
[null,null,325,0,"",0,0,0,0,null,"",null,null,null,null,null,null,null,null,null,null,null,null,null,null,null,null,null,null,null,null,null,null,null,null,null,null,null,null,null,null,null,null,null,null,null,null,null,null,null,null,null,null,null,null,null,null,null,null,null,null,null,""]
[null,null,326,0,"",0,0,0,0,null,"",null,null,null,null,null,null,null,null,null,null,null,null,null,null,null,null,null,null,null,null,null,null,null,null,null,null,null,null,null,null,null,null,null,null,null,null,null,null,null,null,null,null,null,null,null,null,null,null,null,null,null,""]
[null,null,327,0,"",0,0,0,0,null,"",null,null,null,null,null,null,null,null,null,null,null,null,null,null,null,null,null,null,null,null,null,null,null,null,null,null,null,null,null,null,null,null,null,null,null,null,null,null,null,null,null,null,null,null,null,null,null,null,null,null,null,""]
[null,null,328,0,"",0,0,0,0,null,"",null,null,null,null,null,null,null,null,null,null,null,null,null,null,null,null,null,null,null,null,null,null,null,null,null,null,null,null,null,null,null,null,null,null,null,null,null,null,null,null,null,null,null,null,null,null,null,null,null,null,null,""]
[null,null,329,0,"",0,0,0,0,null,"",null,null,null,null,null,null,null,null,null,null,null,null,null,null,null,null,null,null,null,null,null,null,null,null,null,null,null,null,null,null,null,null,null,null,null,null,null,null,null,null,null,null,null,null,null,null,null,null,null,null,null,""]
[null,null,330,0,"",0,0,0,0,null,"",null,null,null,null,null,null,null,null,null,null,null,null,null,null,null,null,null,null,null,null,null,null,null,null,null,null,null,null,null,null,null,null,null,null,null,null,null,null,null,null,null,null,null,null,null,null,null,null,null,null,null,""]
[null,null,331,0,"",0,0,0,0,null,"",null,null,null,null,null,null,null,null,null,null,null,null,null,null,null,null,null,null,null,null,null,null,null,null,null,null,null,null,null,null,null,null,null,null,null,null,null,null,null,null,null,null,null,null,null,null,null,null,null,null,null,""]
[null,null,332,0,"",0,0,0,0,null,"",null,null,null,null,null,null,null,null,null,null,null,null,null,null,null,null,null,null,null,null,null,null,null,null,null,null,null,null,null,null,null,null,null,null,null,null,null,null,null,null,null,null,null,null,null,null,null,null,null,null,null,""]
[null,null,333,0,"",0,0,0,0,null,"",null,null,null,null,null,null,null,null,null,null,null,null,null,null,null,null,null,null,null,null,null,null,null,null,null,null,null,null,null,null,null,null,null,null,null,null,null,null,null,null,null,null,null,null,null,null,null,null,null,null,null,""]
[null,null,334,0,"",0,0,0,0,null,"",null,null,null,null,null,null,null,null,null,null,null,null,null,null,null,null,null,null,null,null,null,null,null,null,null,null,null,null,null,null,null,null,null,null,null,null,null,null,null,null,null,null,null,null,null,null,null,null,null,null,null,""]
[null,null,335,0,"",0,0,0,0,null,"",null,null,null,null,null,null,null,null,null,null,null,null,null,null,null,null,null,null,null,null,null,null,null,null,null,null,null,null,null,null,null,null,null,null,null,null,null,null,null,null,null,null,null,null,null,null,null,null,null,null,null,""]
[null,null,336,0,"",0,0,0,0,null,"",null,null,null,null,null,null,null,null,null,null,null,null,null,null,null,null,null,null,null,null,null,null,null,null,null,null,null,null,null,null,null,null,null,null,null,null,null,null,null,null,null,null,null,null,null,null,null,null,null,null,null,""]
[null,null,337,0,"",0,0,0,0,null,"",null,null,null,null,null,null,null,null,null,null,null,null,null,null,null,null,null,null,null,null,null,null,null,null,null,null,null,null,null,null,null,null,null,null,null,null,null,null,null,null,null,null,null,null,null,null,null,null,null,null,null,""]
[null,null,338,0,"",0,0,0,0,null,"",null,null,null,null,null,null,null,null,null,null,null,null,null,null,null,null,null,null,null,null,null,null,null,null,null,null,null,null,null,null,null,null,null,null,null,null,null,null,null,null,null,null,null,null,null,null,null,null,null,null,null,""]
[null,null,339,0,"",0,0,0,0,null,"",null,null,null,null,null,null,null,null,null,null,null,null,null,null,null,null,null,null,null,null,null,null,null,null,null,null,null,null,null,null,null,null,null,null,null,null,null,null,null,null,null,null,null,null,null,null,null,null,null,null,null,""]
[null,null,340,0,"",0,0,0,0,null,"",null,null,null,null,null,null,null,null,null,null,null,null,null,null,null,null,null,null,null,null,null,null,null,null,null,null,null,null,null,null,null,null,null,null,null,null,null,null,null,null,null,null,null,null,null,null,null,null,null,null,null,""]
[null,null,341,0,"",0,0,0,0,null,"",null,null,null,null,null,null,null,null,null,null,null,null,null,null,null,null,null,null,null,null,null,null,null,null,null,null,null,null,null,null,null,null,null,null,null,null,null,null,null,null,null,null,null,null,null,null,null,null,null,null,null,""]
[null,null,342,0,"",0,0,0,0,null,"",null,null,null,null,null,null,null,null,null,null,null,null,null,null,null,null,null,null,null,null,null,null,null,null,null,null,null,null,null,null,null,null,null,null,null,null,null,null,null,null,null,null,null,null,null,null,null,null,null,null,null,""]
[null,null,343,0,"",0,0,0,0,null,"",null,null,null,null,null,null,null,null,null,null,null,null,null,null,null,null,null,null,null,null,null,null,null,null,null,null,null,null,null,null,null,null,null,null,null,null,null,null,null,null,null,null,null,null,null,null,null,null,null,null,null,""]
[null,null,344,0,"",0,0,0,0,null,"",null,null,null,null,null,null,null,null,null,null,null,null,null,null,null,null,null,null,null,null,null,null,null,null,null,null,null,null,null,null,null,null,null,null,null,null,null,null,null,null,null,null,null,null,null,null,null,null,null,null,null,""]
[null,null,345,0,"",0,0,0,0,null,"",null,null,null,null,null,null,null,null,null,null,null,null,null,null,null,null,null,null,null,null,null,null,null,null,null,null,null,null,null,null,null,null,null,null,null,null,null,null,null,null,null,null,null,null,null,null,null,null,null,null,null,""]
[null,null,346,0,"",0,0,0,0,null,"",null,null,null,null,null,null,null,null,null,null,null,null,null,null,null,null,null,null,null,null,null,null,null,null,null,null,null,null,null,null,null,null,null,null,null,null,null,null,null,null,null,null,null,null,null,null,null,null,null,null,null,""]
[null,null,347,0,"",0,0,0,0,null,"",null,null,null,null,null,null,null,null,null,null,null,null,null,null,null,null,null,null,null,null,null,null,null,null,null,null,null,null,null,null,null,null,null,null,null,null,null,null,null,null,null,null,null,null,null,null,null,null,null,null,null,""]
[null,null,348,0,"",0,0,0,0,null,"",null,null,null,null,null,null,null,null,null,null,null,null,null,null,null,null,null,null,null,null,null,null,null,null,null,null,null,null,null,null,null,null,null,null,null,null,null,null,null,null,null,null,null,null,null,null,null,null,null,null,null,""]
[null,null,349,0,"",0,0,0,0,null,"",null,null,null,null,null,null,null,null,null,null,null,null,null,null,null,null,null,null,null,null,null,null,null,null,null,null,null,null,null,null,null,null,null,null,null,null,null,null,null,null,null,null,null,null,null,null,null,null,null,null,null,""]
[null,null,350,0,"",0,0,0,0,null,"",null,null,null,null,null,null,null,null,null,null,null,null,null,null,null,null,null,null,null,null,null,null,null,null,null,null,null,null,null,null,null,null,null,null,null,null,null,null,null,null,null,null,null,null,null,null,null,null,null,null,null,""]
[null,null,351,0,"",0,0,0,0,null,"",null,null,null,null,null,null,null,null,null,null,null,null,null,null,null,null,null,null,null,null,null,null,null,null,null,null,null,null,null,null,null,null,null,null,null,null,null,null,null,null,null,null,null,null,null,null,null,null,null,null,null,""]
[null,null,352,0,"",0,0,0,0,null,"",null,null,null,null,null,null,null,null,null,null,null,null,null,null,null,null,null,null,null,null,null,null,null,null,null,null,null,null,null,null,null,null,null,null,null,null,null,null,null,null,null,null,null,null,null,null,null,null,null,null,null,""]
[null,null,353,0,"",0,0,0,0,null,"",null,null,null,null,null,null,null,null,null,null,null,null,null,null,null,null,null,null,null,null,null,null,null,null,null,null,null,null,null,null,null,null,null,null,null,null,null,null,null,null,null,null,null,null,null,null,null,null,null,null,null,""]
[null,null,354,0,"",0,0,0,0,null,"",null,null,null,null,null,null,null,null,null,null,null,null,null,null,null,null,null,null,null,null,null,null,null,null,null,null,null,null,null,null,null,null,null,null,null,null,null,null,null,null,null,null,null,null,null,null,null,null,null,null,null,""]
[null,null,355,0,"",0,0,0,0,null,"",null,null,null,null,null,null,null,null,null,null,null,null,null,null,null,null,null,null,null,null,null,null,null,null,null,null,null,null,null,null,null,null,null,null,null,null,null,null,null,null,null,null,null,null,null,null,null,null,null,null,null,""]
[null,null,356,0,"",0,0,0,0,null,"",null,null,null,null,null,null,null,null,null,null,null,null,null,null,null,null,null,null,null,null,null,null,null,null,null,null,null,null,null,null,null,null,null,null,null,null,null,null,null,null,null,null,null,null,null,null,null,null,null,null,null,""]
[null,null,357,0,"",0,0,0,0,null,"",null,null,null,null,null,null,null,null,null,null,null,null,null,null,null,null,null,null,null,null,null,null,null,null,null,null,null,null,null,null,null,null,null,null,null,null,null,null,null,null,null,null,null,null,null,null,null,null,null,null,null,""]
[null,null,358,0,"",0,0,0,0,null,"",null,null,null,null,null,null,null,null,null,null,null,null,null,null,null,null,null,null,null,null,null,null,null,null,null,null,null,null,null,null,null,null,null,null,null,null,null,null,null,null,null,null,null,null,null,null,null,null,null,null,null,""]
[null,null,359,0,"",0,0,0,0,null,"",null,null,null,null,null,null,null,null,null,null,null,null,null,null,null,null,null,null,null,null,null,null,null,null,null,null,null,null,null,null,null,null,null,null,null,null,null,null,null,null,null,null,null,null,null,null,null,null,null,null,null,""]
[null,null,360,0,"",0,0,0,0,null,"",null,null,null,null,null,null,null,null,null,null,null,null,null,null,null,null,null,null,null,null,null,null,null,null,null,null,null,null,null,null,null,null,null,null,null,null,null,null,null,null,null,null,null,null,null,null,null,null,null,null,null,""]
[null,null,361,0,"",0,0,0,0,null,"",null,null,null,null,null,null,null,null,null,null,null,null,null,null,null,null,null,null,null,null,null,null,null,null,null,null,null,null,null,null,null,null,null,null,null,null,null,null,null,null,null,null,null,null,null,null,null,null,null,null,null,""]
[null,null,362,0,"",0,0,0,0,null,"",null,null,null,null,null,null,null,null,null,null,null,null,null,null,null,null,null,null,null,null,null,null,null,null,null,null,null,null,null,null,null,null,null,null,null,null,null,null,null,null,null,null,null,null,null,null,null,null,null,null,null,""]
[null,null,363,0,"",0,0,0,0,null,"",null,null,null,null,null,null,null,null,null,null,null,null,null,null,null,null,null,null,null,null,null,null,null,null,null,null,null,null,null,null,null,null,null,null,null,null,null,null,null,null,null,null,null,null,null,null,null,null,null,null,null,""]
[null,null,364,0,"",0,0,0,0,null,"",null,null,null,null,null,null,null,null,null,null,null,null,null,null,null,null,null,null,null,null,null,null,null,null,null,null,null,null,null,null,null,null,null,null,null,null,null,null,null,null,null,null,null,null,null,null,null,null,null,null,null,""]
[null,null,365,0,"",0,0,0,0,null,"",null,null,null,null,null,null,null,null,null,null,null,null,null,null,null,null,null,null,null,null,null,null,null,null,null,null,null,null,null,null,null,null,null,null,null,null,null,null,null,null,null,null,null,null,null,null,null,null,null,null,null,""]
[null,null,366,0,"",0,0,0,0,null,"",null,null,null,null,null,null,null,null,null,null,null,null,null,null,null,null,null,null,null,null,null,null,null,null,null,null,null,null,null,null,null,null,null,null,null,null,null,null,null,null,null,null,null,null,null,null,null,null,null,null,null,""]
[null,null,367,0,"",0,0,0,0,null,"",null,null,null,null,null,null,null,null,null,null,null,null,null,null,null,null,null,null,null,null,null,null,null,null,null,null,null,null,null,null,null,null,null,null,null,null,null,null,null,null,null,null,null,null,null,null,null,null,null,null,null,""]
[null,null,368,0,"",0,0,0,0,null,"",null,null,null,null,null,null,null,null,null,null,null,null,null,null,null,null,null,null,null,null,null,null,null,null,null,null,null,null,null,null,null,null,null,null,null,null,null,null,null,null,null,null,null,null,null,null,null,null,null,null,null,""]
[null,null,369,0,"",0,0,0,0,null,"",null,null,null,null,null,null,null,null,null,null,null,null,null,null,null,null,null,null,null,null,null,null,null,null,null,null,null,null,null,null,null,null,null,null,null,null,null,null,null,null,null,null,null,null,null,null,null,null,null,null,null,""]
[null,null,370,0,"",0,0,0,0,null,"",null,null,null,null,null,null,null,null,null,null,null,null,null,null,null,null,null,null,null,null,null,null,null,null,null,null,null,null,null,null,null,null,null,null,null,null,null,null,null,null,null,null,null,null,null,null,null,null,null,null,null,""]
[null,null,371,0,"",0,0,0,0,null,"",null,null,null,null,null,null,null,null,null,null,null,null,null,null,null,null,null,null,null,null,null,null,null,null,null,null,null,null,null,null,null,null,null,null,null,null,null,null,null,null,null,null,null,null,null,null,null,null,null,null,null,""]
[null,null,372,0,"",0,0,0,0,null,"",null,null,null,null,null,null,null,null,null,null,null,null,null,null,null,null,null,null,null,null,null,null,null,null,null,null,null,null,null,null,null,null,null,null,null,null,null,null,null,null,null,null,null,null,null,null,null,null,null,null,null,""]
[null,null,373,0,"",0,0,0,0,null,"",null,null,null,null,null,null,null,null,null,null,null,null,null,null,null,null,null,null,null,null,null,null,null,null,null,null,null,null,null,null,null,null,null,null,null,null,null,null,null,null,null,null,null,null,null,null,null,null,null,null,null,""]
[null,null,374,0,"",0,0,0,0,null,"",null,null,null,null,null,null,null,null,null,null,null,null,null,null,null,null,null,null,null,null,null,null,null,null,null,null,null,null,null,null,null,null,null,null,null,null,null,null,null,null,null,null,null,null,null,null,null,null,null,null,null,""]
[null,null,375,0,"",0,0,0,0,null,"",null,null,null,null,null,null,null,null,null,null,null,null,null,null,null,null,null,null,null,null,null,null,null,null,null,null,null,null,null,null,null,null,null,null,null,null,null,null,null,null,null,null,null,null,null,null,null,null,null,null,null,""]
[null,null,376,0,"",0,0,0,0,null,"",null,null,null,null,null,null,null,null,null,null,null,null,null,null,null,null,null,null,null,null,null,null,null,null,null,null,null,null,null,null,null,null,null,null,null,null,null,null,null,null,null,null,null,null,null,null,null,null,null,null,null,""]
[null,null,377,0,"",0,0,0,0,null,"",null,null,null,null,null,null,null,null,null,null,null,null,null,null,null,null,null,null,null,null,null,null,null,null,null,null,null,null,null,null,null,null,null,null,null,null,null,null,null,null,null,null,null,null,null,null,null,null,null,null,null,""]
[null,null,378,0,"",0,0,0,0,null,"",null,null,null,null,null,null,null,null,null,null,null,null,null,null,null,null,null,null,null,null,null,null,null,null,null,null,null,null,null,null,null,null,null,null,null,null,null,null,null,null,null,null,null,null,null,null,null,null,null,null,null,""]
[null,null,379,0,"",0,0,0,0,null,"",null,null,null,null,null,null,null,null,null,null,null,null,null,null,null,null,null,null,null,null,null,null,null,null,null,null,null,null,null,null,null,null,null,null,null,null,null,null,null,null,null,null,null,null,null,null,null,null,null,null,null,""]
[null,null,380,0,"",0,0,0,0,null,"",null,null,null,null,null,null,null,null,null,null,null,null,null,null,null,null,null,null,null,null,null,null,null,null,null,null,null,null,null,null,null,null,null,null,null,null,null,null,null,null,null,null,null,null,null,null,null,null,null,null,null,""]
[null,null,381,0,"",0,0,0,0,null,"",null,null,null,null,null,null,null,null,null,null,null,null,null,null,null,null,null,null,null,null,null,null,null,null,null,null,null,null,null,null,null,null,null,null,null,null,null,null,null,null,null,null,null,null,null,null,null,null,null,null,null,""]
[null,null,382,0,"",0,0,0,0,null,"",null,null,null,null,null,null,null,null,null,null,null,null,null,null,null,null,null,null,null,null,null,null,null,null,null,null,null,null,null,null,null,null,null,null,null,null,null,null,null,null,null,null,null,null,null,null,null,null,null,null,null,""]
[null,null,383,0,"",0,0,0,0,null,"",null,null,null,null,null,null,null,null,null,null,null,null,null,null,null,null,null,null,null,null,null,null,null,null,null,null,null,null,null,null,null,null,null,null,null,null,null,null,null,null,null,null,null,null,null,null,null,null,null,null,null,""]
[null,null,384,0,"",0,0,0,0,null,"",null,null,null,null,null,null,null,null,null,null,null,null,null,null,null,null,null,null,null,null,null,null,null,null,null,null,null,null,null,null,null,null,null,null,null,null,null,null,null,null,null,null,null,null,null,null,null,null,null,null,null,""]
[null,null,385,{"$f":"IF(AND(LEFT(Q403,2)=\"01\",LEFT(X403,2)=\"01\",LEFT(Y403,2)=\"01\",E403=1),1,0)","v":0},"",0,0,0,{"$f":"IF(K403<>\"\",1,0)","v":0},null,"",null,null,null,null,null,null,null,null,null,null,null,null,null,null,null,null,null,null,null,null,null,null,null,null,null,null,null,null,null,null,null,null,null,null,null,null,null,null,null,null,null,null,null,null,null,null,null,null,null,null,null,""]
[null,null,386,0,{"$f":"$B$16","v":""},{"$f":"COUNTIF(AO404:AX404,\"X\")","v":0},{"$f":"IF(Q404<>\"\",VALUE(LEFT(Q404,2)),0)","v":0},{"$f":"IF(AND($G404=1,UPPER($U404)=\"SI\"),IF($V404<>\"\",IF(AND(VALUE(LEFT($V404,4))>100,VALUE(LEFT($V404,4))<5000),1,0),0),0)","v":0},0,null,"",null,null,null,null,null,null,null,null,null,null,null,null,null,null,null,null,null,null,null,null,null,null,null,null,null,null,null,null,null,null,null,null,null,null,null,null,null,null,null,null,null,null,null,null,null,null,null,null,null,null,null,{"$f":"IF($AA404<>\"\",IF(OR(LEFT($AA404,2)=\"01\",LEFT($AA404,2)=\"02\",LEFT($AA404,2)=\"04\",LEFT($AA404,2)=\"05\"),1,0),\"\")","v":""}]
[null,null,387,0,"",0,0,0,0,null,{"$f":"IF(C405<=$B$5,C405,\"\")","v":""},null,null,null,null,null,null,null,null,null,null,null,null,null,null,null,null,null,null,null,null,null,null,null,null,null,null,null,null,null,null,null,null,null,null,null,null,null,null,null,null,null,null,null,null,null,null,null,null,null,null,null,""]
[null,null,388,0,"",0,0,0,0,null,"",null,null,null,null,null,null,null,null,null,null,null,null,null,null,null,null,null,null,null,null,null,null,null,null,null,null,null,null,null,null,null,null,null,null,null,null,null,null,null,null,null,null,null,null,null,null,null,null,null,null,null,""]
[null,null,389,0,"",0,0,0,0,null,"",null,null,null,null,null,null,null,null,null,null,null,null,null,null,null,null,null,null,null,null,null,null,null,null,null,null,null,null,null,null,null,null,null,null,null,null,null,null,null,null,null,null,null,null,null,null,null,null,null,null,null,""]
[null,null,390,0,"",0,0,0,0,null,"",null,null,null,null,null,null,null,null,null,null,null,null,null,null,null,null,null,null,null,null,null,null,null,null,null,null,null,null,null,null,null,null,null,null,null,null,null,null,null,null,null,null,null,null,null,null,null,null,null,null,null,""]
[null,null,391,0,"",0,0,0,0,null,"",null,null,null,null,null,null,null,null,null,null,null,null,null,null,null,null,null,null,null,null,null,null,null,null,null,null,null,null,null,null,null,null,null,null,null,null,null,null,null,null,null,null,null,null,null,null,null,null,null,null,null,""]
[null,null,392,0,"",0,0,0,0,null,"",null,null,null,null,null,null,null,null,null,null,null,null,null,null,null,null,null,null,null,null,null,null,null,null,null,null,null,null,null,null,null,null,null,null,null,null,null,null,null,null,null,null,null,null,null,null,null,null,null,null,null,""]
[null,null,393,0,"",0,0,0,0,null,"",null,null,null,null,null,null,null,null,null,null,null,null,null,null,null,null,null,null,null,null,null,null,null,null,null,null,null,null,null,null,null,null,null,null,null,null,null,null,null,null,null,null,null,null,null,null,null,null,null,null,null,""]
[null,null,394,0,"",0,0,0,0,null,"",null,null,null,null,null,null,null,null,null,null,null,null,null,null,null,null,null,null,null,null,null,null,null,null,null,null,null,null,null,null,null,null,null,null,null,null,null,null,null,null,null,null,null,null,null,null,null,null,null,null,null,""]
[null,null,395,0,"",0,0,0,0,null,"",null,null,null,null,null,null,null,null,null,null,null,null,null,null,null,null,null,null,null,null,null,null,null,null,null,null,null,null,null,null,null,null,null,null,null,null,null,null,null,null,null,null,null,null,null,null,null,null,null,null,null,""]
[null,null,396,0,"",0,0,0,0,null,"",null,null,null,null,null,null,null,null,null,null,null,null,null,null,null,null,null,null,null,null,null,null,null,null,null,null,null,null,null,null,null,null,null,null,null,null,null,null,null,null,null,null,null,null,null,null,null,null,null,null,null,""]
[null,null,397,0,"",0,0,0,0,null,"",null,null,null,null,null,null,null,null,null,null,null,null,null,null,null,null,null,null,null,null,null,null,null,null,null,null,null,null,null,null,null,null,null,null,null,null,null,null,null,null,null,null,null,null,null,null,null,null,null,null,null,""]
[null,null,398,0,"",0,0,0,0,null,"",null,null,null,null,null,null,null,null,null,null,null,null,null,null,null,null,null,null,null,null,null,null,null,null,null,null,null,null,null,null,null,null,null,null,null,null,null,null,null,null,null,null,null,null,null,null,null,null,null,null,null,""]
[null,null,399,0,"",0,0,0,0,null,"",null,null,null,null,null,null,null,null,null,null,null,null,null,null,null,null,null,null,null,null,null,null,null,null,null,null,null,null,null,null,null,null,null,null,null,null,null,null,null,null,null,null,null,null,null,null,null,null,null,null,null,""]
[null,null,400,0,"",0,0,0,0,null,"",null,null,null,null,null,null,null,null,null,null,null,null,null,null,null,null,null,null,null,null,null,null,null,null,null,null,null,null,null,null,null,null,null,null,null,null,null,null,null,null,null,null,null,null,null,null,null,null,null,null,null,""]
[null,null,401,0,"",0,0,0,0,null,"",null,null,null,null,null,null,null,null,null,null,null,null,null,null,null,null,null,null,null,null,null,null,null,null,null,null,null,null,null,null,null,null,null,null,null,null,null,null,null,null,null,null,null,null,null,null,null,null,null,null,null,""]
[null,null,402,0,"",0,0,0,0,null,"",null,null,null,null,null,null,null,null,null,null,null,null,null,null,null,null,null,null,null,null,null,null,null,null,null,null,null,null,null,null,null,null,null,null,null,null,null,null,null,null,null,null,null,null,null,null,null,null,null,null,null,""]
[null,null,403,0,"",0,0,0,0,null,"",null,null,null,null,null,null,null,null,null,null,null,null,null,null,null,null,null,null,null,null,null,null,null,null,null,null,null,null,null,null,null,null,null,null,null,null,null,null,null,null,null,null,null,null,null,null,null,null,null,null,null,""]
[null,null,404,0,"",0,0,0,0,null,"",null,null,null,null,null,null,null,null,null,null,null,null,null,null,null,null,null,null,null,null,null,null,null,null,null,null,null,null,null,null,null,null,null,null,null,null,null,null,null,null,null,null,null,null,null,null,null,null,null,null,null,""]
[null,null,405,0,"",0,0,0,0,null,"",null,null,null,null,null,null,null,null,null,null,null,null,null,null,null,null,null,null,null,null,null,null,null,null,null,null,null,null,null,null,null,null,null,null,null,null,null,null,null,null,null,null,null,null,null,null,null,null,null,null,null,""]
[null,null,406,0,"",0,0,0,0,null,"",null,null,null,null,null,null,null,null,null,null,null,null,null,null,null,null,null,null,null,null,null,null,null,null,null,null,null,null,null,null,null,null,null,null,null,null,null,null,null,null,null,null,null,null,null,null,null,null,null,null,null,""]
[null,null,407,0,"",0,0,0,0,null,"",null,null,null,null,null,null,null,null,null,null,null,null,null,null,null,null,null,null,null,null,null,null,null,null,null,null,null,null,null,null,null,null,null,null,null,null,null,null,null,null,null,null,null,null,null,null,null,null,null,null,null,""]
[null,null,408,0,"",0,0,0,0,null,"",null,null,null,null,null,null,null,null,null,null,null,null,null,null,null,null,null,null,null,null,null,null,null,null,null,null,null,null,null,null,null,null,null,null,null,null,null,null,null,null,null,null,null,null,null,null,null,null,null,null,null,""]
[null,null,409,0,"",0,0,0,0,null,"",null,null,null,null,null,null,null,null,null,null,null,null,null,null,null,null,null,null,null,null,null,null,null,null,null,null,null,null,null,null,null,null,null,null,null,null,null,null,null,null,null,null,null,null,null,null,null,null,null,null,null,""]
[null,null,410,0,"",0,0,0,0,null,"",null,null,null,null,null,null,null,null,null,null,null,null,null,null,null,null,null,null,null,null,null,null,null,null,null,null,null,null,null,null,null,null,null,null,null,null,null,null,null,null,null,null,null,null,null,null,null,null,null,null,null,""]
[null,null,411,0,"",0,0,0,0,null,"",null,null,null,null,null,null,null,null,null,null,null,null,null,null,null,null,null,null,null,null,null,null,null,null,null,null,null,null,null,null,null,null,null,null,null,null,null,null,null,null,null,null,null,null,null,null,null,null,null,null,null,""]
[null,null,412,0,"",0,0,0,0,null,"",null,null,null,null,null,null,null,null,null,null,null,null,null,null,null,null,null,null,null,null,null,null,null,null,null,null,null,null,null,null,null,null,null,null,null,null,null,null,null,null,null,null,null,null,null,null,null,null,null,null,null,""]
[null,null,413,0,"",0,0,0,0,null,"",null,null,null,null,null,null,null,null,null,null,null,null,null,null,null,null,null,null,null,null,null,null,null,null,null,null,null,null,null,null,null,null,null,null,null,null,null,null,null,null,null,null,null,null,null,null,null,null,null,null,null,""]
[null,null,414,0,"",0,0,0,0,null,"",null,null,null,null,null,null,null,null,null,null,null,null,null,null,null,null,null,null,null,null,null,null,null,null,null,null,null,null,null,null,null,null,null,null,null,null,null,null,null,null,null,null,null,null,null,null,null,null,null,null,null,""]
[null,null,415,0,"",0,0,0,0,null,"",null,null,null,null,null,null,null,null,null,null,null,null,null,null,null,null,null,null,null,null,null,null,null,null,null,null,null,null,null,null,null,null,null,null,null,null,null,null,null,null,null,null,null,null,null,null,null,null,null,null,null,""]
[null,null,416,0,"",0,0,0,0,null,"",null,null,null,null,null,null,null,null,null,null,null,null,null,null,null,null,null,null,null,null,null,null,null,null,null,null,null,null,null,null,null,null,null,null,null,null,null,null,null,null,null,null,null,null,null,null,null,null,null,null,null,""]
[null,null,417,0,"",0,0,0,0,null,"",null,null,null,null,null,null,null,null,null,null,null,null,null,null,null,null,null,null,null,null,null,null,null,null,null,null,null,null,null,null,null,null,null,null,null,null,null,null,null,null,null,null,null,null,null,null,null,null,null,null,null,""]
[null,null,418,0,"",0,0,0,0,null,"",null,null,null,null,null,null,null,null,null,null,null,null,null,null,null,null,null,null,null,null,null,null,null,null,null,null,null,null,null,null,null,null,null,null,null,null,null,null,null,null,null,null,null,null,null,null,null,null,null,null,null,""]
[null,null,419,0,"",0,0,0,0,null,"",null,null,null,null,null,null,null,null,null,null,null,null,null,null,null,null,null,null,null,null,null,null,null,null,null,null,null,null,null,null,null,null,null,null,null,null,null,null,null,null,null,null,null,null,null,null,null,null,null,null,null,""]
[null,null,420,0,"",0,0,0,0,null,"",null,null,null,null,null,null,null,null,null,null,null,null,null,null,null,null,null,null,null,null,null,null,null,null,null,null,null,null,null,null,null,null,null,null,null,null,null,null,null,null,null,null,null,null,null,null,null,null,null,null,null,""]
[null,null,421,0,"",0,0,0,0,null,"",null,null,null,null,null,null,null,null,null,null,null,null,null,null,null,null,null,null,null,null,null,null,null,null,null,null,null,null,null,null,null,null,null,null,null,null,null,null,null,null,null,null,null,null,null,null,null,null,null,null,null,""]
[null,null,422,0,"",0,0,0,0,null,"",null,null,null,null,null,null,null,null,null,null,null,null,null,null,null,null,null,null,null,null,null,null,null,null,null,null,null,null,null,null,null,null,null,null,null,null,null,null,null,null,null,null,null,null,null,null,null,null,null,null,null,""]
[null,null,423,0,"",0,0,0,0,null,"",null,null,null,null,null,null,null,null,null,null,null,null,null,null,null,null,null,null,null,null,null,null,null,null,null,null,null,null,null,null,null,null,null,null,null,null,null,null,null,null,null,null,null,null,null,null,null,null,null,null,null,""]
[null,null,424,0,"",0,0,0,0,null,"",null,null,null,null,null,null,null,null,null,null,null,null,null,null,null,null,null,null,null,null,null,null,null,null,null,null,null,null,null,null,null,null,null,null,null,null,null,null,null,null,null,null,null,null,null,null,null,null,null,null,null,""]
[null,null,425,0,"",0,0,0,0,null,"",null,null,null,null,null,null,null,null,null,null,null,null,null,null,null,null,null,null,null,null,null,null,null,null,null,null,null,null,null,null,null,null,null,null,null,null,null,null,null,null,null,null,null,null,null,null,null,null,null,null,null,""]
[null,null,426,0,"",0,0,0,0,null,"",null,null,null,null,null,null,null,null,null,null,null,null,null,null,null,null,null,null,null,null,null,null,null,null,null,null,null,null,null,null,null,null,null,null,null,null,null,null,null,null,null,null,null,null,null,null,null,null,null,null,null,""]
[null,null,427,0,"",0,0,0,0,null,"",null,null,null,null,null,null,null,null,null,null,null,null,null,null,null,null,null,null,null,null,null,null,null,null,null,null,null,null,null,null,null,null,null,null,null,null,null,null,null,null,null,null,null,null,null,null,null,null,null,null,null,""]
[null,null,428,0,"",0,0,0,0,null,"",null,null,null,null,null,null,null,null,null,null,null,null,null,null,null,null,null,null,null,null,null,null,null,null,null,null,null,null,null,null,null,null,null,null,null,null,null,null,null,null,null,null,null,null,null,null,null,null,null,null,null,""]
[null,null,429,0,"",0,0,0,0,null,"",null,null,null,null,null,null,null,null,null,null,null,null,null,null,null,null,null,null,null,null,null,null,null,null,null,null,null,null,null,null,null,null,null,null,null,null,null,null,null,null,null,null,null,null,null,null,null,null,null,null,null,""]
[null,null,430,0,"",0,0,0,0,null,"",null,null,null,null,null,null,null,null,null,null,null,null,null,null,null,null,null,null,null,null,null,null,null,null,null,null,null,null,null,null,null,null,null,null,null,null,null,null,null,null,null,null,null,null,null,null,null,null,null,null,null,""]
[null,null,431,0,"",0,0,0,0,null,"",null,null,null,null,null,null,null,null,null,null,null,null,null,null,null,null,null,null,null,null,null,null,null,null,null,null,null,null,null,null,null,null,null,null,null,null,null,null,null,null,null,null,null,null,null,null,null,null,null,null,null,""]
[null,null,432,0,"",0,0,0,0,null,"",null,null,null,null,null,null,null,null,null,null,null,null,null,null,null,null,null,null,null,null,null,null,null,null,null,null,null,null,null,null,null,null,null,null,null,null,null,null,null,null,null,null,null,null,null,null,null,null,null,null,null,""]
[null,null,433,0,"",0,0,0,0,null,"",null,null,null,null,null,null,null,null,null,null,null,null,null,null,null,null,null,null,null,null,null,null,null,null,null,null,null,null,null,null,null,null,null,null,null,null,null,null,null,null,null,null,null,null,null,null,null,null,null,null,null,""]
[null,null,434,0,"",0,0,0,0,null,"",null,null,null,null,null,null,null,null,null,null,null,null,null,null,null,null,null,null,null,null,null,null,null,null,null,null,null,null,null,null,null,null,null,null,null,null,null,null,null,null,null,null,null,null,null,null,null,null,null,null,null,""]
[null,null,435,0,"",0,0,0,0,null,"",null,null,null,null,null,null,null,null,null,null,null,null,null,null,null,null,null,null,null,null,null,null,null,null,null,null,null,null,null,null,null,null,null,null,null,null,null,null,null,null,null,null,null,null,null,null,null,null,null,null,null,""]
[null,null,436,0,"",0,0,0,0,null,"",null,null,null,null,null,null,null,null,null,null,null,null,null,null,null,null,null,null,null,null,null,null,null,null,null,null,null,null,null,null,null,null,null,null,null,null,null,null,null,null,null,null,null,null,null,null,null,null,null,null,null,""]
[null,null,437,0,"",0,0,0,0,null,"",null,null,null,null,null,null,null,null,null,null,null,null,null,null,null,null,null,null,null,null,null,null,null,null,null,null,null,null,null,null,null,null,null,null,null,null,null,null,null,null,null,null,null,null,null,null,null,null,null,null,null,""]
[null,null,438,0,"",0,0,0,0,null,"",null,null,null,null,null,null,null,null,null,null,null,null,null,null,null,null,null,null,null,null,null,null,null,null,null,null,null,null,null,null,null,null,null,null,null,null,null,null,null,null,null,null,null,null,null,null,null,null,null,null,null,""]
[null,null,439,0,"",0,0,0,0,null,"",null,null,null,null,null,null,null,null,null,null,null,null,null,null,null,null,null,null,null,null,null,null,null,null,null,null,null,null,null,null,null,null,null,null,null,null,null,null,null,null,null,null,null,null,null,null,null,null,null,null,null,""]
[null,null,440,0,"",0,0,0,0,null,"",null,null,null,null,null,null,null,null,null,null,null,null,null,null,null,null,null,null,null,null,null,null,null,null,null,null,null,null,null,null,null,null,null,null,null,null,null,null,null,null,null,null,null,null,null,null,null,null,null,null,null,""]
[null,null,441,0,"",0,0,0,0,null,"",null,null,null,null,null,null,null,null,null,null,null,null,null,null,null,null,null,null,null,null,null,null,null,null,null,null,null,null,null,null,null,null,null,null,null,null,null,null,null,null,null,null,null,null,null,null,null,null,null,null,null,""]
[null,null,442,0,"",0,0,0,0,null,"",null,null,null,null,null,null,null,null,null,null,null,null,null,null,null,null,null,null,null,null,null,null,null,null,null,null,null,null,null,null,null,null,null,null,null,null,null,null,null,null,null,null,null,null,null,null,null,null,null,null,null,""]
[null,null,443,0,"",0,0,0,0,null,"",null,null,null,null,null,null,null,null,null,null,null,null,null,null,null,null,null,null,null,null,null,null,null,null,null,null,null,null,null,null,null,null,null,null,null,null,null,null,null,null,null,null,null,null,null,null,null,null,null,null,null,""]
[null,null,444,0,"",0,0,0,0,null,"",null,null,null,null,null,null,null,null,null,null,null,null,null,null,null,null,null,null,null,null,null,null,null,null,null,null,null,null,null,null,null,null,null,null,null,null,null,null,null,null,null,null,null,null,null,null,null,null,null,null,null,""]
[null,null,445,0,"",0,0,0,0,null,"",null,null,null,null,null,null,null,null,null,null,null,null,null,null,null,null,null,null,null,null,null,null,null,null,null,null,null,null,null,null,null,null,null,null,null,null,null,null,null,null,null,null,null,null,null,null,null,null,null,null,null,""]
[null,null,446,0,"",0,0,0,0,null,"",null,null,null,null,null,null,null,null,null,null,null,null,null,null,null,null,null,null,null,null,null,null,null,null,null,null,null,null,null,null,null,null,null,null,null,null,null,null,null,null,null,null,null,null,null,null,null,null,null,null,null,""]
[null,null,447,0,"",0,0,0,0,null,"",null,null,null,null,null,null,null,null,null,null,null,null,null,null,null,null,null,null,null,null,null,null,null,null,null,null,null,null,null,null,null,null,null,null,null,null,null,null,null,null,null,null,null,null,null,null,null,null,null,null,null,""]
[null,null,448,0,"",0,0,0,0,null,"",null,null,null,null,null,null,null,null,null,null,null,null,null,null,null,null,null,null,null,null,null,null,null,null,null,null,null,null,null,null,null,null,null,null,null,null,null,null,null,null,null,null,null,null,null,null,null,null,null,null,null,""]
[null,null,449,{"$f":"IF(AND(LEFT(Q467,2)=\"01\",LEFT(X467,2)=\"01\",LEFT(Y467,2)=\"01\",E467=1),1,0)","v":0},"",0,0,0,{"$f":"IF(K467<>\"\",1,0)","v":0},null,"",null,null,null,null,null,null,null,null,null,null,null,null,null,null,null,null,null,null,null,null,null,null,null,null,null,null,null,null,null,null,null,null,null,null,null,null,null,null,null,null,null,null,null,null,null,null,null,null,null,null,null,""]
[null,null,450,0,{"$f":"$B$16","v":""},{"$f":"COUNTIF(AO468:AX468,\"X\")","v":0},{"$f":"IF(Q468<>\"\",VALUE(LEFT(Q468,2)),0)","v":0},{"$f":"IF(AND($G468=1,UPPER($U468)=\"SI\"),IF($V468<>\"\",IF(AND(VALUE(LEFT($V468,4))>100,VALUE(LEFT($V468,4))<5000),1,0),0),0)","v":0},0,null,"",null,null,null,null,null,null,null,null,null,null,null,null,null,null,null,null,null,null,null,null,null,null,null,null,null,null,null,null,null,null,null,null,null,null,null,null,null,null,null,null,null,null,null,null,null,null,null,null,null,null,null,{"$f":"IF($AA468<>\"\",IF(OR(LEFT($AA468,2)=\"01\",LEFT($AA468,2)=\"02\",LEFT($AA468,2)=\"04\",LEFT($AA468,2)=\"05\"),1,0),\"\")","v":""}]
[null,null,451,0,"",0,0,0,0,null,{"$f":"IF(C469<=$B$5,C469,\"\")","v":""},null,null,null,null,null,null,null,null,null,null,null,null,null,null,null,null,null,null,null,null,null,null,null,null,null,null,null,null,null,null,null,null,null,null,null,null,null,null,null,null,null,null,null,null,null,null,null,null,null,null,null,""]
[null,null,452,0,"",0,0,0,0,null,"",null,null,null,null,null,null,null,null,null,null,null,null,null,null,null,null,null,null,null,null,null,null,null,null,null,null,null,null,null,null,null,null,null,null,null,null,null,null,null,null,null,null,null,null,null,null,null,null,null,null,null,""]
[null,null,453,0,"",0,0,0,0,null,"",null,null,null,null,null,null,null,null,null,null,null,null,null,null,null,null,null,null,null,null,null,null,null,null,null,null,null,null,null,null,null,null,null,null,null,null,null,null,null,null,null,null,null,null,null,null,null,null,null,null,null,""]
[null,null,454,0,"",0,0,0,0,null,"",null,null,null,null,null,null,null,null,null,null,null,null,null,null,null,null,null,null,null,null,null,null,null,null,null,null,null,null,null,null,null,null,null,null,null,null,null,null,null,null,null,null,null,null,null,null,null,null,null,null,null,""]
[null,null,455,0,"",0,0,0,0,null,"",null,null,null,null,null,null,null,null,null,null,null,null,null,null,null,null,null,null,null,null,null,null,null,null,null,null,null,null,null,null,null,null,null,null,null,null,null,null,null,null,null,null,null,null,null,null,null,null,null,null,null,""]
[null,null,456,0,"",0,0,0,0,null,"",null,null,null,null,null,null,null,null,null,null,null,null,null,null,null,null,null,null,null,null,null,null,null,null,null,null,null,null,null,null,null,null,null,null,null,null,null,null,null,null,null,null,null,null,null,null,null,null,null,null,null,""]
[null,null,457,0,"",0,0,0,0,null,"",null,null,null,null,null,null,null,null,null,null,null,null,null,null,null,null,null,null,null,null,null,null,null,null,null,null,null,null,null,null,null,null,null,null,null,null,null,null,null,null,null,null,null,null,null,null,null,null,null,null,null,""]
[null,null,458,0,"",0,0,0,0,null,"",null,null,null,null,null,null,null,null,null,null,null,null,null,null,null,null,null,null,null,null,null,null,null,null,null,null,null,null,null,null,null,null,null,null,null,null,null,null,null,null,null,null,null,null,null,null,null,null,null,null,null,""]
[null,null,459,0,"",0,0,0,0,null,"",null,null,null,null,null,null,null,null,null,null,null,null,null,null,null,null,null,null,null,null,null,null,null,null,null,null,null,null,null,null,null,null,null,null,null,null,null,null,null,null,null,null,null,null,null,null,null,null,null,null,null,""]
[null,null,460,0,"",0,0,0,0,null,"",null,null,null,null,null,null,null,null,null,null,null,null,null,null,null,null,null,null,null,null,null,null,null,null,null,null,null,null,null,null,null,null,null,null,null,null,null,null,null,null,null,null,null,null,null,null,null,null,null,null,null,""]
[null,null,461,0,"",0,0,0,0,null,"",null,null,null,null,null,null,null,null,null,null,null,null,null,null,null,null,null,null,null,null,null,null,null,null,null,null,null,null,null,null,null,null,null,null,null,null,null,null,null,null,null,null,null,null,null,null,null,null,null,null,null,""]
[null,null,462,0,"",0,0,0,0,null,"",null,null,null,null,null,null,null,null,null,null,null,null,null,null,null,null,null,null,null,null,null,null,null,null,null,null,null,null,null,null,null,null,null,null,null,null,null,null,null,null,null,null,null,null,null,null,null,null,null,null,null,""]
[null,null,463,0,"",0,0,0,0,null,"",null,null,null,null,null,null,null,null,null,null,null,null,null,null,null,null,null,null,null,null,null,null,null,null,null,null,null,null,null,null,null,null,null,null,null,null,null,null,null,null,null,null,null,null,null,null,null,null,null,null,null,""]
[null,null,464,0,"",0,0,0,0,null,"",null,null,null,null,null,null,null,null,null,null,null,null,null,null,null,null,null,null,null,null,null,null,null,null,null,null,null,null,null,null,null,null,null,null,null,null,null,null,null,null,null,null,null,null,null,null,null,null,null,null,null,""]
[null,null,465,0,"",0,0,0,0,null,"",null,null,null,null,null,null,null,null,null,null,null,null,null,null,null,null,null,null,null,null,null,null,null,null,null,null,null,null,null,null,null,null,null,null,null,null,null,null,null,null,null,null,null,null,null,null,null,null,null,null,null,""]
[null,null,466,0,"",0,0,0,0,null,"",null,null,null,null,null,null,null,null,null,null,null,null,null,null,null,null,null,null,null,null,null,null,null,null,null,null,null,null,null,null,null,null,null,null,null,null,null,null,null,null,null,null,null,null,null,null,null,null,null,null,null,""]
[null,null,467,0,"",0,0,0,0,null,"",null,null,null,null,null,null,null,null,null,null,null,null,null,null,null,null,null,null,null,null,null,null,null,null,null,null,null,null,null,null,null,null,null,null,null,null,null,null,null,null,null,null,null,null,null,null,null,null,null,null,null,""]
[null,null,468,0,"",0,0,0,0,null,"",null,null,null,null,null,null,null,null,null,null,null,null,null,null,null,null,null,null,null,null,null,null,null,null,null,null,null,null,null,null,null,null,null,null,null,null,null,null,null,null,null,null,null,null,null,null,null,null,null,null,null,""]
[null,null,469,0,"",0,0,0,0,null,"",null,null,null,null,null,null,null,null,null,null,null,null,null,null,null,null,null,null,null,null,null,null,null,null,null,null,null,null,null,null,null,null,null,null,null,null,null,null,null,null,null,null,null,null,null,null,null,null,null,null,null,""]
[null,null,470,0,"",0,0,0,0,null,"",null,null,null,null,null,null,null,null,null,null,null,null,null,null,null,null,null,null,null,null,null,null,null,null,null,null,null,null,null,null,null,null,null,null,null,null,null,null,null,null,null,null,null,null,null,null,null,null,null,null,null,""]
[null,null,471,0,"",0,0,0,0,null,"",null,null,null,null,null,null,null,null,null,null,null,null,null,null,null,null,null,null,null,null,null,null,null,null,null,null,null,null,null,null,null,null,null,null,null,null,null,null,null,null,null,null,null,null,null,null,null,null,null,null,null,""]
[null,null,472,0,"",0,0,0,0,null,"",null,null,null,null,null,null,null,null,null,null,null,null,null,null,null,null,null,null,null,null,null,null,null,null,null,null,null,null,null,null,null,null,null,null,null,null,null,null,null,null,null,null,null,null,null,null,null,null,null,null,null,""]
[null,null,473,0,"",0,0,0,0,null,"",null,null,null,null,null,null,null,null,null,null,null,null,null,null,null,null,null,null,null,null,null,null,null,null,null,null,null,null,null,null,null,null,null,null,null,null,null,null,null,null,null,null,null,null,null,null,null,null,null,null,null,""]
[null,null,474,0,"",0,0,0,0,null,"",null,null,null,null,null,null,null,null,null,null,null,null,null,null,null,null,null,null,null,null,null,null,null,null,null,null,null,null,null,null,null,null,null,null,null,null,null,null,null,null,null,null,null,null,null,null,null,null,null,null,null,""]
[null,null,475,0,"",0,0,0,0,null,"",null,null,null,null,null,null,null,null,null,null,null,null,null,null,null,null,null,null,null,null,null,null,null,null,null,null,null,null,null,null,null,null,null,null,null,null,null,null,null,null,null,null,null,null,null,null,null,null,null,null,null,""]
[null,null,476,0,"",0,0,0,0,null,"",null,null,null,null,null,null,null,null,null,null,null,null,null,null,null,null,null,null,null,null,null,null,null,null,null,null,null,null,null,null,null,null,null,null,null,null,null,null,null,null,null,null,null,null,null,null,null,null,null,null,null,""]
[null,null,477,0,"",0,0,0,0,null,"",null,null,null,null,null,null,null,null,null,null,null,null,null,null,null,null,null,null,null,null,null,null,null,null,null,null,null,null,null,null,null,null,null,null,null,null,null,null,null,null,null,null,null,null,null,null,null,null,null,null,null,""]
[null,null,478,0,"",0,0,0,0,null,"",null,null,null,null,null,null,null,null,null,null,null,null,null,null,null,null,null,null,null,null,null,null,null,null,null,null,null,null,null,null,null,null,null,null,null,null,null,null,null,null,null,null,null,null,null,null,null,null,null,null,null,""]
[null,null,479,0,"",0,0,0,0,null,"",null,null,null,null,null,null,null,null,null,null,null,null,null,null,null,null,null,null,null,null,null,null,null,null,null,null,null,null,null,null,null,null,null,null,null,null,null,null,null,null,null,null,null,null,null,null,null,null,null,null,null,""]
[null,null,480,0,"",0,0,0,0,null,"",null,null,null,null,null,null,null,null,null,null,null,null,null,null,null,null,null,null,null,null,null,null,null,null,null,null,null,null,null,null,null,null,null,null,null,null,null,null,null,null,null,null,null,null,null,null,null,null,null,null,null,""]
[null,null,481,0,"",0,0,0,0,null,"",null,null,null,null,null,null,null,null,null,null,null,null,null,null,null,null,null,null,null,null,null,null,null,null,null,null,null,null,null,null,null,null,null,null,null,null,null,null,null,null,null,null,null,null,null,null,null,null,null,null,null,""]
[null,null,482,0,"",0,0,0,0,null,"",null,null,null,null,null,null,null,null,null,null,null,null,null,null,null,null,null,null,null,null,null,null,null,null,null,null,null,null,null,null,null,null,null,null,null,null,null,null,null,null,null,null,null,null,null,null,null,null,null,null,null,""]
[null,null,483,0,"",0,0,0,0,null,"",null,null,null,null,null,null,null,null,null,null,null,null,null,null,null,null,null,null,null,null,null,null,null,null,null,null,null,null,null,null,null,null,null,null,null,null,null,null,null,null,null,null,null,null,null,null,null,null,null,null,null,""]
[null,null,484,0,"",0,0,0,0,null,"",null,null,null,null,null,null,null,null,null,null,null,null,null,null,null,null,null,null,null,null,null,null,null,null,null,null,null,null,null,null,null,null,null,null,null,null,null,null,null,null,null,null,null,null,null,null,null,null,null,null,null,""]
[null,null,485,0,"",0,0,0,0,null,"",null,null,null,null,null,null,null,null,null,null,null,null,null,null,null,null,null,null,null,null,null,null,null,null,null,null,null,null,null,null,null,null,null,null,null,null,null,null,null,null,null,null,null,null,null,null,null,null,null,null,null,""]
[null,null,486,0,"",0,0,0,0,null,"",null,null,null,null,null,null,null,null,null,null,null,null,null,null,null,null,null,null,null,null,null,null,null,null,null,null,null,null,null,null,null,null,null,null,null,null,null,null,null,null,null,null,null,null,null,null,null,null,null,null,null,""]
[null,null,487,0,"",0,0,0,0,null,"",null,null,null,null,null,null,null,null,null,null,null,null,null,null,null,null,null,null,null,null,null,null,null,null,null,null,null,null,null,null,null,null,null,null,null,null,null,null,null,null,null,null,null,null,null,null,null,null,null,null,null,""]
[null,null,488,0,"",0,0,0,0,null,"",null,null,null,null,null,null,null,null,null,null,null,null,null,null,null,null,null,null,null,null,null,null,null,null,null,null,null,null,null,null,null,null,null,null,null,null,null,null,null,null,null,null,null,null,null,null,null,null,null,null,null,""]
[null,null,489,0,"",0,0,0,0,null,"",null,null,null,null,null,null,null,null,null,null,null,null,null,null,null,null,null,null,null,null,null,null,null,null,null,null,null,null,null,null,null,null,null,null,null,null,null,null,null,null,null,null,null,null,null,null,null,null,null,null,null,""]
[null,null,490,0,"",0,0,0,0,null,"",null,null,null,null,null,null,null,null,null,null,null,null,null,null,null,null,null,null,null,null,null,null,null,null,null,null,null,null,null,null,null,null,null,null,null,null,null,null,null,null,null,null,null,null,null,null,null,null,null,null,null,""]
[null,null,491,0,"",0,0,0,0,null,"",null,null,null,null,null,null,null,null,null,null,null,null,null,null,null,null,null,null,null,null,null,null,null,null,null,null,null,null,null,null,null,null,null,null,null,null,null,null,null,null,null,null,null,null,null,null,null,null,null,null,null,""]
[null,null,492,0,"",0,0,0,0,null,"",null,null,null,null,null,null,null,null,null,null,null,null,null,null,null,null,null,null,null,null,null,null,null,null,null,null,null,null,null,null,null,null,null,null,null,null,null,null,null,null,null,null,null,null,null,null,null,null,null,null,null,""]
[null,null,493,0,"",0,0,0,0,null,"",null,null,null,null,null,null,null,null,null,null,null,null,null,null,null,null,null,null,null,null,null,null,null,null,null,null,null,null,null,null,null,null,null,null,null,null,null,null,null,null,null,null,null,null,null,null,null,null,null,null,null,""]
[null,null,494,0,"",0,0,0,0,null,"",null,null,null,null,null,null,null,null,null,null,null,null,null,null,null,null,null,null,null,null,null,null,null,null,null,null,null,null,null,null,null,null,null,null,null,null,null,null,null,null,null,null,null,null,null,null,null,null,null,null,null,""]
[null,null,495,0,"",0,0,0,0,null,"",null,null,null,null,null,null,null,null,null,null,null,null,null,null,null,null,null,null,null,null,null,null,null,null,null,null,null,null,null,null,null,null,null,null,null,null,null,null,null,null,null,null,null,null,null,null,null,null,null,null,null,""]
[null,null,496,0,"",0,0,0,0,null,"",null,null,null,null,null,null,null,null,null,null,null,null,null,null,null,null,null,null,null,null,null,null,null,null,null,null,null,null,null,null,null,null,null,null,null,null,null,null,null,null,null,null,null,null,null,null,null,null,null,null,null,""]
[null,null,497,0,"",0,0,0,0,null,"",null,null,null,null,null,null,null,null,null,null,null,null,null,null,null,null,null,null,null,null,null,null,null,null,null,null,null,null,null,null,null,null,null,null,null,null,null,null,null,null,null,null,null,null,null,null,null,null,null,null,null,""]
[null,null,498,0,"",0,0,0,0,null,"",null,null,null,null,null,null,null,null,null,null,null,null,null,null,null,null,null,null,null,null,null,null,null,null,null,null,null,null,null,null,null,null,null,null,null,null,null,null,null,null,null,null,null,null,null,null,null,null,null,null,null,""]
[null,null,499,0,"",0,0,0,0,null,"",null,null,null,null,null,null,null,null,null,null,null,null,null,null,null,null,null,null,null,null,null,null,null,null,null,null,null,null,null,null,null,null,null,null,null,null,null,null,null,null,null,null,null,null,null,null,null,null,null,null,null,""]
[null,null,500,0,"",0,0,0,0,null,"",null,null,null,null,null,null,null,null,null,null,null,null,null,null,null,null,null,null,null,null,null,null,null,null,null,null,null,null,null,null,null,null,null,null,null,null,null,null,null,null,null,null,null,null,null,null,null,null,null,null,null,""]
[null,null,null,null,null,null,null,null,null,null,null,null,null,null,null,"","","","","","","",null,"","","","","","","","","","","","","","","","","","","","","","","","","","","","","","",null,null,null,null,null,null,null,null,null,""]
[null,null,null,null,null,null,null,null,null,null,"…","…","…","…","…","…","…","…","…","…","…","…","…","…","…","…","…","…","…","…","…","…","…","…","…","…","…","…","…","…","…","…","…","…","…","…","…","…","…","…","…","…","…","…","…","…","…","…","…","…","…"]

{"sheet":"C331","index":4,"n_rows":121,"n_cols":31,"rows_kept":121,"cut":false,"hidden":true,"merged":[[1,5,1,16],[2,5,2,16],[6,5,6,16],[16,8,16,10],[17,12,18,12],[17,5,18,5],[17,6,18,6],[17,7,18,7],[17,8,17,10]]}
[]
[null,null,null,null,null,"CENSO EDUCATIVO 2024"]
[null,null,null,null,null,"MATRÍCULA, DOCENTES Y RECURSOS"]
[]
[]
[]
[null,null,null,null,null,"DOCENTES QUE DOMINAN LENGUA ORIGINARIA (Solo II.EE. Públicas)"]
[]
["GESTIÓN",null,null,null,null,null,"331. SEGÚN LO ANOTADO EN LA PREGUNTA 307, ¿CUENTA CON UN DOCENTE QUE DOMINE UNA LENGUA ORIGINARIA?"]
[null,null,null,null,null,null,"Hacer click en el botón [Verificar] para revisar los docentes que dominan una lengua originaria"]
[1]
[null,null,null,null,null,null,null,"Sí   ",null,null,null,null,"¿Cuántos?"]
[]
[null,null,null,null,null,null,null,"No  ",null,null,null,null,"Pase a la sección ANOTACIONES COMPLEMENTARIAS."]
[]
[null,2,3,4]
[null,null,null,null,null,null,null,null,331.1,null,null,331.2,331.3,331.4,331.5,331.6,331.7]
[null,null,null,null,null,"Nº","Nº de fila registrado en la pregunta 307","Documento de Identidad","Conocimiento de\nlengua originaria",null,null,"¿Cuenta con estudios en Educación Intercultural Bilingüe?","Solo si respondió SÍ  en la pregunta 331.2 ¿Cuál fue el tipo de estudios en EIB?","¿Ha recibido\ncapacitación en EIB?","¿El docente enseña\nen lengua originaria?","¿El material recibido coincide con la lengua que enseña?","¿En la actualidad el Docente se encuentra en el Registro de Docentes Bilingües?"]
["330.3 ¿Cuál fue el tipo de estudios en EIB?","Corr","Gest","Fmt",null,null,null,null,"Habla","Lee","Escribe"," Sí - No",null," Sí - No"," Sí - No"," Sí - No"," Sí - No"]
["01: Doctorado",1,{"$f":"$A$11","v":1},{"$f":"IF(F20<>\"\",1,0)","v":0},null,{"$f":"IF(B20<=$N$12,B20,\"\")","v":""},null,null,"","","","","","","","","","","","","","","","","","","","","","",""]
["02: Maestría",{"$f":"B20+1","v":2},{"$f":"$A$11","v":1},{"$f":"IF(F21<>\"\",1,0)","v":0},null,{"$f":"IF(B21<=$N$12,B21,\"\")","v":""},null,null,"","","","","","","","","","","","","","","","","","","","","","",""]
["03: Segunda especialidad",{"$f":"B21+1","v":3},1,{"$f":"IF(F22<>\"\",1,0)","v":0},null,"",null,null,"","","","","","","","","","","","","","","","","","","","","","",""]
["04: Especialización",4,1,0,null,"",null,null,"","","","","","","","","","","","","","","","","","","","","","",""]
["05: Actualización",5,1,0,null,"",null,null,"","","","","","","","","","","","","","","","","","","","","","",""]
["06: Otro",6,1,0,null,"",null,null,"","","","","","","","","","","","","","","","","","","","","","",""]
[null,7,1,0,null,"",null,null,"","","","","","","","","","","","","","","","","","","","","","",""]
["Condición",8,1,0,null,"",null,null,"","","","","","","","","","","","","","","","","","","","","","",""]
["SI",9,1,0,null,"",null,null,"","","","","","","","","","","","","","","","","","","","","","",""]
["NO",10,1,0,null,"",null,null,"","","","","","","","","","","","","","","","","","","","","","",""]
[null,11,1,0,null,"",null,null,"","","","","","","","","","","","","","","","","","","","","","",""]
[null,12,1,0,null,"",null,null,"","","","","","","","","","","","","","","","","","","","","","",""]
[null,13,1,0,null,"",null,null,"","","","","","","","","","","","","","","","","","","","","","",""]
[null,14,1,0,null,"",null,null,"","","","","","","","","","","","","","","","","","","","","","",""]
[null,15,1,0,null,"",null,null,"","","","","","","","","","","","","","","","","","","","","","",""]
[null,16,1,0,null,"",null,null,"","","","","","","","","","","","","","","","","","","","","","",""]
[null,17,1,0,null,"",null,null,"","","","","","","","","","","","","","","","","","","","","","",""]
[null,18,1,0,null,"",null,null,"","","","","","","","","","","","","","","","","","","","","","",""]
[null,19,1,0,null,"",null,null,"","","","","","","","","","","","","","","","","","","","","","",""]
[null,20,1,0,null,"",null,null,"","","","","","","","","","","","","","","","","","","","","","",""]
[null,21,1,0,null,"",null,null,"","","","","","","","","","","","","","","","","","","","","","",""]
[null,22,1,0,null,"",null,null,"","","","","","","","","","","","","","","","","","","","","","",""]
[null,23,1,0,null,"",null,null,"","","","","","","","","","","","","","","","","","","","","","",""]
[null,24,1,0,null,"",null,null,"","","","","","","","","","","","","","","","","","","","","","",""]
[null,25,1,0,null,"",null,null,"","","","","","","","","","","","","","","","","","","","","","",""]
[null,26,1,0,null,"",null,null,"","","","","","","","","","","","","","","","","","","","","","",""]
[null,27,1,0,null,"",null,null,"","","","","","","","","","","","","","","","","","","","","","",""]
[null,28,1,0,null,"",null,null,"","","","","","","","","","","","","","","","","","","","","","",""]
[null,29,1,0,null,"",null,null,"","","","","","","","","","","","","","","","","","","","","","",""]
[null,30,1,0,null,"",null,null,"","","","","","","","","","","","","","","","","","","","","","",""]
[null,31,1,0,null,"",null,null,"","","","","","","","","","","","","","","","","","","","","","",""]
[null,32,1,0,null,"",null,null,"","","","","","","","","","","","","","","","","","","","","","",""]
[null,33,1,0,null,"",null,null,"","","","","","","","","","","","","","","","","","","","","","",""]
[null,34,1,0,null,"",null,null,"","","","","","","","","","","","","","","","","","","","","","",""]
[null,35,1,0,null,"",null,null,"","","","","","","","","","","","","","","","","","","","","","",""]
[null,36,1,0,null,"",null,null,"","","","","","","","","","","","","","","","","","","","","","",""]
[null,37,1,0,null,"",null,null,"","","","","","","","","","","","","","","","","","","","","","",""]
[null,38,1,0,null,"",null,null,"","","","","","","","","","","","","","","","","","","","","","",""]
[null,39,1,0,null,"",null,null,"","","","","","","","","","","","","","","","","","","","","","",""]
[null,40,1,0,null,"",null,null,"","","","","","","","","","","","","","","","","","","","","","",""]
[null,41,1,0,null,"",null,null,"","","","","","","","","","","","","","","","","","","","","","",""]
[null,42,1,0,null,"",null,null,"","","","","","","","","","","","","","","","","","","","","","",""]
[null,43,1,0,null,"",null,null,"","","","","","","","","","","","","","","","","","","","","","",""]
[null,44,1,0,null,"",null,null,"","","","","","","","","","","","","","","","","","","","","","",""]
[null,45,1,0,null,"",null,null,"","","","","","","","","","","","","","","","","","","","","","",""]
[null,46,1,0,null,"",null,null,"","","","","","","","","","","","","","","","","","","","","","",""]
[null,47,1,0,null,"",null,null,"","","","","","","","","","","","","","","","","","","","","","",""]
[null,48,1,0,null,"",null,null,"","","","","","","","","","","","","","","","","","","","","","",""]
[null,49,1,0,null,"",null,null,"","","","","","","","","","","","","","","","","","","","","","",""]
[null,50,1,0,null,"",null,null,"","","","","","","","","","","","","","","","","","","","","","",""]
[null,51,1,0,null,"",null,null,"","","","","","","","","","","","","","","","","","","","","","",""]
[null,52,1,0,null,"",null,null,"","","","","","","","","","","","","","","","","","","","","","",""]
[null,53,1,0,null,"",null,null,"","","","","","","","","","","","","","","","","","","","","","",""]
[null,54,1,0,null,"",null,null,"","","","","","","","","","","","","","","","","","","","","","",""]
[null,55,1,0,null,"",null,null,"","","","","","","","","","","","","","","","","","","","","","",""]
[null,56,1,0,null,"",null,null,"","","","","","","","","","","","","","","","","","","","","","",""]
[null,57,1,0,null,"",null,null,"","","","","","","","","","","","","","","","","","","","","","",""]
[null,58,1,0,null,"",null,null,"","","","","","","","","","","","","","","","","","","","","","",""]
[null,59,1,0,null,"",null,null,"","","","","","","","","","","","","","","","","","","","","","",""]
[null,60,1,0,null,"",null,null,"","","","","","","","","","","","","","","","","","","","","","",""]
[null,61,1,0,null,"",null,null,"","","","","","","","","","","","","","","","","","","","","","",""]
[null,62,1,0,null,"",null,null,"","","","","","","","","","","","","","","","","","","","","","",""]
[null,63,1,0,null,"",null,null,"","","","","","","","","","","","","","","","","","","","","","",""]
[null,64,1,0,null,"",null,null,"","","","","","","","","","","","","","","","","","","","","","",""]
[null,65,1,0,null,"",null,null,"","","","","","","","","","","","","","","","","","","","","","",""]
[null,66,{"$f":"$A$11","v":1},0,null,{"$f":"IF(B85<=$N$12,B85,\"\")","v":""},null,null,"","","","","","","","","","","","","","","","","","","","","","",""]
[null,{"$f":"B85+1","v":67},1,{"$f":"IF(F86<>\"\",1,0)","v":0},null,"",null,null,"","","","","","","","","","","","","","","","","","","","","","",""]
[null,68,1,0,null,"",null,null,"","","","","","","","","","","","","","","","","","","","","","",""]
[null,69,1,0,null,"",null,null,"","","","","","","","","","","","","","","","","","","","","","",""]
[null,70,1,0,null,"",null,null,"","","","","","","","","","","","","","","","","","","","","","",""]
[null,71,1,0,null,"",null,null,"","","","","","","","","","","","","","","","","","","","","","",""]
[null,72,1,0,null,"",null,null,"","","","","","","","","","","","","","","","","","","","","","",""]
[null,73,1,0,null,"",null,null,"","","","","","","","","","","","","","","","","","","","","","",""]
[null,74,1,0,null,"",null,null,"","","","","","","","","","","","","","","","","","","","","","",""]
[null,75,1,0,null,"",null,null,"","","","","","","","","","","","","","","","","","","","","","",""]
[null,76,1,0,null,"",null,null,"","","","","","","","","","","","","","","","","","","","","","",""]
[null,77,1,0,null,"",null,null,"","","","","","","","","","","","","","","","","","","","","","",""]
[null,78,1,0,null,"",null,null,"","","","","","","","","","","","","","","","","","","","","","",""]
[null,79,1,0,null,"",null,null,"","","","","","","","","","","","","","","","","","","","","","",""]
[null,80,1,0,null,"",null,null,"","","","","","","","","","","","","","","","","","","","","","",""]
[null,81,1,0,null,"",null,null,"","","","","","","","",""]
[null,82,1,0,null,"",null,null,"","","","","","","","",""]
[null,83,1,0,null,"",null,null,"","","","","","","","",""]
[null,84,1,0,null,"",null,null,"","","","","","","","",""]
[null,85,1,0,null,"",null,null,"","","","","","","","",""]
[null,86,1,0,null,"",null,null,"","","","","","","","",""]
[null,87,1,0,null,"",null,null,"","","","","","","","",""]
[null,88,1,0,null,"",null,null,"","","","","","","","",""]
[null,89,1,0,null,"",null,null,"","","","","","","","",""]
[null,90,1,0,null,"",null,null,"","","","","","","","",""]
[null,91,1,0,null,"",null,null,"","","","","","","","",""]
[null,92,1,0,null,"",null,null,"","","","","","","","",""]
[null,93,1,0,null,"",null,null,"","","","","","","","",""]
[null,94,1,0,null,"",null,null,"","","","","","","","",""]
[null,95,1,0,null,"",null,null,"","","","","","","","","","","","","","","","","","","","","","",""]
[null,96,1,0,null,"",null,null,"","","","","","","","","","","","","","","","","","","","","","",""]
[null,97,1,0,null,"",null,null,"","","","","","","","","","","","","","","","","","","","","","",""]
[null,98,1,0,null,"",null,null,"","","","","","","","","","","","","","","","","","","","","","",""]
[null,99,1,0,null,"",null,null,"","","","","","","","","","","","","","","","","","","","","","",""]
[null,100,1,0,null,"",null,null,"","","","","","","","","","","","","","","","","","","","","","",""]
[null,null,null,null,null,null,null,""]
[null,null,null,null,null,"…","…","…","…","…","…","…","…","…","…","…","…"]

{"sheet":"C400","index":5,"n_rows":45,"n_cols":19,"rows_kept":45,"cut":false,"hidden":true,"merged":[[41,16,41,17],[42,16,42,17],[43,16,43,17],[1,5,1,16],[2,5,2,16],[15,14,15,17],[35,14,35,17],[39,12,40,13],[40,16,40,17]]}
[]
[null,null,null,null,null,"CENSO EDUCATIVO 2024"]
[null,null,null,null,null,"MATRÍCULA, DOCENTES Y RECURSOS"]
[]
[]
[]
[null,"332. ÁREA DE PSICOLOGÍA"]
[null,"332.1 DURANTE EL PRESENTE AÑO, ¿SE CUENTA CON ALGÚN PROFESIONAL DE PSICOLOGÍA",null,null,null,null,null,null,null,null,"332.2. ¿A TRAVÉS DE QUÉ MECANISMO SE INCORPORÓ AL PROFESIONAL DE PSICOLOGÍA?"]
[null,null,"INCORPORADO AL INSTITUTO O ESCUELA O PROGRAMA EDUCATIVO?",null,null,null,null,null,null,null,null,"Marque con una “X”, una opción"]
[]
[null,null,null,null,null,null,null,null,null,null,null,null,null,"Contratación a través de UGEL (pe. JEC, Convivencia Escolar, etc.)"]
[null,null,"Sí",null,null,"No",null,null,null,"Pase a la Sección 400",null,null,null,"Contratación a través de UGEL (por identificación de necesidad)"]
[null,null,null,null,null,null,null,null,null,null,null,null,null,"Prácticas profesionales"]
[null,null,null,null,null,null,null,null,null,null,null,null,null,"Servicio Rural y Urbano Marginal de Salud (Serums)"]
[null,null,null,null,null,null,null,null,null,null,null,null,null,"Pasantías"]
[null,null,null,null,null,null,null,null,null,null,null,null,null,"Otro"]
[]
[]
[null,"400. FORTALECIMIENTO DE LA GESTIÓN"]
[]
[null,"401. ¿CUÁLES SON LAS DOS PRINCIPALES TEMÁTICAS QUE CONSIDERA USTED QUE",null,null,null,null,null,null,null,null,"403. ¿SE HA INCORPORADO ALGÚN OBJETIVO O ACCIÓN REFERIDA A LA PREVENCIÓN,"]
[null,null,"EL PERSONAL ADMINISTRATIVO DE ESTE INSTITUTO O ESCUELA PODRÍA SER  CAPACITADO?",null,null,null,null,null,null,null,null,"PROMOCIÓN Y ATENCIÓN DE LA SALUD (FÍSICA, MENTAL O EMOCIONAL)"]
[null,null,"Marque con una “X”, solamente dos opciones",null,null,null,null,null,null,null,null,"O ALGUNA OTRA SIMILAR DIRIGIDA A PERSONAL DOCENTE, DIRECTIVO, JERÁRQUICO"]
[null,null,null,null,null,null,null,null,null,null,null,"O ADMINISTRATIVO EN LOS INSTRUMENTOS DE GESTIÓN DEL DEL INSTITUTO O ESCUELA?"]
[null,null,{"$f":"COUNTIF(D25:D32,\"X\")","v":0},null,"Seguridad de control de accesos y de control interno de la IE."]
[null,null,null,null,"Gestión de limpieza y/o mantenimiento de la IE",null,null,null,null,null,null,"Sí",null,null,"No",null,null,null,"Pase a la pregunta 405"]
[null,null,null,null,"Manejo de habilidades interpersonales (atención de usuarios)."]
[null,null,null,null,"Técnicas de archivo y despacho de documentos."]
[null,null,null,null,"Manejo de los sistemas informáticos del Minedu.",null,null,null,null,null,"404. ¿A TRAVÉS DE QUÉ INSTRUMENTOS DE GESTIÓN SE HA INCORPORADO?"]
[null,null,null,null,"Administración y control de recursos propios (financieros).",null,null,null,null,null,null,"Marque con una “X”, una opción"]
[null,null,null,null,"Manejo de herramientas TIC y ofimática."]
[null,null,null,null,"La gestión de riesgo de desastres priorizando la prevención y reducción",null,null,null,null,null,null,null,null,"Proyecto Educativo Institucional (PEI)"]
[null,null,null,null,null,null,null,null,null,null,null,null,null,"Plan Anual de Trabajo (PAT)"]
[null,"402.  CON RESPECTO A LAS LABORES DEL PERSONAL ADMINISTRATIVO DURANTE EL",null,null,null,null,null,null,null,null,null,null,null,"Proyecto Curricular de la IE (PCI)"]
[null,null,"AÑO 2023, ¿EN QUÉ ÁMBITO(S) IDENTIFICÓ MAYOR CARGA DE ACTIVIDADES",null,null,null,null,null,null,null,null,null,null,"Reglamento Interno (RI)"]
[null,null,"OPERATIVAS ADMINISTRATIVAS?",null,null,null,null,null,null,null,null,null,null,"Otro"]
[null,null,"Marque con una “X”, hasta dos opciones"]
[null,null,null,null,null,null,null,null,null,null,"405. ¿QUÉ COMITÉS DE GESTIÓN ESCOLAR HA IMPLEMENTADO EN ESTE E INSTITUTO  O ESCUELA?"]
[null,null,{"$f":"COUNTIF(D39:D44,\"X\")","v":0},null,"Gestión de recursos financieros, bienes, servicios e infraestructura"]
[null,null,null,null,"Gestión de información de la IE (registro en sistemas administrativos)",null,null,null,null,null,null,null,"Comités",null,null,null,null,null,"Fecha de resolución"]
[null,null,null,null,"Gestión y seguimiento del uso de los recursos educativos.",null,null,null,null,null,null,null,null,null,null,"SI - NO","N° de RD",null,"DD/MM/AAAA"]
[null,null,null,null,"Limpieza y mantenimiento",null,null,null,null,null,"01","Comité de Condiciones Operativas"]
[null,null,null,null,"La gestión de riesgo de desastres priorizando la prevención y reducción",null,null,null,null,null,"02","Comité de Gestión del Bienestar"]
[null,null,null,null,"Vigilancia y guardianía",null,null,null,null,null,"03","Comité de Gestión Pedagógica"]
[null,null,null,null,null,null,null,null,null,null,null,null,null,null,null,{"$f":"COUNTIF(P42:P44,\"SI\")+COUNTIF(P42:P44,\"NO\")","v":0}]

{"sheet":"C500","index":6,"n_rows":148,"n_cols":23,"rows_kept":148,"cut":false,"hidden":true,"merged":[[102,3,102,7],[102,8,102,10],[102,11,102,18],[102,19,102,21],[100,3,100,7],[100,8,100,10],[100,11,100,18],[100,19,100,21],[101,3,101,7],[101,8,101,10],[101,11,101,18],[101,19,101,21],[81,14,81,16],[62,18,62,19],[62,20,62,21],[64,3,64,8],[68,4,68,8],[73,13,77,15],[73,17,73,19],[73,20,73,22],[74,16,76,16],[74,17,76,17],[74,18,77,18],[74,19,76,19],[74,20,76,20],[74,21,77,21],[74,22,76,22],[79,5,79,8],[56,20,56,21],[58,18,58,19],[60,18,60,19],[60,20,60,21],[61,18,61,19],[61,20,61,21],[46,4,46,6],[46,8,46,9],[46,11,46,13],[46,14,46,15],[46,16,46,17],[46,18,46,19],[44,8,44,9],[44,11,44,13],[44,14,44,15],[44,16,44,17],[44,18,44,19],[45,8,45,9],[45,11,45,13],[45,14,45,15],[45,16,45,17],[45,18,45,19],[42,8,42,9],[42,11,42,13],[42,14,42,15],[42,16,42,17],[42,18,42,19],[43,8,43,9],[43,11,43,13],[43,14,43,15],[43,16,43,17],[43,18,43,19],[38,20,40,20],[38,21,40,21],[39,8,39,9],[39,16,39,17],[39,18,39,19],[41,8,41,9],[41,11,41,13],[41,14,41,15],[41,16,41,17],[41,18,41,19],[37,7,38,7],[38,3,39,6],[38,11,40,13],[38,14,40,15],[13,15,14,18],[15,4,16,7],[15,9,17,9],[15,10,17,10],[22,5,22,7]]}
[]
[null,null,null,null,null,"CENSO EDUCATIVO 2024"]
[null,null,null,null,null,"MATRÍCULA, DOCENTES Y MATERIALES EDUCATIVOS"]
[]
[]
[]
[null,"500. GESTIÓN DEL RIESGO DE DESASTRES"]
[]
[null,null,"501. EN EL PRESENTE AÑO, ESTE SERVICIO/NIVEL EDUCATIVO, ¿HA INCORPORADO LA DEFENSA",null,null,null,null,null,null,null,null,null,null,"502. SOBRE LA DEFENSA NACIONAL Y LA GESTIÓN DEL RIESGO DE DESASTRES EN ESTE"]
[null,null,null,"NACIONAL Y GESTIÓN DEL RIESGO DE DESASTRES EN SUS INSTRUMENTOS DE GESTIÓN VIGENTES?",null,null,null,null,null,null,null,null,null,null,"SERVICIO/NIVEL EDUCATIVO, ATIENDA LAS SIGUIENTES PREGUNTAS:"]
[]
[null,null,null,"Sí  ",null,null,null,"No  ",null,null,null,null,null,null,"Seleccione “Si” o “No” según corresponda en atención a cada pregunta."]
[]
[null,null,null,null,null,null,null,null,null,null,null,null,null,null,null,"Documentos de Gestión",null,null,null,null,null,"Respuesta"]
[null,null,null,"Precise los documentos de gestión"]
[null,null,null,null,"Documentos de Gestión",null,null,null,null,"Gestión de Riesgo de Desastres","Seguridad y Defensa Nacional",null,null,null,null,null,null,null,null,null,null,"SI - NO"]
[null,null,null,null,null,null,null,null,null,null,null,null,null,null,"¿La IE cuenta con un croquis con rutas de evacuación?"]
[null,null,{"$f":"COUNTIF(J19:J23,\"X\") + COUNTIF(K19:K23,\"X\")","v":0},null,null,null,null,null,null,null,null,null,null,null,"¿La IE cuenta con planos de señalización con rutas de evacuación?"]
[null,null,"01","Proyecto Educativo Institucional (PEI)",null,null,null,null,{"$f":"COUNTIF(J19:K19,\"X\")","v":0}]
[null,null,"02","Plan Anual de Trabajo (PAT)",null,null,null,null,{"$f":"COUNTIF(J20:K20,\"X\")","v":0}]
[null,null,"03","Proyecto Currícular Institucional (PCI)",null,null,null,null,{"$f":"COUNTIF(J21:K21,\"X\")","v":0}]
[null,null,"04","Reglamento Interno (RI)",null,null,null,null,{"$f":"COUNTIF(J22:K22,\"X\")","v":0}]
[null,null,"05","Otros",{"$f":"CONCATENATE(J23,K23)","v":""},null,null,null,{"$f":"COUNTIF(J23:K23,\"X\")","v":0}]
[null,null,null,null,null,null,null,null,null,{"$f":"COUNTIF(J11:J23,\"X\")","v":0},{"$f":"COUNTIF(K11:K23,\"X\")","v":0}]
[null,null,"503. EN EL PRESENTE AÑO, LOS MIEMBROS DE ESTE SERVICIO/NIVEL EDUCATIVO, ¿HAN SIDO CAPACITADOS Y CERTIFICADOS EN MATERIA DE GESTIÓN INTEGRAL \nDEL RIESGO DE DESASTRES?"]
[]
[null,null,null,"Sí  ",null,null,null,"No  "]
[]
[]
[null,null,null,null,null,"Alguna de ellos fue desarrollada por:"]
[]
[null,null,null,null,null,null,null,"SI - NO"]
[null,null,null,null,null,"DRE/GRE"]
[null,null,null,null,null,"UGEL"]
[]
[null,null,null,"Complete la tabla"]
[]
[null,null,null,null,null,null,null,"¿Se realizó?","Cantidad de personas capacitadas",null,null,null,null,null,null,null,"Cantidad de personas certificadas"]
[null,null,null,"Tipo de Capacitación",null,null,null,null,null,null,null,"Adminis-  trativos",null,null,"Integrantes\nque pertenecen a la brigada de EA y GRD",null,null,null,null,null,"Adminis-  trativos","Integrantes brigada EA y GRD"]
[null,null,null,null,null,null,null,null,"Directores",null,"Docentes",null,null,null,null,null,"Directores",null,"Docentes"]
[null,null,null,null,null,null,null,"SI - NO"]
[null,null,"01","Curso",null,null,null,null,null,null,null,null,null,null,null,null,null,null,null,null,null,null,{"$f":"SUM(I42:V42)","v":0}]
[null,null,"02","Taller de capacitación",null,null,null,null,null,null,null,null,null,null,null,null,null,null,null,null,null,null,{"$f":"SUM(I43:V43)","v":0}]
[null,null,"03","Reuniones de trabajo institucionales",null,null,null,null,null,null,null,null,null,null,null,null,null,null,null,null,null,null,0]
[null,null,"04","Foro",null,null,null,null,null,null,null,null,null,null,null,null,null,null,null,null,null,null,0]
[null,null,"05","Webinar",null,null,null,null,null,null,null,null,null,null,null,null,null,null,null,null,null,null,0]
[null,null,"06","Otros",null,null,null,null,null,null,null,null,null,null,null,null,null,null,null,null,null,null,0]
[null,null,null,null,null,null,null,{"$f":"COUNTIF(H42:H47,\"SI\") + COUNTIF(H42:H47,\"NO\")","v":0}]
[]
[null,null,"504. EN EL AÑO 2023, ANTE LA DETECCIÓN DEL PELIGRO INMINENTE, EMERGENCIA O DESASTRE,",null,null,null,null,null,null,null,null,null,null,"506. EL SERVICIO/NIVEL EDUCATIVO, ¿CUENTA CON LA BRIGADA DE EDUCACIÓN AMBIENTAL Y"]
[null,null,null,"¿ESTE SERVICIO/NIVEL EDUCATIVO REPORTA AL ESPACIO DE MONITOREO Y SEGUIMIENTO",null,null,null,null,null,null,null,null,null,null,"GESTIÓN DE RIESGO DE DESASTRES?"]
[null,null,null,"SECTORIAL (EMSS) DE LA UGEL?"]
[null,null,null,null,null,null,null,null,null,null,null,null,null,null,"Sí",null,null,null,"No  "]
[null,null,null,"Sí  ",null,null,"¿Ha sido capacitado sobre el proceso a seguir para reportar?"]
[]
[null,null,null,null,null,null,null,"Sí  ",null,null,null,null,null,null,null,"Documento",null,null,null,"Resolución"]
[null,null,null,null,null,null,null,null,null,null,null,null,null,null,null,null,null,null,null,"Otro",""]
[null,null,null,null,null,null,null,"No  "]
[null,null,null,null,null,null,null,null,null,null,null,null,null,null,null,"Número",null,null,""]
[null,null,null,null,null,null,null,"No Sabe  "]
[null,null,null,"No  ",null,null,null,null,null,null,null,null,null,null,null,null,null,null,"Desde:",null,"Hasta:"]
[null,null,null,null,null,null,null,null,null,null,null,null,null,null,null,"Vigencia",null,null,"DD/MM/AAAA",null,"DD/MM/AAAA"]
[]
[null,null,null,"¿Por qué?",null,null,"Marque con una “X”, una opción"]
[null,null,null,"ITEMS",null,null,null,null,null,"Marcar con X",null,null,null,"507. ESTE SERVICIO/NIVEL EDUCATIVO, ¿CUENTA CON ALGUNA EXPERIENCIA EXITOSA O"]
[null,null,null,"No se tuvo emergencia en territorio",null,null,null,null,null,null,null,null,null,null,"BUENA PRÁCTICA DOCENTE Y/O GESTIÓN ESCOLAR ENMARCADAS EN ALGUNA DE LAS"]
[null,null,null,"No se cuenta con los instrumentos y/o herramientas",null,null,null,null,null,null,null,null,null,null,"LÍNEAS ESTRATÉGICAS?"]
[null,null,null,"No se conoce el procedimiento"]
[null,null,null,"Otro",null,null,null,null,null,null,null,null,null,null,"Sí  ",null,null,null,"No  "]
[]
[]
[null,null,"505. EN EL PRESENTE AÑO, ESTE SERVICIO/NIVEL EDUCATIVO, ¿HA PARTICIPADO EN CAMPAÑAS",null,null,null,null,null,null,null,null,null,null,null,"Complete la tabla"]
[null,null,null,"COMUNICACIONALES DE GESTIÓN DE RIESGO DE DESASTRES?",null,null,null,null,null,null,null,null,null,"Seleccione “Sí” o “No” para cada línea estratégica e ingrese los años según corresponda"]
[null,null,null,null,null,null,null,null,null,null,null,null,null,"Línea estratégica",null,null,null,"Experiencia exitosa",null,null,"Buena práctica docente y/o Gestión escolar"]
[null,null,null,"Sí  ",null,null,null,"No  ",null,null,null,null,null,null,null,null,null,"¿Cuenta con experiencia exitosa?","Año de la experiencia exitosa","Se socializó con otras entidades","¿Cuenta con buena práctica docente y Gestión escolar?","Año de la buena práctica docente y/o Gestión escolar","Se socializó con otras entidades"]
[]
[]
[null,null,null,null,null,"Indique, ¿En qué acciones participó o recibió?",null,null,null,null,null,null,null,null,null,null,null,"SI / NO",null,"SI / NO","SI / NO",null,"SI / NO"]
[null,null,null,null,null,null,null,null,null,null,null,null,"01","Seguridad y Defensa Nacional"]
[null,null,null,null,null,"ITEMS",null,null,null,"Marcar con X",null,null,"02","Gestión del Riesgo de Desastre"]
[null,null,null,null,null,"Pasacalle",null,null,null,null,null,null,"03","Adaptación al cambio climático"]
[null,null,null,null,null,"Feria",null,null,null,null,null,null,"04","Otro"]
[null,null,null,null,null,"Activaciones motivadoras",null,null,null,null,null,null,null,null,null,null,null,{"$f":"COUNTIF(R79:R82,\"SI\")+COUNTIF(R79:R82,\"NO\")","v":0},null,null,{"$f":"COUNTIF(U79:U82,\"SI\")+COUNTIF(U79:U82,\"NO\")","v":0},"",""]
[null,null,null,null,null,"Conferencias",null,null,null,null,null,null,null,"508. ESTE SERVICIO/NIVEL EDUCATIVO, ¿PARTICIPÓ EN LOS SIMULACROS CONVOCADOS POR"]
[null,null,null,null,null,"Recepción de afiches",null,null,null,null,null,null,null,null,"MINEDU Y/O INDECI?"]
[null,null,null,null,null,"Recepción murales de GRD"]
[null,null,null,null,null,"Post en redes sociales",null,null,null,null,null,null,null,null,"Sí  ",null,null,null,"No  "]
[null,null,null,null,null,"Post radiales"]
[]
[null,null,null,null,null,null,null,null,null,null,null,null,null,null,null,null,"Complete la tabla"]
[]
[null,null,null,null,null,null,null,null,null,null,null,null,null,null,null,null,null,"ITEMS",null,null,"Marcar con X"]
[null,null,null,null,null,null,null,null,null,null,null,null,null,null,null,null,"Primer Simulacro"]
[null,null,null,null,null,null,null,null,null,null,null,null,null,null,null,null,"Segundo Simulacro"]
[null,null,null,null,null,null,null,null,null,null,null,null,null,null,null,null,"Tercer Simulacro"]
[]
[]
[null,"DATOS DEL DIRECTOR/RESPONSABLE DEL LLENADO DE LA CÉDULA"]
[]
[null,null,null,"NOMBRES Y APELLIDOS",null,null,null,null,"CARGO",null,null,"CORREO ELECTRÓNICO",null,null,null,null,null,null,null,"TELÉFONO"]
[]
[]
[]
[]
[]
[]
[]
[]
[]
["DIRECTOR(A)"]
["SUB DIRECTOR(A)"]
["DOCENTE"]
["COORDINADOR(A)"]
["ASESOR"]
["ADMINISTRATIVO"]
["ASISTENTE"]
["AUXILIAR"]
["SECRETARIA(O)"]
["ESTADÍSTICO"]
["ESPECIALISTA"]
["BIBLIOTECARIO"]
["CARE"]
["COMANDANTE PNP"]
["CONTADOR"]
["DAIP"]
["DIGITADOR(A)"]
["GERENTE"]
["JEFE ACADÉMICO"]
["JEFE ADMINISTRATIVO"]
["JEFE DE ÁREA"]
["JEFE DE LABORATORIO"]
["JEFE DE PERSONAL"]
["JEFE DE SEDE"]
["JEFE DE UNIDAD"]
["OFICINISTA"]
["OPERADOR DE SISTEMAS"]
["PERSONAL DE SERVICIO"]
["PROGRAMADOR"]
["PROMOTOR(A)"]
["PSICOLOGO"]
["REGISTRADOR(A)"]
["REPRESENTANTE LEGAL"]
["SOPORTE TECNOLOGICO"]
["TÉCNICO ADMINISTRATIVO"]
["TESORERO(A)"]
["TRABAJADOR SOCIAL"]
["TUTOR"]
["OTROS"]

{"sheet":"Enviar","index":7,"n_rows":9,"n_cols":3,"rows_kept":9,"cut":false,"hidden":true,"merged":[[0,0,0,3],[1,0,1,3]]}
["CENSO EDUCATIVO 2024"]
["MATRÍCULA, DOCENTES"]
[]
[]
[null,"Paso 1:","Realice el ENVÍO con su clave EOL."]
[]
[null,"Paso 2:","Una vez realizado el ENVÍO,  Revise su constancia de envio."]
[]
[null,"  ADVERTENCIA","ASEGÚRESE DE REGISTRAR TODA LA INFORMACIÓN DEL NIVEL INFORMANTE"]